{"text_format":"1","workbook":"xlsx","n_sheets":6,"sheets":["入力シート","指定解除依頼書①","指定解除依頼書②","指定解除依頼書③","記号項目","課室"],"not_rendered":{"charts":0,"images":21,"macros":1,"external_links":0,"defined_names":2,"comments":0,"pivot_tables":0},"unopened":[],"bounds":{"document_bytes":16777216,"sheet_cells":100000,"rows_first":2000,"rows_last":500,"rows_between":2000,"halvings":0,"cell_chars":16384,"cell_head_chars":4096},"cells_cut":0,"cells_raw":0,"read":"whole","date_system":"1900"}

{"sheet":"入力シート","index":0,"n_rows":56,"n_cols":32,"rows_kept":56,"cut":false,"hidden":false,"merged":[[49,11,49,25],[45,6,45,7],[45,8,45,11],[53,9,53,10],[53,12,53,14],[53,16,53,18],[52,6,52,22],[53,20,53,25],[53,6,53,8],[50,6,50,22],[46,6,46,7],[46,8,46,11],[46,12,46,15],[30,1,30,5],[31,1,31,5],[53,1,53,5],[50,1,52,3],[50,4,50,5],[49,1,49,5],[45,1,45,5],[46,1,46,5],[42,1,42,5],[35,1,35,5],[37,4,37,5],[48,1,48,25],[43,6,43,25],[44,6,44,25],[43,1,43,5],[44,1,44,5],[51,4,51,5],[51,6,51,22],[52,4,52,5],[50,23,50,25],[51,23,51,25],[52,23,52,25],[36,6,36,22],[45,12,45,15],[41,1,41,5],[32,1,32,5],[35,6,35,8],[35,9,35,10],[35,12,35,14],[39,6,39,7],[38,4,38,5],[35,16,35,18],[33,1,33,5],[32,6,32,25],[40,6,40,25],[41,6,41,25],[37,23,37,25],[38,23,38,25],[33,6,33,8],[33,9,33,10],[33,20,33,25],[34,6,34,8],[34,9,34,10],[34,12,34,14],[34,16,34,18],[34,20,34,25],[33,12,33,14],[33,16,33,18],[31,6,31,25],[46,16,46,25],[35,20,35,25],[36,23,36,25],[25,16,25,18],[29,19,29,22],[45,16,45,25],[42,6,42,25],[30,6,30,25],[17,6,17,25],[18,6,18,9],[18,11,18,14],[18,16,18,22],[18,23,18,25],[17,4,17,5],[16,1,17,3],[29,1,29,5],[11,1,11,5],[14,1,14,5],[15,1,15,5],[16,4,16,5],[13,1,13,25],[15,6,15,25],[14,6,14,25],[16,14,16,25],[16,6,16,8],[16,10,16,13],[11,12,11,15],[21,1,21,5],[26,8,26,11],[25,1,25,5],[26,1,26,5],[21,6,21,8],[20,1,20,25],[40,1,40,5],[25,20,25,25],[26,12,26,15],[26,16,26,25],[22,16,22,18],[21,20,21,25],[22,20,22,25],[18,1,18,5],[21,9,21,10],[21,16,21,18],[21,12,21,14],[22,6,22,8],[22,9,22,10],[22,12,22,14],[25,6,25,8],[25,9,25,10],[25,12,25,14],[29,6,29,18],[28,1,28,25],[22,1,22,5],[24,1,24,25],[26,6,26,7],[34,1,34,5],[10,16,10,25],[9,12,9,25],[7,16,7,25],[11,6,11,7],[8,16,8,18],[8,20,8,25],[1,1,1,25],[5,6,5,7],[5,8,5,15],[5,16,5,17],[5,18,5,25],[4,1,4,5],[5,1,6,3],[6,4,6,5],[5,4,5,5],[6,6,6,25],[7,1,7,5],[8,1,8,5],[9,1,9,5],[10,1,10,5],[8,12,8,14],[8,6,8,8],[8,9,8,10],[55,1,57,9],[55,13,57,25],[58,1,62,9],[58,13,62,25],[1,26,2,30],[4,15,4,25],[11,16,11,25],[7,6,7,7],[7,8,7,11],[7,12,7,15],[11,8,11,11],[10,12,10,15],[39,20,39,25],[37,6,37,22],[38,6,38,22],[39,8,39,11],[39,12,39,15],[39,16,39,19],[36,4,36,5],[36,1,38,3],[39,1,39,5],[3,1,3,25],[10,8,10,11],[10,6,10,7]]}
[2]
[null,"■指定解除登録依頼書",null,null,null,null,null,null,null,null,null,null,null,null,null,null,null,null,null,null,null,null,null,null,null,null,"※AA～AEはマクロ用の作業列です。\n変更しないで下さい。"]
[]
[null,"■作業者記入欄",null,null,null,null,null,null,null,null,null,null,null,null,null,null,null,null,null,null,null,null,null,null,null,null,1]
[null,"中央登録番号",null,null,null,null,null,null,"-"]
[null,"氏名",null,null,"フリガナ",null,"（姓）",null,null,null,null,null,null,null,null,null,"（名）"]
[null,null,null,null,"漢字"]
[null,"性別",null,null,null,null,null,null,null,null,null,null,null,null,null,null,null,null,null,null,null,null,null,null,null,null,false,false]
[null,"生年月日",null,null,null,null,null,null,null,null,null,"年",null,null,null,"月",null,null,null,"日"]
[null,"職員番号",null,null,null,null,null,null,null,null,null,null,"職員等のみ入力して下さい",null,null,null,null,null,null,null,null,null,null,null,null,null,{"$f":"ISERROR(AB10)","v":true},{"$f":"VALUE(G10&H10&I10&J10&K10&L10)","v":{"$error":"#VALUE!"}}]
[null,"国籍",null,null,null,null,null,null,null,null,null,null,null,null,null,null,null,null,null,null,null,null,null,null,null,null,false,false]
[null,"放管手帳",null,null,null,null,null,null,null,null,null,null,null,null,null,null,null,null,null,null,null,null,null,null,null,null,false,false]
[]
[null,"■会社等（外来者）"]
[null,"所属会社名（全角30文字）",null,null,null,null,null,null,null,null,null,null,null,null,null,null,null,null,null,null,null,null,null,null,null,null,null,null,null,null,null,"機構との契約先である会社又は大学等"]
[null,"事業所等（全角30文字）"]
[null,"住所",null,null,"郵便番号",null,null,null,null,"-"]
[null,null,null,null,"住所"]
[null,"TEL",null,null,null,null,null,null,null,null,"(",null,null,null,null,")"]
[]
[null,"■教育訓練歴"]
[null,"保安教育訓練実施日",null,null,null,null,null,null,null,null,null,"年",null,null,null,"月",null,null,null,"日"]
[null,"安全衛生教育実施日",null,null,null,null,null,null,null,null,null,"年",null,null,null,"月",null,null,null,"日"]
[]
[null,"■健康診断歴"]
[null,"実施年月日",null,null,null,null,null,null,null,null,null,"年",null,null,null,"月",null,null,null,"日"]
[null,"結果",null,null,null,null,null,null,null,null,null,null,null,null,null,null,null,null,null,null,null,null,null,null,null,null,false,false]
[]
[null,"■作業担当課室"]
[null,"拠点名"]
[null,"部課室名",null,null,null,null,null,null,null,null,null,null,null,null,null,null,null,null,null,null,null,null,null,null,null,null,null,null,{"$f":"IF(ISNA(AA31),\"\",\"\"&AA31)","v":""}]
[null,"担当者"]
[null,"TEL"]
[null,"指定年月日",null,null,null,null,"平成",null,null,null,null,"年",null,null,null,"月",null,null,null,"日",null,null,null,null,null,null,""]
[null,"指定解除予定年月日",null,null,null,null,null,null,null,null,null,"年",null,null,null,"月",null,null,null,"日"]
[null,"指定解除年月日",null,null,null,null,"平成",null,null,null,null,"年",null,null,null,"月",null,null,null,"日"]
[null,"推定線量",null,null,"γ",null,null,null,null,null,null,null,null,null,null,null,null,null,null,null,null,null,null,"[mSv]"]
[null,null,null,null,"n",null,null,null,null,null,null,null,null,null,null,null,null,null,null,null,null,null,null,"[mSv]"]
[null,null,null,null,"β",null,null,null,null,null,null,null,null,null,null,null,null,null,null,null,null,null,null,"[mSv]"]
[null,"推定方法",null,null,null,null,null,null,null,null,null,null,null,null,null,null,null,null,null,null,null,null,null,null,null,null,false,false,false]
[null,"作業場所",null,null,null,null,null,null,null,null,null,null,null,null,null,null,null,null,null,null,null,null,null,null,null,null,{"$error":"#N/A"}]
[null,"作業内容（全角30文字）"]
[null,"作業種類",null,null,null,null,null,null,null,null,null,null,null,null,null,null,null,null,null,null,null,null,null,null,null,null,{"$error":"#N/A"}]
[null,"作業者区分",null,null,null,null,null,null,null,null,null,null,null,null,null,null,null,null,null,null,null,null,null,null,null,null,{"$error":"#N/A"}]
[null,"放射線発生源",null,null,null,null,null,null,null,null,null,null,null,null,null,null,null,null,null,null,null,null,null,null,null,null,{"$error":"#N/A"}]
[null,"中性子線量計",null,null,null,null,null,null,null,null,null,null,null,null,null,null,null,null,null,null,null,null,null,null,null,null,false,false]
[null,"内部被ばく退域検査",null,null,null,null,null,null,null,null,null,null,null,null,null,null,null,null,null,null,null,null,null,null,null,null,false,false]
[]
[null,"■被ばく管理担当課記入欄"]
[null,"バッジ番号"]
[null,"測定線量",null,null,"γ",null,null,null,null,null,null,null,null,null,null,null,null,null,null,null,null,null,null,"[mSv]"]
[null,null,null,null,"n",null,null,null,null,null,null,null,null,null,null,null,null,null,null,null,null,null,null,"[mSv]"]
[null,null,null,null,"β",null,null,null,null,null,null,null,null,null,null,null,null,null,null,null,null,null,null,"[mSv]"]
[null,"測定年月日",null,null,null,null,null,null,null,null,null,"年",null,null,null,"月",null,null,null,"日"]
[]
[null,"※［印刷プレビュー］ボタンを\nクリックすると、一枚目の\n印刷プレビューを表示します。",null,null,null,null,null,null,null,null,null,null,null,"※全ての入力項目を確認後、\n［依頼書作成開始］ボタンをクリックすると、依頼書の印刷が始まります。"]

{"sheet":"指定解除依頼書①","index":1,"n_rows":46,"n_cols":82,"rows_kept":46,"cut":false,"hidden":false,"merged":[[45,0,45,83],[43,28,44,28],[42,20,42,32],[43,29,44,30],[42,72,42,73],[40,74,40,78],[40,79,40,83],[40,33,41,45],[40,7,41,19],[43,31,44,31],[43,33,44,45],[39,0,41,6],[43,21,44,24],[42,33,42,45],[43,25,44,25],[43,26,44,27],[39,7,39,19],[40,20,41,32],[39,20,39,32],[0,2,0,35],[1,2,1,35],[2,0,2,47],[3,0,3,17],[3,36,3,47],[3,23,3,35],[4,6,6,7],[24,48,24,59],[11,24,11,28],[4,8,6,9],[4,12,6,13],[4,14,6,15],[6,24,6,27],[4,16,6,17],[7,0,7,17],[8,0,9,17],[6,29,6,30],[6,32,6,33],[4,40,6,41],[4,38,6,39],[4,46,6,47],[4,36,6,37],[4,42,6,43],[19,44,19,47],[4,10,6,11],[13,1,15,46],[19,6,19,8],[19,10,19,13],[20,2,23,47],[19,2,19,4],[4,0,6,1],[19,40,19,42],[19,36,19,38],[16,0,19,1],[20,0,22,1],[23,0,23,1],[17,2,18,47],[16,2,16,47],[10,0,10,17],[4,2,6,3],[4,4,6,5],[11,0,12,17],[9,18,9,22],[9,23,9,35],[10,18,10,22],[12,18,12,22],[4,44,6,45],[19,32,19,35],[11,30,11,34],[39,74,39,83],[39,62,39,71],[40,62,40,66],[19,74,20,78],[17,74,18,78],[17,79,18,83],[19,79,20,80],[19,81,20,81],[19,82,20,83],[39,33,39,45],[37,0,38,45],[32,1,35,46],[40,67,40,71],[9,74,9,79],[18,68,20,73],[17,48,20,67],[12,67,12,68],[12,70,12,71],[6,48,6,64],[6,65,6,73],[9,61,9,73],[9,48,9,60],[7,48,8,64],[7,65,8,73],[10,70,10,71],[11,61,11,73],[10,74,10,75],[11,74,11,75],[12,74,12,75],[10,76,10,79],[11,76,11,79],[10,67,10,68],[10,56,11,56],[10,57,11,58],[10,59,11,59],[2,48,2,83],[4,78,4,79],[4,81,4,83],[7,81,7,83],[6,74,8,77],[3,74,5,77],[7,78,7,79],[25,67,33,73],[34,61,36,82],[25,74,33,83],[25,60,33,66],[21,48,21,59],[22,48,23,59],[21,60,21,73],[22,82,23,83],[22,78,23,79],[22,80,23,81],[21,74,21,83],[22,74,23,75],[16,68,16,73],[17,68,17,73],[4,48,5,73],[3,65,3,72],[12,76,12,79],[9,80,9,83],[12,80,12,83],[11,80,11,83],[10,80,10,83],[25,48,36,53],[16,48,16,67],[16,74,16,83],[14,48,15,73],[25,54,36,59],[24,74,24,83],[13,74,13,83],[14,74,15,83],[22,76,23,77],[12,64,12,65],[12,62,12,63],[10,51,11,52],[10,49,11,50],[10,64,10,65],[10,62,10,63],[10,53,11,53],[10,54,11,55],[13,48,13,73],[24,60,24,73],[22,60,23,73]]}
[null,null,"指　定　解　除　登　録　依　頼　書　①"]
[null,null,"作業者→作業担当課室→被ばく管理担当課"]
["作　業　者　記　入　欄",null,null,null,null,null,null,null,null,null,null,null,null,null,null,null,null,null,null,null,null,null,null,null,null,null,null,null,null,null,null,null,null,null,null,null,null,null,null,null,null,null,null,null,null,null,null,null,"作  業  担  当  課  室  記  入  欄"]
["中　央　登　録　番　号",null,null,null,null,null,null,null,null,null,null,null,null,null,null,null,null,null,null,null,null,null,null,"生年月日（Date of Birth）",null,null,null,null,null,null,null,null,null,null,null,null,"職員番号(職員等のみ)",null,null,null,null,null,null,null,null,null,null,null,"作業担当部部課室(職員等は所属部課室)",null,null,null,null,null,null,null,null,null,null,null,null,null,null,null,null,{"$f":"IF(ISNA(入力シート!AA31),\"\",\"\" & 入力シート!AA31)","v":""},null,null,null,null,null,null,null,null,"中性子\n線量計"]
[{"$f":"\"\" & 入力シート!G5","v":""},null,{"$f":"\"\"&入力シート!H5","v":""},null,"-",null,{"$f":"\"\" & 入力シート!J5","v":""},null,{"$f":"\"\" & 入力シート!K5","v":""},null,{"$f":"\"\" & 入力シート!L5","v":""},null,{"$f":"\"\" & 入力シート!M5","v":""},null,{"$f":"\"\" & 入力シート!N5","v":""},null,{"$f":"\"\" & 入力シート!O5","v":""},null,null,null,null,null,null,null,null,null,null,null,null,null,null,null,null,null,null,null,{"$f":"IF(入力シート!AA10,\"\",TEXT(入力シート!G10,0))","v":""},null,{"$f":"IF(入力シート!AA10,\"\",TEXT(入力シート!H10,0))","v":""},null,{"$f":"IF(入力シート!AA10,\"\",TEXT(入力シート!I10,0))","v":""},null,{"$f":"IF(入力シート!AA10,\"\",TEXT(入力シート!J10,0))","v":""},null,{"$f":"IF(入力シート!AA10,\"\",TEXT(入力シート!K10,0))","v":""},null,{"$f":"IF(入力シート!AA10,\"\",TEXT(入力シート!L10,0))","v":""},null,{"$f":"\"\"& IF(ISNA(入力シート!AB31),\"\",入力シート!AB31)","v":""},null,null,null,null,null,null,null,null,null,null,null,null,null,null,null,null,null,null,null,null,null,null,null,null,null,null,null,null,null,{"$f":"IF(入力シート!AA46,\"■\",\"□\") & \"有\"","v":"□有"},null,"・",{"$f":"IF(入力シート!AB46,\"■\",\"□\") & \"無\"","v":"□無"}]
[]
[null,null,null,null,null,null,null,null,null,null,null,null,null,null,null,null,null,null,null,null,null,null,null,null,{"$f":"IF(入力シート!AA9=\"西暦\",\"\",入力シート!AA9)  & 入力シート!AB9 & \"\"","v":""},null,null,null,"年",{"$f":"入力シート!AC9 & \"\"","v":""},null,"月",{"$f":"入力シート!AD9 & \"\"","v":""},null,"日",null,null,null,null,null,null,null,null,null,null,null,null,null,"担当者",null,null,null,null,null,null,null,null,null,null,null,null,null,null,null,null,"TEL",null,null,null,null,null,null,null,null,"内部被ばく\n退域検査"]
["フリガナ（姓名間は空白）",null,null,null,null,null,null,null,null,null,null,null,null,null,null,null,null,null,null,null,null,null,null,null,null,null,null,null,null,null,null,null,null,null,null,null,null,null,null,null,null,null,null,null,null,null,null,null,{"$f":"入力シート!G32 & \"\"","v":""},null,null,null,null,null,null,null,null,null,null,null,null,null,null,null,null,{"$f":"入力シート!G33 & \"\"","v":""},null,null,null,null,null,null,null,null,null,null,null,null,{"$f":"IF(入力シート!AA47,\"■\",\"□\") & \"要\"","v":"□要"},null,"・",{"$f":"IF(入力シート!AB47,\"■\",\"□\") & \"不要\"","v":"□不要"}]
[{"$f":"入力シート!I6 & \" \" & 入力シート!S6","v":" "}]
[null,null,null,null,null,null,null,null,null,null,null,null,null,null,null,null,null,null,"性　別",null,null,null,null,"国籍区分",null,null,null,null,null,null,null,null,null,null,null,null,null,null,null,null,null,null,null,null,null,null,null,null,"指定年月日",null,null,null,null,null,null,null,null,null,null,null,null,"指定解除予定年月日",null,null,null,null,null,null,null,null,null,null,null,null,"推定線量",null,null,null,null,null,"推定方法"]
["氏名（Name:Family First Middle）",null,null,null,null,null,null,null,null,null,null,null,null,null,null,null,null,null,{"$f":"IF(入力シート!AA8,\"■\",\"□\") & \" 男（M）\"","v":"□ 男（M）"},null,null,null,null,null,null,null,null,null,null,null,null,null,null,null,null,null,null,null,null,null,null,null,null,null,null,null,null,null,null,{"$f":"入力シート!G34","v":"平成"},null,{"$f":"IF(入力シート!AA34=\"西暦\",\"\",\"\") & 入力シート!AB34 & \"\"","v":""},null,"年",{"$f":"入力シート!AC34 & \"\"","v":""},null,"月",{"$f":"入力シート!AD34 & \"\"","v":""},null,"日",null,null,"平成",null,{"$f":"IF(入力シート!AA35=\"西暦\",\"\",\"\") & 入力シート!AB35 & \"\"","v":""},null,"年",{"$f":"入力シート!AC35 & \"\"","v":""},null,"月",{"$f":"入力シート!AD35 & \"\"","v":""},null,"日",null,"γ",null,{"$f":"IF(ISNUMBER(入力シート!G37),入力シート!G37,入力シート!G37&\"\")","v":""},null,null,null,{"$f":"IF(入力シート!AA40,\"■\",\"□\") & \" P D\"","v":"□ P D"}]
[{"$f":"入力シート!G7 & \"\"","v":""},null,null,null,null,null,null,null,null,null,null,null,null,null,null,null,null,null,null,null,"・",null,null,null,{"$f":"IF(入力シート!AA11,\"■\",\"□\") & \" 55.日本人\"","v":"□ 55.日本人"},null,null,null,null,null,{"$f":"IF(入力シート!AB11,\"■\",\"□\") & \" 80.外国人\"","v":"□ 80.外国人"},null,null,null,null,null,null,null,null,null,null,null,null,null,null,null,null,null,null,null,null,null,null,null,null,null,null,null,null,null,null,"指定解除年月日",null,null,null,null,null,null,null,null,null,null,null,null,"n",null,{"$f":"IF(ISNUMBER(入力シート!G38),入力シート!G38,入力シート!G38&\"\")","v":""},null,null,null,{"$f":"IF(入力シート!AB40,\"■\",\"□\") & \" TLD\"","v":"□ TLD"}]
[null,null,null,null,null,null,null,null,null,null,null,null,null,null,null,null,null,null,{"$f":"IF(入力シート!AB8,\"■\",\"□\") & \" 女（F）\"","v":"□ 女（F）"},null,null,null,null,null,null,null,null,null,null,null,null,null,null,null,null,null,null,null,null,null,null,null,null,null,null,null,null,null,null,null,null,null,null,null,null,null,null,null,null,null,null,null,{"$f":"入力シート!G36","v":"平成"},null,{"$f":"IF(入力シート!AA36=\"西暦\",\"\",\"\") & 入力シート!AB36 & \"\"","v":""},null,"年",{"$f":"入力シート!AC36 & \"\"","v":""},null,"月",{"$f":"入力シート!AD36 & \"\"","v":""},null,"日",null,"β",null,{"$f":"IF(ISNUMBER(入力シート!G39),入力シート!G39,入力シート!G39&\"\")","v":""},null,null,null,{"$f":"IF(入力シート!AC40,\"■\",\"□\") & \"計算\"","v":"□計算"}]
[null,"　本依頼書に記載した個人情報は、個人被ばく管理システム及び放射線従事者中央登録センターへの登録処理が行われます。登録された情報は、被ばく記録の散逸防止や正確な被ばく前歴の把握などの一元管理に利用されます。なお、これらの情報は個人情報保護法に基づいて適切な管理が行われます。",null,null,null,null,null,null,null,null,null,null,null,null,null,null,null,null,null,null,null,null,null,null,null,null,null,null,null,null,null,null,null,null,null,null,null,null,null,null,null,null,null,null,null,null,null,null,"作業場所"]
[null,null,null,null,null,null,null,null,null,null,null,null,null,null,null,null,null,null,null,null,null,null,null,null,null,null,null,null,null,null,null,null,null,null,null,null,null,null,null,null,null,null,null,null,null,null,null,null,{"$f":"\"\" & IF(ISNA(入力シート!AB41),\"\",入力シート!AB41) & IF(ISNA(入力シート!AA41),\"\", \".\" & 入力シート!AA41)","v":""}]
[]
["会社等（",null,"会社名（機構との契約先である会社又は大学等）",null,null,null,null,null,null,null,null,null,null,null,null,null,null,null,null,null,null,null,null,null,null,null,null,null,null,null,null,null,null,null,null,null,null,null,null,null,null,null,null,null,null,null,null,null,"作業内容",null,null,null,null,null,null,null,null,null,null,null,null,null,null,null,null,null,null,null,"作業種類",null,null,null,null,null,"被ばく管理担当課記入欄"]
[null,null,{"$f":"入力シート!G15 & \"　\"& 入力シート!G16","v":"　"},null,null,null,null,null,null,null,null,null,null,null,null,null,null,null,null,null,null,null,null,null,null,null,null,null,null,null,null,null,null,null,null,null,null,null,null,null,null,null,null,null,null,null,null,null,{"$f":"入力シート!G42 & \"\"","v":""},null,null,null,null,null,null,null,null,null,null,null,null,null,null,null,null,null,null,null,"（下欄記号）",null,null,null,null,null,"内部被ばく\n検　査　印"]
[null,null,null,null,null,null,null,null,null,null,null,null,null,null,null,null,null,null,null,null,null,null,null,null,null,null,null,null,null,null,null,null,null,null,null,null,null,null,null,null,null,null,null,null,null,null,null,null,null,null,null,null,null,null,null,null,null,null,null,null,null,null,null,null,null,null,null,null,{"$f":"IF(ISNA(入力シート!AA43),\"\",入力シート!AA43)","v":""}]
[null,null,"所在地",null,null,"〒",{"$f":"入力シート!G17 & \"\"","v":""},null,null,"-",{"$f":"入力シート!K17 & \"\"","v":""},null,null,null,null,null,null,null,null,null,null,null,null,null,null,null,null,null,null,null,null,null,"電話番号",null,null,null,{"$f":"入力シート!G19 & \"\"","v":""},null,null,"(",{"$f":"入力シート!L19 & \"\"","v":""},null,null,")",{"$f":"入力シート!Q19 & \"\"","v":""},null,null,null,null,null,null,null,null,null,null,null,null,null,null,null,null,null,null,null,null,null,null,null,null,null,null,null,null,null,"検 査 時 間",null,null,null,null,null,null,"："]
["は不要職員等",null,{"$f":"入力シート!G18 & \"\"","v":""}]
[null,null,null,null,null,null,null,null,null,null,null,null,null,null,null,null,null,null,null,null,null,null,null,null,null,null,null,null,null,null,null,null,null,null,null,null,null,null,null,null,null,null,null,null,null,null,null,null,"作業者区分（下欄記号）",null,null,null,null,null,null,null,null,null,null,null,"放射線発生源（下欄記号）",null,null,null,null,null,null,null,null,null,null,null,null,null,"バッジ番号"]
[null,null,null,null,null,null,null,null,null,null,null,null,null,null,null,null,null,null,null,null,null,null,null,null,null,null,null,null,null,null,null,null,null,null,null,null,null,null,null,null,null,null,null,null,null,null,null,null,{"$f":"IF(ISNA(入力シート!AA44),\"\",入力シート!AA44)","v":""},null,null,null,null,null,null,null,null,null,null,null,{"$f":"IF(ISNA(入力シート!AA45),\"\",入力シート!AA45)","v":""}]
["）"]
[null,null,null,null,null,null,null,null,null,null,null,null,null,null,null,null,null,null,null,null,null,null,null,null,null,null,null,null,null,null,null,null,null,null,null,null,null,null,null,null,null,null,null,null,null,null,null,null,"作業者区分",null,null,null,null,null,null,null,null,null,null,null,"作業種類",null,null,null,null,null,null,null,null,null,null,null,null,null,"放射線発生源"]
[null,null,null,null,null,null,null,null,null,null,null,null,null,null,null,null,null,null,null,null,null,null,null,null,null,null,null,null,null,null,null,null,null,null,null,null,null,null,null,null,null,null,null,null,null,null,null,null,"A 職員\nB 常用用員\nC 臨時用員\nD 嘱託、\n  特別研究員、\n  出向職員、\n  専門研究員、\n  ﾘｻｰﾁﾌｪﾛｰ、\n  博士研究員、\n  任期付職員、\n  技術開発協力員、\n  特定課題推進員等\nE 非常勤職員\nF 役員\n",null,null,null,null,null,"G 外来研究員\nH 客員研究員\nI 協力研究員\nJ 開放研、\n  共同利用\n  研究協力\nK 特別研究生\nL 学生研究生\nM 実習生\nN 留学生\nO 研修生\nQ 検査官\nS 年間契約に\n  基づく請負業者\nT S以外の請負業者",null,null,null,null,null,"A 研究・開発\nB 原子炉等の運転\nC 原子炉等の保守\nD 一般機械等の運転\nE RI等の製造、加工\nF RI等の分析、検査\nG RI等の輸送\nH RI等の保管、管理\nI 放射線管理、\n  安全管理\nJ 構内保安管理",null,null,null,null,null,null,"K 施設等の建設、\n  工事、解体\nL 管理区域内の清掃\nM 管理区域内の除染\nN 原子炉、\n  RI等の教育\nO 健康診断、医療\nP 機器等の製造、\n  管理\nQ 物品等の管理\nR 施設等の査察、\n  視察\nS 防護隊",null,null,null,null,null,null,"A 原子炉及び臨界集合体\nB 核燃料物質\n（核燃料による汚染物質を含む）\nC 密封されたRI（廃棄物を含む）\nD 非密封のRI（廃棄物を含む）\nE 加速器（電子顕微鏡を含む）\nF X線発生装置\nG 医療用X線発生装置\nH 核融合装置及びこれに付置\n  する加速器\n- 特定せず"]
[]
[]
[]
[]
[]
["注意事項"]
[null,"１．OSLバッジを必ず添付すること。\n２．借用中のOSLリングバッジ等がある場合は、同時に返却手続きを行うこと。\n３．職員等で、退職・出向・出向解除に伴い指定解除する場合は、放射線管理手帳にその旨を記入すること。"]
[]
[null,null,null,null,null,null,null,null,null,null,null,null,null,null,null,null,null,null,null,null,null,null,null,null,null,null,null,null,null,null,null,null,null,null,null,null,null,null,null,null,null,null,null,null,null,null,null,null,null,null,null,null,null,null,null,null,null,null,null,null,null,"原子炉等：加速器、核融合装置、廃棄物処理装置及びホットラボ等を含む\nRI等　　：核燃料及び廃棄物を含む"]
[]
[]
["被ばく管理担当課記入欄"]
[]
["測定線量\n(mSv)",null,null,null,null,null,null,"γ(X)",null,null,null,null,null,null,null,null,null,null,null,null,"n",null,null,null,null,null,null,null,null,null,null,null,null,"β",null,null,null,null,null,null,null,null,null,null,null,null,null,null,null,null,null,null,null,null,null,null,null,null,null,null,null,null,"被ばく管理担当部",null,null,null,null,null,null,null,null,null,null,null,"作業担当部"]
[null,null,null,null,null,null,null,{"$f":"\"\" & 入力シート!G51","v":""},null,null,null,null,null,null,null,null,null,null,null,null,{"$f":"\"\" & 入力シート!G52","v":""},null,null,null,null,null,null,null,null,null,null,null,null,{"$f":"\"\" & 入力シート!G53","v":""},null,null,null,null,null,null,null,null,null,null,null,null,null,null,null,null,null,null,null,null,null,null,null,null,null,null,null,null,"部長",null,null,null,null,"課長",null,null,null,null,null,null,"部長等",null,null,null,null,"課長等"]
[]
[null,null,null,null,null,null,null,null,null,null,null,null,null,null,null,null,null,null,null,null,null,null,null,null,null,null,null,null,null,null,null,null,null,"測定値確認",null,null,null,null,null,null,null,null,null,null,null,null,null,null,null,null,null,null,null,null,null,null,null,null,null,null,null,null,null,null,null,null,null,null,null,null,null,null,"←"]
[null,null,null,null,null,null,null,null,null,null,null,null,null,null,null,null,null,null,null,null,null,null,null,null,null,null,null,null,null,null,null,null,null,"印"]
[]
["日　　本　　原　　子　　力　　研　　究　　開　　発　　機　　構"]

{"sheet":"指定解除依頼書②","index":2,"n_rows":46,"n_cols":82,"rows_kept":46,"cut":false,"hidden":false,"merged":[[45,0,45,83],[20,0,22,1],[23,0,23,1],[12,67,12,68],[14,48,15,73],[21,48,21,59],[22,48,23,59],[10,64,10,65],[10,62,10,63],[40,74,40,78],[40,79,40,83],[39,74,39,83],[22,76,23,77],[22,80,23,81],[21,74,21,83],[16,68,16,73],[16,48,16,67],[10,53,11,53],[10,54,11,55],[10,56,11,56],[10,57,11,58],[10,59,11,59],[12,70,12,71],[25,54,36,59],[9,74,9,79],[9,80,9,83],[24,74,24,83],[34,61,36,82],[25,67,33,73],[22,60,23,73],[12,76,12,79],[13,48,13,73],[14,74,15,83],[17,74,20,83],[22,74,23,75],[22,78,23,79],[12,80,12,83],[11,80,11,83],[10,80,10,83],[10,74,10,75],[11,74,11,75],[12,74,12,75],[10,76,10,79],[11,76,11,79],[13,74,13,83],[16,74,16,83],[22,82,23,83],[25,74,33,83],[2,48,2,83],[4,78,4,79],[4,81,4,83],[7,81,7,83],[6,74,8,77],[3,74,5,77],[7,78,7,79],[6,48,6,64],[6,65,6,73],[4,48,5,73],[3,65,3,72],[25,60,33,66],[18,68,20,73],[17,48,20,67],[25,48,36,53],[24,48,24,59],[24,60,24,73],[21,60,21,73],[17,68,17,73],[0,2,0,35],[1,2,1,35],[2,0,2,47],[3,0,3,17],[3,36,3,47],[3,23,3,35],[4,42,6,43],[4,46,6,47],[20,2,23,47],[19,36,19,38],[4,8,6,9],[7,0,7,17],[4,14,6,15],[8,0,9,17],[4,2,6,3],[4,4,6,5],[10,70,10,71],[7,48,8,64],[7,65,8,73],[10,49,11,50],[4,44,6,45],[10,0,10,17],[11,30,11,34],[11,24,11,28],[10,67,10,68],[11,0,12,17],[12,64,12,65],[12,62,12,63],[11,61,11,73],[9,61,9,73],[4,10,6,11],[4,12,6,13],[9,18,9,22],[9,23,9,35],[4,0,6,1],[4,6,6,7],[9,48,9,60],[10,51,11,52],[32,1,35,46],[6,32,6,33],[6,24,6,27],[4,38,6,39],[4,40,6,41],[10,18,10,22],[12,18,12,22],[6,29,6,30],[4,36,6,37],[4,16,6,17],[17,2,18,47],[19,2,19,4],[19,6,19,8],[19,10,19,13],[16,2,16,47],[13,1,15,46],[16,0,19,1],[19,44,19,47],[19,32,19,35],[19,40,19,42]]}
[null,null,"指　定　解　除　登　録　依　頼　書　②"]
[null,null,"作業者→作業担当課室"]
["作　業　者　記　入　欄",null,null,null,null,null,null,null,null,null,null,null,null,null,null,null,null,null,null,null,null,null,null,null,null,null,null,null,null,null,null,null,null,null,null,null,null,null,null,null,null,null,null,null,null,null,null,null,"作  業  担  当  課  室  記  入  欄"]
["中　央　登　録　番　号",null,null,null,null,null,null,null,null,null,null,null,null,null,null,null,null,null,null,null,null,null,null,"生年月日（Date of Birth）",null,null,null,null,null,null,null,null,null,null,null,null,"職員番号(職員等のみ)",null,null,null,null,null,null,null,null,null,null,null,"作業担当部部課室(職員等は所属部課室)",null,null,null,null,null,null,null,null,null,null,null,null,null,null,null,null,{"$f":"指定解除依頼書①!BN4","v":""},null,null,null,null,null,null,null,null,"中性子\n線量計"]
[{"$f":"指定解除依頼書①!A5","v":""},null,{"$f":"指定解除依頼書①!C5","v":""},null,"-",null,{"$f":"指定解除依頼書①!G5","v":""},null,{"$f":"指定解除依頼書①!I5","v":""},null,{"$f":"指定解除依頼書①!K5","v":""},null,{"$f":"指定解除依頼書①!M5","v":""},null,{"$f":"指定解除依頼書①!O5","v":""},null,{"$f":"指定解除依頼書①!Q5","v":""},null,null,null,null,null,null,null,null,null,null,null,null,null,null,null,null,null,null,null,{"$f":"指定解除依頼書①!AK5","v":""},null,{"$f":"指定解除依頼書①!AM5","v":""},null,{"$f":"指定解除依頼書①!AO5","v":""},null,{"$f":"指定解除依頼書①!AQ5","v":""},null,{"$f":"指定解除依頼書①!AS5","v":""},null,{"$f":"指定解除依頼書①!AU5","v":""},null,{"$f":"指定解除依頼書①!AW5","v":""},null,null,null,null,null,null,null,null,null,null,null,null,null,null,null,null,null,null,null,null,null,null,null,null,null,null,null,null,null,{"$f":"指定解除依頼書①!CA5","v":"□有"},null,"・",{"$f":"指定解除依頼書①!CD5","v":"□無"}]
[]
[null,null,null,null,null,null,null,null,null,null,null,null,null,null,null,null,null,null,null,null,null,null,null,null,{"$f":"指定解除依頼書①!Y7","v":""},null,null,null,"年",{"$f":"指定解除依頼書①!AD7","v":""},null,"月",{"$f":"指定解除依頼書①!AG7","v":""},null,"日",null,null,null,null,null,null,null,null,null,null,null,null,null,"担当者",null,null,null,null,null,null,null,null,null,null,null,null,null,null,null,null,"TEL",null,null,null,null,null,null,null,null,"内部被ばく\n退域検査"]
["フリガナ（姓名間は空白）",null,null,null,null,null,null,null,null,null,null,null,null,null,null,null,null,null,null,null,null,null,null,null,null,null,null,null,null,null,null,null,null,null,null,null,null,null,null,null,null,null,null,null,null,null,null,null,{"$f":"指定解除依頼書①!AW8","v":""},null,null,null,null,null,null,null,null,null,null,null,null,null,null,null,null,{"$f":"指定解除依頼書①!BN8","v":""},null,null,null,null,null,null,null,null,null,null,null,null,{"$f":"指定解除依頼書①!CA8","v":"□要"},null,"・",{"$f":"指定解除依頼書①!CD8","v":"□不要"}]
[{"$f":"指定解除依頼書①!A9","v":" "}]
[null,null,null,null,null,null,null,null,null,null,null,null,null,null,null,null,null,null,"性　別",null,null,null,null,"国籍区分",null,null,null,null,null,null,null,null,null,null,null,null,null,null,null,null,null,null,null,null,null,null,null,null,"指定年月日",null,null,null,null,null,null,null,null,null,null,null,null,"指定解除予定年月日",null,null,null,null,null,null,null,null,null,null,null,null,"推定線量",null,null,null,null,null,"推定方法"]
["氏名（Name:Family First Middle）",null,null,null,null,null,null,null,null,null,null,null,null,null,null,null,null,null,{"$f":"指定解除依頼書①!S11","v":"□ 男（M）"},null,null,null,null,null,null,null,null,null,null,null,null,null,null,null,null,null,null,null,null,null,null,null,null,null,null,null,null,null,null,{"$f":"指定解除依頼書①!AX11","v":"平成"},null,{"$f":"指定解除依頼書①!AZ11","v":""},null,"年",{"$f":"指定解除依頼書①!BC11","v":""},null,"月",{"$f":"指定解除依頼書①!BF11","v":""},null,"日",null,null,{"$f":"指定解除依頼書①!BK11","v":"平成"},null,{"$f":"指定解除依頼書①!BM11","v":""},null,"年",{"$f":"指定解除依頼書①!BP11","v":""},null,"月",{"$f":"指定解除依頼書①!BS11","v":""},null,"日",null,"γ",null,{"$f":"指定解除依頼書①!BY11","v":""},null,null,null,{"$f":"指定解除依頼書①!CC11","v":"□ P D"}]
[{"$f":"指定解除依頼書①!A12","v":""},null,null,null,null,null,null,null,null,null,null,null,null,null,null,null,null,null,null,null,"・",null,null,null,{"$f":"指定解除依頼書①!Y12","v":"□ 55.日本人"},null,null,null,null,null,{"$f":"指定解除依頼書①!AE12","v":"□ 80.外国人"},null,null,null,null,null,null,null,null,null,null,null,null,null,null,null,null,null,null,null,null,null,null,null,null,null,null,null,null,null,null,"指定解除年月日",null,null,null,null,null,null,null,null,null,null,null,null,"n",null,{"$f":"指定解除依頼書①!BY12","v":""},null,null,null,{"$f":"指定解除依頼書①!CC12","v":"□ TLD"}]
[null,null,null,null,null,null,null,null,null,null,null,null,null,null,null,null,null,null,{"$f":"指定解除依頼書①!S13","v":"□ 女（F）"},null,null,null,null,null,null,null,null,null,null,null,null,null,null,null,null,null,null,null,null,null,null,null,null,null,null,null,null,null,null,null,null,null,null,null,null,null,null,null,null,null,null,null,{"$f":"指定解除依頼書①!BK13","v":"平成"},null,{"$f":"指定解除依頼書①!BM13","v":""},null,"年",{"$f":"指定解除依頼書①!BP13","v":""},null,"月",{"$f":"指定解除依頼書①!BS13","v":""},null,"日",null,"β",null,{"$f":"指定解除依頼書①!BY13","v":""},null,null,null,{"$f":"指定解除依頼書①!CC13","v":"□計算"}]
[null,"　本依頼書に記載した個人情報は、個人被ばく管理システム及び放射線従事者中央登録センターへの登録処理が行われます。登録された情報は、被ばく記録の散逸防止や正確な被ばく前歴の把握などの一元管理に利用されます。なお、これらの情報は個人情報保護法に基づいて適切な管理が行われます。",null,null,null,null,null,null,null,null,null,null,null,null,null,null,null,null,null,null,null,null,null,null,null,null,null,null,null,null,null,null,null,null,null,null,null,null,null,null,null,null,null,null,null,null,null,null,"作業場所"]
[null,null,null,null,null,null,null,null,null,null,null,null,null,null,null,null,null,null,null,null,null,null,null,null,null,null,null,null,null,null,null,null,null,null,null,null,null,null,null,null,null,null,null,null,null,null,null,null,{"$f":"指定解除依頼書①!AW15","v":""}]
[]
["会社等（",null,"会社名（機構との契約先である会社又は大学等）",null,null,null,null,null,null,null,null,null,null,null,null,null,null,null,null,null,null,null,null,null,null,null,null,null,null,null,null,null,null,null,null,null,null,null,null,null,null,null,null,null,null,null,null,null,"作業内容",null,null,null,null,null,null,null,null,null,null,null,null,null,null,null,null,null,null,null,"作業種類",null,null,null,null,null,"被ばく管理担当課記入欄"]
[null,null,{"$f":"指定解除依頼書①!C18","v":"　"},null,null,null,null,null,null,null,null,null,null,null,null,null,null,null,null,null,null,null,null,null,null,null,null,null,null,null,null,null,null,null,null,null,null,null,null,null,null,null,null,null,null,null,null,null,{"$f":"指定解除依頼書①!AW18","v":""},null,null,null,null,null,null,null,null,null,null,null,null,null,null,null,null,null,null,null,"（下欄記号）"]
[null,null,null,null,null,null,null,null,null,null,null,null,null,null,null,null,null,null,null,null,null,null,null,null,null,null,null,null,null,null,null,null,null,null,null,null,null,null,null,null,null,null,null,null,null,null,null,null,null,null,null,null,null,null,null,null,null,null,null,null,null,null,null,null,null,null,null,null,{"$f":"指定解除依頼書①!BQ19","v":""}]
[null,null,"所在地",null,null,"〒",{"$f":"指定解除依頼書①!G20","v":""},null,null,"-",{"$f":"指定解除依頼書①!K20","v":""},null,null,null,null,null,null,null,null,null,null,null,null,null,null,null,null,null,null,null,null,null,"電話番号",null,null,null,{"$f":"指定解除依頼書①!AK20","v":""},null,null,"(",{"$f":"指定解除依頼書①!AO20","v":""},null,null,")",{"$f":"指定解除依頼書①!AS20","v":""}]
["は不要職員等",null,{"$f":"指定解除依頼書①!C21","v":""}]
[null,null,null,null,null,null,null,null,null,null,null,null,null,null,null,null,null,null,null,null,null,null,null,null,null,null,null,null,null,null,null,null,null,null,null,null,null,null,null,null,null,null,null,null,null,null,null,null,"作業者区分（下欄記号）",null,null,null,null,null,null,null,null,null,null,null,"放射線発生源（下欄記号）",null,null,null,null,null,null,null,null,null,null,null,null,null,"バッジ番号"]
[null,null,null,null,null,null,null,null,null,null,null,null,null,null,null,null,null,null,null,null,null,null,null,null,null,null,null,null,null,null,null,null,null,null,null,null,null,null,null,null,null,null,null,null,null,null,null,null,{"$f":"指定解除依頼書①!AW23","v":""},null,null,null,null,null,null,null,null,null,null,null,{"$f":"指定解除依頼書①!BI23","v":""}]
["）"]
[null,null,null,null,null,null,null,null,null,null,null,null,null,null,null,null,null,null,null,null,null,null,null,null,null,null,null,null,null,null,null,null,null,null,null,null,null,null,null,null,null,null,null,null,null,null,null,null,"作業者区分",null,null,null,null,null,null,null,null,null,null,null,"作業種類",null,null,null,null,null,null,null,null,null,null,null,null,null,"放射線発生源"]
[null,null,null,null,null,null,null,null,null,null,null,null,null,null,null,null,null,null,null,null,null,null,null,null,null,null,null,null,null,null,null,null,null,null,null,null,null,null,null,null,null,null,null,null,null,null,null,null,"A 職員\nB 常用用員\nC 臨時用員\nD 嘱託、\n  特別研究員、\n  出向職員、\n  専門研究員、\n  ﾘｻｰﾁﾌｪﾛｰ、\n  博士研究員、\n  任期付職員、\n  技術開発協力員、\n  特定課題推進員等\nE 非常勤職員\nF 役員\n",null,null,null,null,null,"G 外来研究員\nH 客員研究員\nI 協力研究員\nJ 開放研、\n  共同利用\n  研究協力\nK 特別研究生\nL 学生研究生\nM 実習生\nN 留学生\nO 研修生\nQ 検査官\nS 年間契約に\n  基づく請負業者\nT S以外の請負業者",null,null,null,null,null,"A 研究・開発\nB 原子炉等の運転\nC 原子炉等の保守\nD 一般機械等の運転\nE RI等の製造、加工\nF RI等の分析、検査\nG RI等の輸送\nH RI等の保管、管理\nI 放射線管理、\n  安全管理\nJ 構内保安管理",null,null,null,null,null,null,"K 施設等の建設、\n  工事、解体\nL 管理区域内の清掃\nM 管理区域内の除染\nN 原子炉、\n  RI等の教育\nO 健康診断、医療\nP 機器等の製造、\n  管理\nQ 物品等の管理\nR 施設等の査察、\n  視察\nS 防護隊",null,null,null,null,null,null,"A 原子炉及び臨界集合体\nB 核燃料物質\n（核燃料による汚染物質を含む）\nC 密封されたRI（廃棄物を含む）\nD 非密封のRI（廃棄物を含む）\nE 加速器（電子顕微鏡を含む）\nF X線発生装置\nG 医療用X線発生装置\nH 核融合装置及びこれに付置\n  する加速器\n- 特定せず"]
[]
[]
[]
[]
[]
["注意事項"]
[null,"１．OSLバッジを必ず添付すること。\n２．借用中のOSLリングバッジ等がある場合は、同時に返却手続きを行うこと。\n３．職員等で、退職・出向・出向解除に伴い指定解除する場合は、放射線管理手帳にその旨を記入すること。"]
[]
[null,null,null,null,null,null,null,null,null,null,null,null,null,null,null,null,null,null,null,null,null,null,null,null,null,null,null,null,null,null,null,null,null,null,null,null,null,null,null,null,null,null,null,null,null,null,null,null,null,null,null,null,null,null,null,null,null,null,null,null,null,"原子炉等：加速器、核融合装置、廃棄物処理装置及びホットラボ等を含む\nRI等　　：核燃料及び廃棄物を含む"]
[]
[]
[]
[]
[null,null,null,null,null,null,null,null,null,null,null,null,null,null,null,null,null,null,null,null,null,null,null,null,null,null,null,null,null,null,null,null,null,null,null,null,null,null,null,null,null,null,null,null,null,null,null,null,null,null,null,null,null,null,null,null,null,null,null,null,null,null,null,null,null,null,null,null,null,null,null,null,null,null,"作業担当部"]
[null,null,null,null,null,null,null,null,null,null,null,null,null,null,null,null,null,null,null,null,null,null,null,null,null,null,null,null,null,null,null,null,null,null,null,null,null,null,null,null,null,null,null,null,null,null,null,null,null,null,null,null,null,null,null,null,null,null,null,null,null,null,null,null,null,null,null,null,null,null,null,null,null,null,"部長等",null,null,null,null,"課長等"]
[]
[]
[]
[]
["日　　本　　原　　子　　力　　研　　究　　開　　発　　機　　構"]

{"sheet":"指定解除依頼書③","index":3,"n_rows":46,"n_cols":82,"rows_kept":46,"cut":false,"hidden":false,"merged":[[45,0,45,83],[10,51,11,52],[4,42,6,43],[10,49,11,50],[32,1,35,46],[6,32,6,33],[6,24,6,27],[4,38,6,39],[4,40,6,41],[10,53,11,53],[4,8,6,9],[7,0,7,17],[4,14,6,15],[8,0,9,17],[4,2,6,3],[4,4,6,5],[4,0,6,1],[4,6,6,7],[4,10,6,11],[4,12,6,13],[25,54,36,59],[25,60,33,66],[19,44,19,47],[18,68,20,73],[24,60,24,73],[25,67,33,73],[22,60,23,73],[17,68,17,73],[40,74,40,78],[40,79,40,83],[0,2,0,35],[1,2,1,35],[2,0,2,47],[3,0,3,17],[3,36,3,47],[3,23,3,35],[16,2,16,47],[17,2,18,47],[19,2,19,4],[13,1,15,46],[16,0,19,1],[4,36,6,37],[4,16,6,17],[10,18,10,22],[4,46,6,47],[4,44,6,45],[6,29,6,30],[9,18,9,22],[13,74,13,83],[16,74,16,83],[39,74,39,83],[22,82,23,83],[25,74,33,83],[24,74,24,83],[34,61,36,82],[13,48,13,73],[16,68,16,73],[16,48,16,67],[14,74,15,83],[17,74,20,83],[22,76,23,77],[22,80,23,81],[21,74,21,83],[22,74,23,75],[22,78,23,79],[22,48,23,59],[21,60,21,73],[14,48,15,73],[21,48,21,59],[17,48,20,67],[25,48,36,53],[24,48,24,59],[2,48,2,83],[4,78,4,79],[4,81,4,83],[7,81,7,83],[6,74,8,77],[3,74,5,77],[7,78,7,79],[6,48,6,64],[4,48,5,73],[7,48,8,64],[12,76,12,79],[10,54,11,55],[10,56,11,56],[10,57,11,58],[3,65,3,72],[9,74,9,79],[9,80,9,83],[12,80,12,83],[11,80,11,83],[10,80,10,83],[10,74,10,75],[11,74,11,75],[12,74,12,75],[10,76,10,79],[11,76,11,79],[12,70,12,71],[12,64,12,65],[12,62,12,63],[12,67,12,68],[6,65,6,73],[11,61,11,73],[10,64,10,65],[10,62,10,63],[10,67,10,68],[10,70,10,71],[9,61,9,73],[9,48,9,60],[7,65,8,73],[20,0,22,1],[23,0,23,1],[19,32,19,35],[19,40,19,42],[19,36,19,38],[19,6,19,8],[19,10,19,13],[20,2,23,47],[10,59,11,59],[9,23,9,35],[10,0,10,17],[11,30,11,34],[11,24,11,28],[11,0,12,17],[12,18,12,22]]}
[null,null,"指　定　解　除　登　録　依　頼　書　③"]
[null,null,"作業者→作業担当課室→区域管理者"]
["作　業　者　記　入　欄",null,null,null,null,null,null,null,null,null,null,null,null,null,null,null,null,null,null,null,null,null,null,null,null,null,null,null,null,null,null,null,null,null,null,null,null,null,null,null,null,null,null,null,null,null,null,null,"作  業  担  当  課  室  記  入  欄"]
["中　央　登　録　番　号",null,null,null,null,null,null,null,null,null,null,null,null,null,null,null,null,null,null,null,null,null,null,"生年月日（Date of Birth）",null,null,null,null,null,null,null,null,null,null,null,null,"職員番号(職員等のみ)",null,null,null,null,null,null,null,null,null,null,null,"作業担当部部課室(職員等は所属部課室)",null,null,null,null,null,null,null,null,null,null,null,null,null,null,null,null,{"$f":"指定解除依頼書①!BN4","v":""},null,null,null,null,null,null,null,null,"中性子\n線量計"]
[{"$f":"指定解除依頼書①!A5","v":""},null,{"$f":"指定解除依頼書①!C5","v":""},null,"-",null,{"$f":"指定解除依頼書①!G5","v":""},null,{"$f":"指定解除依頼書①!I5","v":""},null,{"$f":"指定解除依頼書①!K5","v":""},null,{"$f":"指定解除依頼書①!M5","v":""},null,{"$f":"指定解除依頼書①!O5","v":""},null,{"$f":"指定解除依頼書①!Q5","v":""},null,null,null,null,null,null,null,null,null,null,null,null,null,null,null,null,null,null,null,{"$f":"指定解除依頼書①!AK5","v":""},null,{"$f":"指定解除依頼書①!AM5","v":""},null,{"$f":"指定解除依頼書①!AO5","v":""},null,{"$f":"指定解除依頼書①!AQ5","v":""},null,{"$f":"指定解除依頼書①!AS5","v":""},null,{"$f":"指定解除依頼書①!AU5","v":""},null,{"$f":"指定解除依頼書①!AW5","v":""},null,null,null,null,null,null,null,null,null,null,null,null,null,null,null,null,null,null,null,null,null,null,null,null,null,null,null,null,null,{"$f":"指定解除依頼書①!CA5","v":"□有"},null,"・",{"$f":"指定解除依頼書①!CD5","v":"□無"}]
[]
[null,null,null,null,null,null,null,null,null,null,null,null,null,null,null,null,null,null,null,null,null,null,null,null,{"$f":"指定解除依頼書①!Y7","v":""},null,null,null,"年",{"$f":"指定解除依頼書①!AD7","v":""},null,"月",{"$f":"指定解除依頼書①!AG7","v":""},null,"日",null,null,null,null,null,null,null,null,null,null,null,null,null,"担当者",null,null,null,null,null,null,null,null,null,null,null,null,null,null,null,null,"TEL",null,null,null,null,null,null,null,null,"内部被ばく\n退域検査"]
["フリガナ（姓名間は空白）",null,null,null,null,null,null,null,null,null,null,null,null,null,null,null,null,null,null,null,null,null,null,null,null,null,null,null,null,null,null,null,null,null,null,null,null,null,null,null,null,null,null,null,null,null,null,null,{"$f":"指定解除依頼書①!AW8","v":""},null,null,null,null,null,null,null,null,null,null,null,null,null,null,null,null,{"$f":"指定解除依頼書①!BN8","v":""},null,null,null,null,null,null,null,null,null,null,null,null,{"$f":"指定解除依頼書①!CA8","v":"□要"},null,"・",{"$f":"指定解除依頼書①!CD8","v":"□不要"}]
[{"$f":"指定解除依頼書①!A9","v":" "}]
[null,null,null,null,null,null,null,null,null,null,null,null,null,null,null,null,null,null,"性　別",null,null,null,null,"国籍区分",null,null,null,null,null,null,null,null,null,null,null,null,null,null,null,null,null,null,null,null,null,null,null,null,"指定年月日",null,null,null,null,null,null,null,null,null,null,null,null,"指定解除予定年月日",null,null,null,null,null,null,null,null,null,null,null,null,"推定線量",null,null,null,null,null,"推定方法"]
["氏名（Name:Family First Middle）",null,null,null,null,null,null,null,null,null,null,null,null,null,null,null,null,null,{"$f":"指定解除依頼書①!S11","v":"□ 男（M）"},null,null,null,null,null,null,null,null,null,null,null,null,null,null,null,null,null,null,null,null,null,null,null,null,null,null,null,null,null,null,{"$f":"指定解除依頼書①!AX11","v":"平成"},null,{"$f":"指定解除依頼書①!AZ11","v":""},null,"年",{"$f":"指定解除依頼書①!BC11","v":""},null,"月",{"$f":"指定解除依頼書①!BF11","v":""},null,"日",null,null,{"$f":"指定解除依頼書①!BK11","v":"平成"},null,{"$f":"指定解除依頼書①!BM11","v":""},null,"年",{"$f":"指定解除依頼書①!BP11","v":""},null,"月",{"$f":"指定解除依頼書①!BS11","v":""},null,"日",null,"γ",null,{"$f":"指定解除依頼書①!BY11","v":""},null,null,null,{"$f":"指定解除依頼書①!CC11","v":"□ P D"}]
[{"$f":"指定解除依頼書①!A12","v":""},null,null,null,null,null,null,null,null,null,null,null,null,null,null,null,null,null,null,null,"・",null,null,null,{"$f":"指定解除依頼書①!Y12","v":"□ 55.日本人"},null,null,null,null,null,{"$f":"指定解除依頼書①!AE12","v":"□ 80.外国人"},null,null,null,null,null,null,null,null,null,null,null,null,null,null,null,null,null,null,null,null,null,null,null,null,null,null,null,null,null,null,"指定解除年月日",null,null,null,null,null,null,null,null,null,null,null,null,"n",null,{"$f":"指定解除依頼書①!BY12","v":""},null,null,null,{"$f":"指定解除依頼書①!CC12","v":"□ TLD"}]
[null,null,null,null,null,null,null,null,null,null,null,null,null,null,null,null,null,null,{"$f":"指定解除依頼書①!S13","v":"□ 女（F）"},null,null,null,null,null,null,null,null,null,null,null,null,null,null,null,null,null,null,null,null,null,null,null,null,null,null,null,null,null,null,null,null,null,null,null,null,null,null,null,null,null,null,null,{"$f":"指定解除依頼書①!BK13","v":"平成"},null,{"$f":"指定解除依頼書①!BM13","v":""},null,"年",{"$f":"指定解除依頼書①!BP13","v":""},null,"月",{"$f":"指定解除依頼書①!BS13","v":""},null,"日",null,"β",null,{"$f":"指定解除依頼書①!BY13","v":""},null,null,null,{"$f":"指定解除依頼書①!CC13","v":"□計算"}]
[null,"　本依頼書に記載した個人情報は、個人被ばく管理システム及び放射線従事者中央登録センターへの登録処理が行われます。登録された情報は、被ばく記録の散逸防止や正確な被ばく前歴の把握などの一元管理に利用されます。なお、これらの情報は個人情報保護法に基づいて適切な管理が行われます。",null,null,null,null,null,null,null,null,null,null,null,null,null,null,null,null,null,null,null,null,null,null,null,null,null,null,null,null,null,null,null,null,null,null,null,null,null,null,null,null,null,null,null,null,null,null,"作業場所"]
[null,null,null,null,null,null,null,null,null,null,null,null,null,null,null,null,null,null,null,null,null,null,null,null,null,null,null,null,null,null,null,null,null,null,null,null,null,null,null,null,null,null,null,null,null,null,null,null,{"$f":"指定解除依頼書①!AW15","v":""}]
[]
["会社等（",null,"会社名（機構との契約先である会社又は大学等）",null,null,null,null,null,null,null,null,null,null,null,null,null,null,null,null,null,null,null,null,null,null,null,null,null,null,null,null,null,null,null,null,null,null,null,null,null,null,null,null,null,null,null,null,null,"作業内容",null,null,null,null,null,null,null,null,null,null,null,null,null,null,null,null,null,null,null,"作業種類",null,null,null,null,null,"被ばく管理担当課記入欄"]
[null,null,{"$f":"指定解除依頼書①!C18","v":"　"},null,null,null,null,null,null,null,null,null,null,null,null,null,null,null,null,null,null,null,null,null,null,null,null,null,null,null,null,null,null,null,null,null,null,null,null,null,null,null,null,null,null,null,null,null,{"$f":"指定解除依頼書①!AW18","v":""},null,null,null,null,null,null,null,null,null,null,null,null,null,null,null,null,null,null,null,"（下欄記号）"]
[null,null,null,null,null,null,null,null,null,null,null,null,null,null,null,null,null,null,null,null,null,null,null,null,null,null,null,null,null,null,null,null,null,null,null,null,null,null,null,null,null,null,null,null,null,null,null,null,null,null,null,null,null,null,null,null,null,null,null,null,null,null,null,null,null,null,null,null,{"$f":"指定解除依頼書①!BQ19","v":""}]
[null,null,"所在地",null,null,"〒",{"$f":"指定解除依頼書①!G20","v":""},null,null,"-",{"$f":"指定解除依頼書①!K20","v":""},null,null,null,null,null,null,null,null,null,null,null,null,null,null,null,null,null,null,null,null,null,"電話番号",null,null,null,{"$f":"指定解除依頼書①!AK20","v":""},null,null,"(",{"$f":"指定解除依頼書①!AO20","v":""},null,null,")",{"$f":"指定解除依頼書①!AS20","v":""}]
["は不要職員等",null,{"$f":"指定解除依頼書①!C21","v":""}]
[null,null,null,null,null,null,null,null,null,null,null,null,null,null,null,null,null,null,null,null,null,null,null,null,null,null,null,null,null,null,null,null,null,null,null,null,null,null,null,null,null,null,null,null,null,null,null,null,"作業者区分（下欄記号）",null,null,null,null,null,null,null,null,null,null,null,"放射線発生源（下欄記号）",null,null,null,null,null,null,null,null,null,null,null,null,null,"バッジ番号"]
[null,null,null,null,null,null,null,null,null,null,null,null,null,null,null,null,null,null,null,null,null,null,null,null,null,null,null,null,null,null,null,null,null,null,null,null,null,null,null,null,null,null,null,null,null,null,null,null,{"$f":"指定解除依頼書①!AW23","v":""},null,null,null,null,null,null,null,null,null,null,null,{"$f":"指定解除依頼書①!BI23","v":""}]
["）"]
[null,null,null,null,null,null,null,null,null,null,null,null,null,null,null,null,null,null,null,null,null,null,null,null,null,null,null,null,null,null,null,null,null,null,null,null,null,null,null,null,null,null,null,null,null,null,null,null,"作業者区分",null,null,null,null,null,null,null,null,null,null,null,"作業種類",null,null,null,null,null,null,null,null,null,null,null,null,null,"放射線発生源"]
[null,null,null,null,null,null,null,null,null,null,null,null,null,null,null,null,null,null,null,null,null,null,null,null,null,null,null,null,null,null,null,null,null,null,null,null,null,null,null,null,null,null,null,null,null,null,null,null,"A 職員\nB 常用用員\nC 臨時用員\nD 嘱託、\n  特別研究員、\n  出向職員、\n  専門研究員、\n  ﾘｻｰﾁﾌｪﾛｰ、\n  博士研究員、\n  任期付職員、\n  技術開発協力員、\n  特定課題推進員等\nE 非常勤職員\nF 役員\n",null,null,null,null,null,"G 外来研究員\nH 客員研究員\nI 協力研究員\nJ 開放研、\n  共同利用\n  研究協力\nK 特別研究生\nL 学生研究生\nM 実習生\nN 留学生\nO 研修生\nQ 検査官\nS 年間契約に\n  基づく請負業者\nT S以外の請負業者",null,null,null,null,null,"A 研究・開発\nB 原子炉等の運転\nC 原子炉等の保守\nD 一般機械等の運転\nE RI等の製造、加工\nF RI等の分析、検査\nG RI等の輸送\nH RI等の保管、管理\nI 放射線管理、\n  安全管理\nJ 構内保安管理",null,null,null,null,null,null,"K 施設等の建設、\n  工事、解体\nL 管理区域内の清掃\nM 管理区域内の除染\nN 原子炉、\n  RI等の教育\nO 健康診断、医療\nP 機器等の製造、\n  管理\nQ 物品等の管理\nR 施設等の査察、\n  視察\nS 防護隊",null,null,null,null,null,null,"A 原子炉及び臨界集合体\nB 核燃料物質\n（核燃料による汚染物質を含む）\nC 密封されたRI（廃棄物を含む）\nD 非密封のRI（廃棄物を含む）\nE 加速器（電子顕微鏡を含む）\nF X線発生装置\nG 医療用X線発生装置\nH 核融合装置及びこれに付置\n  する加速器\n- 特定せず"]
[]
[]
[]
[]
[]
["注意事項"]
[null,"１．OSLバッジを必ず添付すること。\n２．借用中のOSLリングバッジ等がある場合は、同時に返却手続きを行うこと。\n３．職員等で、退職・出向・出向解除に伴い指定解除する場合は、放射線管理手帳にその旨を記入すること。"]
[]
[null,null,null,null,null,null,null,null,null,null,null,null,null,null,null,null,null,null,null,null,null,null,null,null,null,null,null,null,null,null,null,null,null,null,null,null,null,null,null,null,null,null,null,null,null,null,null,null,null,null,null,null,null,null,null,null,null,null,null,null,null,"原子炉等：加速器、核融合装置、廃棄物処理装置及びホットラボ等を含む\nRI等　　：核燃料及び廃棄物を含む"]
[]
[]
[]
[]
[null,null,null,null,null,null,null,null,null,null,null,null,null,null,null,null,null,null,null,null,null,null,null,null,null,null,null,null,null,null,null,null,null,null,null,null,null,null,null,null,null,null,null,null,null,null,null,null,null,null,null,null,null,null,null,null,null,null,null,null,null,null,null,null,null,null,null,null,null,null,null,null,null,null,"作業担当部"]
[null,null,null,null,null,null,null,null,null,null,null,null,null,null,null,null,null,null,null,null,null,null,null,null,null,null,null,null,null,null,null,null,null,null,null,null,null,null,null,null,null,null,null,null,null,null,null,null,null,null,null,null,null,null,null,null,null,null,null,null,null,null,null,null,null,null,null,null,null,null,null,null,null,null,"部長等",null,null,null,null,"課長等"]
[]
[]
[]
[]
["日　　本　　原　　子　　力　　研　　究　　開　　発　　機　　構"]

{"sheet":"記号項目","index":4,"n_rows":907,"n_cols":18,"rows_kept":907,"cut":false,"hidden":false,"merged":[]}
["大正",1,1,"A","研究・開発",{"$f":"D1&\"．\"&E1","v":"A．研究・開発"},"A","職員",{"$f":"G1&\"．\"&H1","v":"A．職員"},"A","原子炉及び臨界集合体",{"$f":"J1&\"．\"&K1","v":"A．原子炉及び臨界集合体"},"BA1","（旧）第１研究棟",{"$f":"M1&\"．\"&N1","v":"BA1．（旧）第１研究棟"},"組織コード","課室名",{"$f":"P1&\"．\"&Q1","v":"組織コード．課室名"}]
["昭和",2,2,"B","原子炉等の運転","B．原子炉等の運転","B","常用","B．常用","B","核燃料物質(汚染物質を含む)","B．核燃料物質(汚染物質を含む)","BA2","第２研究棟","BA2．第２研究棟",null,null,"．"]
["平成",3,3,"C","原子炉等の保守","C．原子炉等の保守","C","臨時","C．臨時","C","密封されたRI(廃棄物を含む)","C．密封されたRI(廃棄物を含む)","BA3","（旧）第３研究棟","BA3．（旧）第３研究棟",null,null,"．"]
["西暦",4,4,"D","一般機械等の運転","D．一般機械等の運転","D","嘱特出","D．嘱特出","D","非密封のRI(廃棄物)","D．非密封のRI(廃棄物)","BA4","荒谷台診療所","BA4．荒谷台診療所",null,null,"．"]
[null,5,5,"E","RI等の製造、加工","E．RI等の製造、加工","E","非常勤","E．非常勤","E","加速器(電子顕微鏡を含む)","E．加速器(電子顕微鏡を含む)","BA5","放射線標準施設棟","BA5．放射線標準施設棟",null,null,"．"]
[null,6,6,"F","RI等の分析、検査","F．RI等の分析、検査","F","役員","F．役員","F","X線発生装置","F．X線発生装置","BA6","第４研究棟","BA6．第４研究棟",null,null,"．"]
[null,7,7,"G","RI等の輸送","G．RI等の輸送","G","外来研","G．外来研","G","医療用X線発生装置","G．医療用X線発生装置","BA7","（旧）体内ＲＩ分析建","BA7．（旧）体内ＲＩ分析建",null,null,"．"]
[null,8,8,"H","RI等の保管、管理","H．RI等の保管、管理","H","客員研","H．客員研","H","核融合装置および付置する加速器","H．核融合装置および付置する加速器","BB1","（旧）ＦＥＬ（２Ｍ）","BB1．（旧）ＦＥＬ（２Ｍ）",null,null,"．"]
[null,9,9,"I","放射線管理、安全管理","I．放射線管理、安全管理","I","協力研","I．協力研","-","特定せず(構内全域のため)","-．特定せず(構内全域のため)","BB2","ＦＥＬ研究棟（５Ｍ）","BB2．ＦＥＬ研究棟（５Ｍ）",null,null,"．"]
[null,10,10,"J","構内、船内の保安管理","J．構内、船内の保安管理","J","開放研","J．開放研","*","不明","*．不明","BB3","タンデム加速器建家","BB3．タンデム加速器建家",null,null,"．"]
[null,11,11,"K","施設等の建設、工事","K．施設等の建設、工事","K","特別研","K．特別研","","","","BB4","超高圧電子顕微鏡建家","BB4．超高圧電子顕微鏡建家",null,null,"．"]
[null,12,12,"L","管理区域の清掃","L．管理区域の清掃","L","学生研","L．学生研",null,null,null,"BB5","工作工場","BB5．工作工場",null,null,"．"]
[null,null,13,"M","管理区域の除染","M．管理区域の除染","M","実習生","M．実習生",null,null,null,"BB6","使用済燃料貯蔵施設","BB6．使用済燃料貯蔵施設",null,null,"．"]
[null,null,14,"N","原子炉、RI等の教育","N．原子炉、RI等の教育","N","留学生","N．留学生",null,null,null,"BB7","（旧）廃棄物埋設実","BB7．（旧）廃棄物埋設実",null,null,"．"]
[null,null,15,"O","健康診断、医療","O．健康診断、医療","O","研修生","O．研修生",null,null,null,"BB8","第２保管廃棄施設","BB8．第２保管廃棄施設",null,null,"．"]
[null,null,16,"P","機器等の製造、管理","P．機器等の製造、管理","Q","検査官","Q．検査官",null,null,null,"BC1","（旧）セラミック特研","BC1．（旧）セラミック特研",null,null,"．"]
[null,null,17,"Q","物品の管理","Q．物品の管理","R","見学者","R．見学者",null,null,null,"BC2","（旧）冶金特研","BC2．（旧）冶金特研",null,null,"．"]
[null,null,18,"R","施設の査察","R．施設の査察","S","請負1","S．請負1",null,null,null,"BC3","材料試験室","BC3．材料試験室",null,null,"．"]
[null,null,19,"S","防護隊","S．防護隊","T","請負2","T．請負2",null,null,null,"BC4","（旧）非破壊測定実験","BC4．（旧）非破壊測定実験",null,null,"．"]
[null,null,20,"*","不明","*．不明","*","不明","*．不明",null,null,null,"BC5","（旧）ＪＦＴ－２建家","BC5．（旧）ＪＦＴ－２建家",null,null,"．"]
[null,null,21,"","","","","","",null,null,null,"BC6","（旧）核融合特研","BC6．（旧）核融合特研",null,null,"．"]
[null,null,22,null,null,null,null,null,null,null,null,null,"BD1","（旧）機械化工特研","BD1．（旧）機械化工特研",null,null,"．"]
[null,null,23,null,null,null,null,null,null,null,null,null,"BD2","（旧）高温ガスループ","BD2．（旧）高温ガスループ",null,null,"．"]
[null,null,24,null,null,null,null,null,null,null,null,null,"BD3","モックアップ建家","BD3．モックアップ建家",null,null,"．"]
[null,null,25,null,null,null,null,null,null,null,null,null,"BD4","（旧）ＶＨＴＲＣ","BD4．（旧）ＶＨＴＲＣ",null,null,"．"]
[null,null,26,null,null,null,null,null,null,null,null,null,"BD5","（旧）ＡＨＲ","BD5．（旧）ＡＨＲ",null,null,"．"]
[null,null,27,null,null,null,null,null,null,null,null,null,"BD6","原子炉特研","BD6．原子炉特研",null,null,"．"]
[null,null,28,null,null,null,null,null,null,null,null,null,"BD7","（旧）化学実験室","BD7．（旧）化学実験室",null,null,"．"]
[null,null,29,null,null,null,null,null,null,null,null,null,"BD8","（旧）同位体分離施設","BD8．（旧）同位体分離施設",null,null,"．"]
[null,null,30,null,null,null,null,null,null,null,null,null,"BD9","（旧）開発試験室４室","BD9．（旧）開発試験室４室",null,null,"．"]
[null,null,31,null,null,null,null,null,null,null,null,null,"BE1","（旧）Ｃｏ６０照射室","BE1．（旧）Ｃｏ６０照射室",null,null,"．"]
[null,null,null,null,null,null,null,null,null,null,null,null,"BE2","リニアック建家","BE2．リニアック建家",null,null,"．"]
[null,null,null,null,null,null,null,null,null,null,null,null,"BE3","ＪＲＲ－１",{"$f":"M33&\"．\"&N33","v":"BE3．ＪＲＲ－１"},null,null,"．"]
[null,null,null,null,null,null,null,null,null,null,null,null,"BE4","原科研　ホットラボ","BE4．原科研　ホットラボ",null,null,"．"]
[null,null,null,null,null,null,null,null,null,null,null,null,"BE5","ＪＲＲ－２","BE5．ＪＲＲ－２",null,null,"．"]
[null,null,null,null,null,null,null,null,null,null,null,null,"BE6","（旧）炉管理部格納庫","BE6．（旧）炉管理部格納庫",null,null,"．"]
[null,null,null,null,null,null,null,null,null,null,null,null,"BE7","核燃料倉庫","BE7．核燃料倉庫",null,null,"．"]
[null,null,null,null,null,null,null,null,null,null,null,null,"BE8","ＪＲＲ３実験利用２棟","BE8．ＪＲＲ３実験利用２棟",null,null,"．"]
[null,null,null,null,null,null,null,null,null,null,null,null,"BE9","陽子加速器開発棟","BE9．陽子加速器開発棟",null,null,"．"]
[null,null,null,null,null,null,null,null,null,null,null,null,"BF1","ＲＩ製造棟","BF1．ＲＩ製造棟",null,null,"．"]
[null,null,null,null,null,null,null,null,null,null,null,null,"BF2","（旧）梱包発送室","BF2．（旧）梱包発送室",null,null,"．"]
[null,null,null,null,null,null,null,null,null,null,null,null,"BF3","ＪＲＲ－３","BF3．ＪＲＲ－３",null,null,"．"]
[null,null,null,null,null,null,null,null,null,null,null,null,"BF4","ＪＲＲ－４","BF4．ＪＲＲ－４",null,null,"．"]
[null,null,null,null,null,null,null,null,null,null,null,null,"BF5","（旧）高温工学特研","BF5．（旧）高温工学特研",null,null,"．"]
[null,null,null,null,null,null,null,null,null,null,null,null,"BF6","（旧）高温構造機器棟","BF6．（旧）高温構造機器棟",null,null,"．"]
[null,null,null,null,null,null,null,null,null,null,null,null,"BF7","トリチウムプロセス棟","BF7．トリチウムプロセス棟",null,null,"．"]
[null,null,null,null,null,null,null,null,null,null,null,null,"BF8","高度環境分析研究棟","BF8．高度環境分析研究棟",null,null,"．"]
[null,null,null,null,null,null,null,null,null,null,null,null,"BG1","（旧）ナトリウム特研","BG1．（旧）ナトリウム特研",null,null,"．"]
[null,null,null,null,null,null,null,null,null,null,null,null,"BG2","プルトニウム研究１棟","BG2．プルトニウム研究１棟",null,null,"．"]
[null,null,null,null,null,null,null,null,null,null,null,null,"BG3","（旧）フッ素実験室","BG3．（旧）フッ素実験室",null,null,"．"]
[null,null,null,null,null,null,null,null,null,null,null,null,"BH1","再処理特別研究棟","BH1．再処理特別研究棟",null,null,"．"]
[null,null,null,null,null,null,null,null,null,null,null,null,"BH2","（旧）プル研究２棟","BH2．（旧）プル研究２棟",null,null,"．"]
[null,null,null,null,null,null,null,null,null,null,null,null,"BH3","（旧）再処理試験室","BH3．（旧）再処理試験室",null,null,"．"]
[null,null,null,null,null,null,null,null,null,null,null,null,"BH4","原科研　廃棄物処理場","BH4．原科研　廃棄物処理場",null,null,"．"]
[null,null,null,null,null,null,null,null,null,null,null,null,"BH5","汚染除去場","BH5．汚染除去場",null,null,"．"]
[null,null,null,null,null,null,null,null,null,null,null,null,"BH6","廃棄物安全試験施設","BH6．廃棄物安全試験施設",null,null,"．"]
[null,null,null,null,null,null,null,null,null,null,null,null,"BH7","環境シミュレーション","BH7．環境シミュレーション",null,null,"．"]
[null,null,null,null,null,null,null,null,null,null,null,null,"BH8","（旧）ＮＵＣＥＦ","BH8．（旧）ＮＵＣＥＦ",null,null,"．"]
[null,null,null,null,null,null,null,null,null,null,null,null,"BI1","廃液操作室（含再処理","BI1．廃液操作室（含再処理",null,null,"．"]
[null,null,null,null,null,null,null,null,null,null,null,null,"BI2","ウラン濃縮研究棟","BI2．ウラン濃縮研究棟",null,null,"．"]
[null,null,null,null,null,null,null,null,null,null,null,null,"BI3","廃液長期貯蔵施設","BI3．廃液長期貯蔵施設",null,null,"．"]
[null,null,null,null,null,null,null,null,null,null,null,null,"BI4","（旧）廃処理処分開発","BI4．（旧）廃処理処分開発",null,null,"．"]
[null,null,null,null,null,null,null,null,null,null,null,null,"BI5","（旧）ＲＡＮＤＥＦ棟","BI5．（旧）ＲＡＮＤＥＦ棟",null,null,"．"]
[null,null,null,null,null,null,null,null,null,null,null,null,"BI6","ＳＴＡＣＹ","BI6．ＳＴＡＣＹ",null,null,"．"]
[null,null,null,null,null,null,null,null,null,null,null,null,"BI7","ＴＲＡＣＹ",{"$f":"M65&\"．\"&N65","v":"BI7．ＴＲＡＣＹ"},null,null,{"$f":"P65&\"．\"&Q65","v":"．"}]
[null,null,null,null,null,null,null,null,null,null,null,null,"BI8","ＢＥＣＫＹ","BI8．ＢＥＣＫＹ",null,null,"．"]
[null,null,null,null,null,null,null,null,null,null,null,null,"BJ1","ＦＣＡ","BJ1．ＦＣＡ",null,null,"．"]
[null,null,null,null,null,null,null,null,null,null,null,null,"BJ2","ＴＣＡ","BJ2．ＴＣＡ",null,null,"．"]
[null,null,null,null,null,null,null,null,null,null,null,null,"BJ3","（旧）ＪＰＤＲ","BJ3．（旧）ＪＰＤＲ",null,null,"．"]
[null,null,null,null,null,null,null,null,null,null,null,null,"BJ4","（旧）電源特会施設","BJ4．（旧）電源特会施設",null,null,"．"]
[null,null,null,null,null,null,null,null,null,null,null,null,"BJ5","ＮＳＲＲ","BJ5．ＮＳＲＲ",null,null,"．"]
[null,null,null,null,null,null,null,null,null,null,null,null,"BJ6","燃料試験施設","BJ6．燃料試験施設",null,null,"．"]
[null,null,null,null,null,null,null,null,null,null,null,null,"BJ7","（旧）大型再冠水実験","BJ7．（旧）大型再冠水実験",null,null,"．"]
[null,null,null,null,null,null,null,null,null,null,null,null,"BJ8","ＦＮＳ建家","BJ8．ＦＮＳ建家",null,null,"．"]
[null,null,null,null,null,null,null,null,null,null,null,null,"BJ9","（旧）配管信頼性試験","BJ9．（旧）配管信頼性試験",null,null,"．"]
[null,null,null,null,null,null,null,null,null,null,null,null,"BK1","（旧）２相流ループ実","BK1．（旧）２相流ループ実",null,null,"．"]
[null,null,null,null,null,null,null,null,null,null,null,null,"BK2","大型非定常ループ棟","BK2．大型非定常ループ棟",null,null,"．"]
[null,null,null,null,null,null,null,null,null,null,null,null,"BK3","保証措置技術開発施設","BK3．保証措置技術開発施設",null,null,"．"]
[null,null,null,null,null,null,null,null,null,null,null,null,"BK4","バックエンド技術開発","BK4．バックエンド技術開発",null,null,"．"]
[null,null,null,null,null,null,null,null,null,null,null,null,"BK5","核物質防護実習","BK5．核物質防護実習",null,null,"．"]
[null,null,null,null,null,null,null,null,null,null,null,null,"BL1","Ｊ－Ｐリニアック棟","BL1．Ｊ－Ｐリニアック棟",null,null,"．"]
[null,null,null,null,null,null,null,null,null,null,null,null,"BZ9","原科研　構内全域","BZ9．原科研　構内全域",null,null,"．"]
[null,null,null,null,null,null,null,null,null,null,null,null,"","","",null,null,"．"]
[null,null,null,null,null,null,null,null,null,null,null,null,null,null,null,null,null,"．"]
[null,null,null,null,null,null,null,null,null,null,null,null,null,null,null,null,null,"．"]
[null,null,null,null,null,null,null,null,null,null,null,null,null,null,null,null,null,"．"]
[null,null,null,null,null,null,null,null,null,null,null,null,null,null,null,null,null,"．"]
[null,null,null,null,null,null,null,null,null,null,null,null,null,null,null,null,null,"．"]
[null,null,null,null,null,null,null,null,null,null,null,null,null,null,null,null,null,"．"]
[null,null,null,null,null,null,null,null,null,null,null,null,null,null,null,null,null,"．"]
[null,null,null,null,null,null,null,null,null,null,null,null,null,null,null,null,null,"．"]
[null,null,null,null,null,null,null,null,null,null,null,null,null,null,null,null,null,"．"]
[null,null,null,null,null,null,null,null,null,null,null,null,null,null,null,null,null,"．"]
[null,null,null,null,null,null,null,null,null,null,null,null,null,null,null,null,null,"．"]
[null,null,null,null,null,null,null,null,null,null,null,null,null,null,null,null,null,"．"]
[null,null,null,null,null,null,null,null,null,null,null,null,null,null,null,null,null,"．"]
[null,null,null,null,null,null,null,null,null,null,null,null,null,null,null,null,null,"．"]
[null,null,null,null,null,null,null,null,null,null,null,null,null,null,null,null,null,"．"]
[null,null,null,null,null,null,null,null,null,null,null,null,null,null,null,null,null,"．"]
[null,null,null,null,null,null,null,null,null,null,null,null,null,null,null,null,null,"．"]
[null,null,null,null,null,null,null,null,null,null,null,null,null,null,null,null,null,"．"]
[null,null,null,null,null,null,null,null,null,null,null,null,null,null,null,null,null,"．"]
[null,null,null,null,null,null,null,null,null,null,null,null,null,null,null,null,null,"．"]
[null,null,null,null,null,null,null,null,null,null,null,null,null,null,null,null,null,"．"]
[null,null,null,null,null,null,null,null,null,null,null,null,null,null,null,null,null,"．"]
[null,null,null,null,null,null,null,null,null,null,null,null,null,null,null,null,null,"．"]
[null,null,null,null,null,null,null,null,null,null,null,null,null,null,null,null,null,"．"]
[null,null,null,null,null,null,null,null,null,null,null,null,null,null,null,null,null,"．"]
[null,null,null,null,null,null,null,null,null,null,null,null,null,null,null,null,null,"．"]
[null,null,null,null,null,null,null,null,null,null,null,null,null,null,null,null,null,"．"]
[null,null,null,null,null,null,null,null,null,null,null,null,null,null,null,null,null,"．"]
[null,null,null,null,null,null,null,null,null,null,null,null,null,null,null,null,null,"．"]
[null,null,null,null,null,null,null,null,null,null,null,null,null,null,null,null,null,"．"]
[null,null,null,null,null,null,null,null,null,null,null,null,null,null,null,null,null,"．"]
[null,null,null,null,null,null,null,null,null,null,null,null,null,null,null,null,null,"．"]
[null,null,null,null,null,null,null,null,null,null,null,null,null,null,null,null,null,"．"]
[null,null,null,null,null,null,null,null,null,null,null,null,null,null,null,null,null,"．"]
[null,null,null,null,null,null,null,null,null,null,null,null,null,null,null,null,null,"．"]
[null,null,null,null,null,null,null,null,null,null,null,null,null,null,null,null,null,"．"]
[null,null,null,null,null,null,null,null,null,null,null,null,null,null,null,null,null,"．"]
[null,null,null,null,null,null,null,null,null,null,null,null,null,null,null,null,null,"．"]
[null,null,null,null,null,null,null,null,null,null,null,null,null,null,null,null,null,"．"]
[null,null,null,null,null,null,null,null,null,null,null,null,null,null,null,null,null,"．"]
[null,null,null,null,null,null,null,null,null,null,null,null,null,null,null,null,null,"．"]
[null,null,null,null,null,null,null,null,null,null,null,null,null,null,null,null,null,"．"]
[null,null,null,null,null,null,null,null,null,null,null,null,null,null,null,null,null,"．"]
[null,null,null,null,null,null,null,null,null,null,null,null,null,null,null,null,null,"．"]
[null,null,null,null,null,null,null,null,null,null,null,null,null,null,null,null,null,"．"]
[null,null,null,null,null,null,null,null,null,null,null,null,null,null,null,null,null,{"$f":"P129&\"．\"&Q129","v":"．"}]
[null,null,null,null,null,null,null,null,null,null,null,null,null,null,null,null,null,"．"]
[null,null,null,null,null,null,null,null,null,null,null,null,null,null,null,null,null,"．"]
[null,null,null,null,null,null,null,null,null,null,null,null,null,null,null,null,null,"．"]
[null,null,null,null,null,null,null,null,null,null,null,null,null,null,null,null,null,"．"]
[null,null,null,null,null,null,null,null,null,null,null,null,null,null,null,null,null,"．"]
[null,null,null,null,null,null,null,null,null,null,null,null,null,null,null,null,null,"．"]
[null,null,null,null,null,null,null,null,null,null,null,null,null,null,null,null,null,"．"]
[null,null,null,null,null,null,null,null,null,null,null,null,null,null,null,null,null,"．"]
[null,null,null,null,null,null,null,null,null,null,null,null,null,null,null,null,null,"．"]
[null,null,null,null,null,null,null,null,null,null,null,null,null,null,null,null,null,"．"]
[null,null,null,null,null,null,null,null,null,null,null,null,null,null,null,null,null,"．"]
[null,null,null,null,null,null,null,null,null,null,null,null,null,null,null,null,null,"．"]
[null,null,null,null,null,null,null,null,null,null,null,null,null,null,null,null,null,"．"]
[null,null,null,null,null,null,null,null,null,null,null,null,null,null,null,null,null,"．"]
[null,null,null,null,null,null,null,null,null,null,null,null,null,null,null,null,null,"．"]
[null,null,null,null,null,null,null,null,null,null,null,null,null,null,null,null,null,"．"]
[null,null,null,null,null,null,null,null,null,null,null,null,null,null,null,null,null,"．"]
[null,null,null,null,null,null,null,null,null,null,null,null,null,null,null,null,null,"．"]
[null,null,null,null,null,null,null,null,null,null,null,null,null,null,null,null,null,"．"]
[null,null,null,null,null,null,null,null,null,null,null,null,null,null,null,null,null,"．"]
[null,null,null,null,null,null,null,null,null,null,null,null,null,null,null,null,null,"．"]
[null,null,null,null,null,null,null,null,null,null,null,null,null,null,null,null,null,"．"]
[null,null,null,null,null,null,null,null,null,null,null,null,null,null,null,null,null,"．"]
[null,null,null,null,null,null,null,null,null,null,null,null,null,null,null,null,null,"．"]
[null,null,null,null,null,null,null,null,null,null,null,null,null,null,null,null,null,"．"]
[null,null,null,null,null,null,null,null,null,null,null,null,null,null,null,null,null,"．"]
[null,null,null,null,null,null,null,null,null,null,null,null,null,null,null,null,null,"．"]
[null,null,null,null,null,null,null,null,null,null,null,null,null,null,null,null,null,"．"]
[null,null,null,null,null,null,null,null,null,null,null,null,null,null,null,null,null,"．"]
[null,null,null,null,null,null,null,null,null,null,null,null,null,null,null,null,null,"．"]
[null,null,null,null,null,null,null,null,null,null,null,null,null,null,null,null,null,"．"]
[null,null,null,null,null,null,null,null,null,null,null,null,null,null,null,null,null,"．"]
[null,null,null,null,null,null,null,null,null,null,null,null,null,null,null,null,null,"．"]
[null,null,null,null,null,null,null,null,null,null,null,null,null,null,null,null,null,"．"]
[null,null,null,null,null,null,null,null,null,null,null,null,null,null,null,null,null,"．"]
[null,null,null,null,null,null,null,null,null,null,null,null,null,null,null,null,null,"．"]
[null,null,null,null,null,null,null,null,null,null,null,null,null,null,null,null,null,"．"]
[null,null,null,null,null,null,null,null,null,null,null,null,null,null,null,null,null,"．"]
[null,null,null,null,null,null,null,null,null,null,null,null,null,null,null,null,null,"．"]
[null,null,null,null,null,null,null,null,null,null,null,null,null,null,null,null,null,"．"]
[null,null,null,null,null,null,null,null,null,null,null,null,null,null,null,null,null,"．"]
[null,null,null,null,null,null,null,null,null,null,null,null,null,null,null,null,null,"．"]
[null,null,null,null,null,null,null,null,null,null,null,null,null,null,null,null,null,"．"]
[null,null,null,null,null,null,null,null,null,null,null,null,null,null,null,null,null,"．"]
[null,null,null,null,null,null,null,null,null,null,null,null,null,null,null,null,null,"．"]
[null,null,null,null,null,null,null,null,null,null,null,null,null,null,null,null,null,"．"]
[null,null,null,null,null,null,null,null,null,null,null,null,null,null,null,null,null,"．"]
[null,null,null,null,null,null,null,null,null,null,null,null,null,null,null,null,null,"．"]
[null,null,null,null,null,null,null,null,null,null,null,null,null,null,null,null,null,"．"]
[null,null,null,null,null,null,null,null,null,null,null,null,null,null,null,null,null,"．"]
[null,null,null,null,null,null,null,null,null,null,null,null,null,null,null,null,null,"．"]
[null,null,null,null,null,null,null,null,null,null,null,null,null,null,null,null,null,"．"]
[null,null,null,null,null,null,null,null,null,null,null,null,null,null,null,null,null,"．"]
[null,null,null,null,null,null,null,null,null,null,null,null,null,null,null,null,null,"．"]
[null,null,null,null,null,null,null,null,null,null,null,null,null,null,null,null,null,"．"]
[null,null,null,null,null,null,null,null,null,null,null,null,null,null,null,null,null,"．"]
[null,null,null,null,null,null,null,null,null,null,null,null,null,null,null,null,null,"．"]
[null,null,null,null,null,null,null,null,null,null,null,null,null,null,null,null,null,"．"]
[null,null,null,null,null,null,null,null,null,null,null,null,null,null,null,null,null,"．"]
[null,null,null,null,null,null,null,null,null,null,null,null,null,null,null,null,null,"．"]
[null,null,null,null,null,null,null,null,null,null,null,null,null,null,null,null,null,"．"]
[null,null,null,null,null,null,null,null,null,null,null,null,null,null,null,null,null,"．"]
[null,null,null,null,null,null,null,null,null,null,null,null,null,null,null,null,null,"．"]
[null,null,null,null,null,null,null,null,null,null,null,null,null,null,null,null,null,{"$f":"P193&\"．\"&Q193","v":"．"}]
[null,null,null,null,null,null,null,null,null,null,null,null,null,null,null,null,null,"．"]
[null,null,null,null,null,null,null,null,null,null,null,null,null,null,null,null,null,"．"]
[null,null,null,null,null,null,null,null,null,null,null,null,null,null,null,null,null,"．"]
[null,null,null,null,null,null,null,null,null,null,null,null,null,null,null,null,null,"．"]
[null,null,null,null,null,null,null,null,null,null,null,null,null,null,null,null,null,"．"]
[null,null,null,null,null,null,null,null,null,null,null,null,null,null,null,null,null,"．"]
[null,null,null,null,null,null,null,null,null,null,null,null,null,null,null,null,null,"．"]
[null,null,null,null,null,null,null,null,null,null,null,null,null,null,null,null,null,"．"]
[null,null,null,null,null,null,null,null,null,null,null,null,null,null,null,null,null,"．"]
[null,null,null,null,null,null,null,null,null,null,null,null,null,null,null,null,null,"．"]
[null,null,null,null,null,null,null,null,null,null,null,null,null,null,null,null,null,"．"]
[null,null,null,null,null,null,null,null,null,null,null,null,null,null,null,null,null,"．"]
[null,null,null,null,null,null,null,null,null,null,null,null,null,null,null,null,null,"．"]
[null,null,null,null,null,null,null,null,null,null,null,null,null,null,null,null,null,"．"]
[null,null,null,null,null,null,null,null,null,null,null,null,null,null,null,null,null,"．"]
[null,null,null,null,null,null,null,null,null,null,null,null,null,null,null,null,null,"．"]
[null,null,null,null,null,null,null,null,null,null,null,null,null,null,null,null,null,"．"]
[null,null,null,null,null,null,null,null,null,null,null,null,null,null,null,null,null,"．"]
[null,null,null,null,null,null,null,null,null,null,null,null,null,null,null,null,null,"．"]
[null,null,null,null,null,null,null,null,null,null,null,null,null,null,null,null,null,"．"]
[null,null,null,null,null,null,null,null,null,null,null,null,null,null,null,null,null,"．"]
[null,null,null,null,null,null,null,null,null,null,null,null,null,null,null,null,null,"．"]
[null,null,null,null,null,null,null,null,null,null,null,null,null,null,null,null,null,"．"]
[null,null,null,null,null,null,null,null,null,null,null,null,null,null,null,null,null,"．"]
[null,null,null,null,null,null,null,null,null,null,null,null,null,null,null,null,null,"．"]
[null,null,null,null,null,null,null,null,null,null,null,null,null,null,null,null,null,"．"]
[null,null,null,null,null,null,null,null,null,null,null,null,null,null,null,null,null,"．"]
[null,null,null,null,null,null,null,null,null,null,null,null,null,null,null,null,null,"．"]
[null,null,null,null,null,null,null,null,null,null,null,null,null,null,null,null,null,"．"]
[null,null,null,null,null,null,null,null,null,null,null,null,null,null,null,null,null,"．"]
[null,null,null,null,null,null,null,null,null,null,null,null,null,null,null,null,null,"．"]
[null,null,null,null,null,null,null,null,null,null,null,null,null,null,null,null,null,"．"]
[null,null,null,null,null,null,null,null,null,null,null,null,null,null,null,null,null,"．"]
[null,null,null,null,null,null,null,null,null,null,null,null,null,null,null,null,null,"．"]
[null,null,null,null,null,null,null,null,null,null,null,null,null,null,null,null,null,"．"]
[null,null,null,null,null,null,null,null,null,null,null,null,null,null,null,null,null,"．"]
[null,null,null,null,null,null,null,null,null,null,null,null,null,null,null,null,null,"．"]
[null,null,null,null,null,null,null,null,null,null,null,null,null,null,null,null,null,"．"]
[null,null,null,null,null,null,null,null,null,null,null,null,null,null,null,null,null,"．"]
[null,null,null,null,null,null,null,null,null,null,null,null,null,null,null,null,null,"．"]
[null,null,null,null,null,null,null,null,null,null,null,null,null,null,null,null,null,"．"]
[null,null,null,null,null,null,null,null,null,null,null,null,null,null,null,null,null,"．"]
[null,null,null,null,null,null,null,null,null,null,null,null,null,null,null,null,null,"．"]
[null,null,null,null,null,null,null,null,null,null,null,null,null,null,null,null,null,"．"]
[null,null,null,null,null,null,null,null,null,null,null,null,null,null,null,null,null,"．"]
[null,null,null,null,null,null,null,null,null,null,null,null,null,null,null,null,null,"．"]
[null,null,null,null,null,null,null,null,null,null,null,null,null,null,null,null,null,"．"]
[null,null,null,null,null,null,null,null,null,null,null,null,null,null,null,null,null,"．"]
[null,null,null,null,null,null,null,null,null,null,null,null,null,null,null,null,null,"．"]
[null,null,null,null,null,null,null,null,null,null,null,null,null,null,null,null,null,"．"]
[null,null,null,null,null,null,null,null,null,null,null,null,null,null,null,null,null,"．"]
[null,null,null,null,null,null,null,null,null,null,null,null,null,null,null,null,null,"．"]
[null,null,null,null,null,null,null,null,null,null,null,null,null,null,null,null,null,"．"]
[null,null,null,null,null,null,null,null,null,null,null,null,null,null,null,null,null,"．"]
[null,null,null,null,null,null,null,null,null,null,null,null,null,null,null,null,null,"．"]
[null,null,null,null,null,null,null,null,null,null,null,null,null,null,null,null,null,"．"]
[null,null,null,null,null,null,null,null,null,null,null,null,null,null,null,null,null,"．"]
[null,null,null,null,null,null,null,null,null,null,null,null,null,null,null,null,null,"．"]
[null,null,null,null,null,null,null,null,null,null,null,null,null,null,null,null,null,"．"]
[null,null,null,null,null,null,null,null,null,null,null,null,null,null,null,null,null,"．"]
[null,null,null,null,null,null,null,null,null,null,null,null,null,null,null,null,null,"．"]
[null,null,null,null,null,null,null,null,null,null,null,null,null,null,null,null,null,"．"]
[null,null,null,null,null,null,null,null,null,null,null,null,null,null,null,null,null,"．"]
[null,null,null,null,null,null,null,null,null,null,null,null,null,null,null,null,null,{"$f":"P257&\"．\"&Q257","v":"．"}]
[null,null,null,null,null,null,null,null,null,null,null,null,null,null,null,null,null,"．"]
[null,null,null,null,null,null,null,null,null,null,null,null,null,null,null,null,null,"．"]
[null,null,null,null,null,null,null,null,null,null,null,null,null,null,null,null,null,"．"]
[null,null,null,null,null,null,null,null,null,null,null,null,null,null,null,null,null,"．"]
[null,null,null,null,null,null,null,null,null,null,null,null,null,null,null,null,null,"．"]
[null,null,null,null,null,null,null,null,null,null,null,null,null,null,null,null,null,"．"]
[null,null,null,null,null,null,null,null,null,null,null,null,null,null,null,null,null,"．"]
[null,null,null,null,null,null,null,null,null,null,null,null,null,null,null,null,null,"．"]
[null,null,null,null,null,null,null,null,null,null,null,null,null,null,null,null,null,"．"]
[null,null,null,null,null,null,null,null,null,null,null,null,null,null,null,null,null,"．"]
[null,null,null,null,null,null,null,null,null,null,null,null,null,null,null,null,null,"．"]
[null,null,null,null,null,null,null,null,null,null,null,null,null,null,null,null,null,"．"]
[null,null,null,null,null,null,null,null,null,null,null,null,null,null,null,null,null,"．"]
[null,null,null,null,null,null,null,null,null,null,null,null,null,null,null,null,null,"．"]
[null,null,null,null,null,null,null,null,null,null,null,null,null,null,null,null,null,"．"]
[null,null,null,null,null,null,null,null,null,null,null,null,null,null,null,null,null,"．"]
[null,null,null,null,null,null,null,null,null,null,null,null,null,null,null,null,null,"．"]
[null,null,null,null,null,null,null,null,null,null,null,null,null,null,null,null,null,"．"]
[null,null,null,null,null,null,null,null,null,null,null,null,null,null,null,null,null,"．"]
[null,null,null,null,null,null,null,null,null,null,null,null,null,null,null,null,null,"．"]
[null,null,null,null,null,null,null,null,null,null,null,null,null,null,null,null,null,"．"]
[null,null,null,null,null,null,null,null,null,null,null,null,null,null,null,null,null,"．"]
[null,null,null,null,null,null,null,null,null,null,null,null,null,null,null,null,null,"．"]
[null,null,null,null,null,null,null,null,null,null,null,null,null,null,null,null,null,"．"]
[null,null,null,null,null,null,null,null,null,null,null,null,null,null,null,null,null,"．"]
[null,null,null,null,null,null,null,null,null,null,null,null,null,null,null,null,null,"．"]
[null,null,null,null,null,null,null,null,null,null,null,null,null,null,null,null,null,"．"]
[null,null,null,null,null,null,null,null,null,null,null,null,null,null,null,null,null,"．"]
[null,null,null,null,null,null,null,null,null,null,null,null,null,null,null,null,null,"．"]
[null,null,null,null,null,null,null,null,null,null,null,null,null,null,null,null,null,"．"]
[null,null,null,null,null,null,null,null,null,null,null,null,null,null,null,null,null,"．"]
[null,null,null,null,null,null,null,null,null,null,null,null,null,null,null,null,null,"．"]
[null,null,null,null,null,null,null,null,null,null,null,null,null,null,null,null,null,"．"]
[null,null,null,null,null,null,null,null,null,null,null,null,null,null,null,null,null,"．"]
[null,null,null,null,null,null,null,null,null,null,null,null,null,null,null,null,null,"．"]
[null,null,null,null,null,null,null,null,null,null,null,null,null,null,null,null,null,"．"]
[null,null,null,null,null,null,null,null,null,null,null,null,null,null,null,null,null,"．"]
[null,null,null,null,null,null,null,null,null,null,null,null,null,null,null,null,null,"．"]
[null,null,null,null,null,null,null,null,null,null,null,null,null,null,null,null,null,"．"]
[null,null,null,null,null,null,null,null,null,null,null,null,null,null,null,null,null,"．"]
[null,null,null,null,null,null,null,null,null,null,null,null,null,null,null,null,null,"．"]
[null,null,null,null,null,null,null,null,null,null,null,null,null,null,null,null,null,"．"]
[null,null,null,null,null,null,null,null,null,null,null,null,null,null,null,null,null,"．"]
[null,null,null,null,null,null,null,null,null,null,null,null,null,null,null,null,null,"．"]
[null,null,null,null,null,null,null,null,null,null,null,null,null,null,null,null,null,"．"]
[null,null,null,null,null,null,null,null,null,null,null,null,null,null,null,null,null,"．"]
[null,null,null,null,null,null,null,null,null,null,null,null,null,null,null,null,null,"．"]
[null,null,null,null,null,null,null,null,null,null,null,null,null,null,null,null,null,"．"]
[null,null,null,null,null,null,null,null,null,null,null,null,null,null,null,null,null,"．"]
[null,null,null,null,null,null,null,null,null,null,null,null,null,null,null,null,null,"．"]
[null,null,null,null,null,null,null,null,null,null,null,null,null,null,null,null,null,"．"]
[null,null,null,null,null,null,null,null,null,null,null,null,null,null,null,null,null,"．"]
[null,null,null,null,null,null,null,null,null,null,null,null,null,null,null,null,null,"．"]
[null,null,null,null,null,null,null,null,null,null,null,null,null,null,null,null,null,"．"]
[null,null,null,null,null,null,null,null,null,null,null,null,null,null,null,null,null,"．"]
[null,null,null,null,null,null,null,null,null,null,null,null,null,null,null,null,null,"．"]
[null,null,null,null,null,null,null,null,null,null,null,null,null,null,null,null,null,"．"]
[null,null,null,null,null,null,null,null,null,null,null,null,null,null,null,null,null,"．"]
[null,null,null,null,null,null,null,null,null,null,null,null,null,null,null,null,null,"．"]
[null,null,null,null,null,null,null,null,null,null,null,null,null,null,null,null,null,"．"]
[null,null,null,null,null,null,null,null,null,null,null,null,null,null,null,null,null,"．"]
[null,null,null,null,null,null,null,null,null,null,null,null,null,null,null,null,null,"．"]
[null,null,null,null,null,null,null,null,null,null,null,null,null,null,null,null,null,"．"]
[null,null,null,null,null,null,null,null,null,null,null,null,null,null,null,null,null,{"$f":"P321&\"．\"&Q321","v":"．"}]
[null,null,null,null,null,null,null,null,null,null,null,null,null,null,null,null,null,"．"]
[null,null,null,null,null,null,null,null,null,null,null,null,null,null,null,null,null,"．"]
[null,null,null,null,null,null,null,null,null,null,null,null,null,null,null,null,null,"．"]
[null,null,null,null,null,null,null,null,null,null,null,null,null,null,null,null,null,"．"]
[null,null,null,null,null,null,null,null,null,null,null,null,null,null,null,null,null,"．"]
[null,null,null,null,null,null,null,null,null,null,null,null,null,null,null,null,null,"．"]
[null,null,null,null,null,null,null,null,null,null,null,null,null,null,null,null,null,"．"]
[null,null,null,null,null,null,null,null,null,null,null,null,null,null,null,null,null,"．"]
[null,null,null,null,null,null,null,null,null,null,null,null,null,null,null,null,null,"．"]
[null,null,null,null,null,null,null,null,null,null,null,null,null,null,null,null,null,"．"]
[null,null,null,null,null,null,null,null,null,null,null,null,null,null,null,null,null,"．"]
[null,null,null,null,null,null,null,null,null,null,null,null,null,null,null,null,null,"．"]
[null,null,null,null,null,null,null,null,null,null,null,null,null,null,null,null,null,"．"]
[null,null,null,null,null,null,null,null,null,null,null,null,null,null,null,null,null,"．"]
[null,null,null,null,null,null,null,null,null,null,null,null,null,null,null,null,null,"．"]
[null,null,null,null,null,null,null,null,null,null,null,null,null,null,null,null,null,"．"]
[null,null,null,null,null,null,null,null,null,null,null,null,null,null,null,null,null,"．"]
[null,null,null,null,null,null,null,null,null,null,null,null,null,null,null,null,null,"．"]
[null,null,null,null,null,null,null,null,null,null,null,null,null,null,null,null,null,"．"]
[null,null,null,null,null,null,null,null,null,null,null,null,null,null,null,null,null,"．"]
[null,null,null,null,null,null,null,null,null,null,null,null,null,null,null,null,null,"．"]
[null,null,null,null,null,null,null,null,null,null,null,null,null,null,null,null,null,"．"]
[null,null,null,null,null,null,null,null,null,null,null,null,null,null,null,null,null,"．"]
[null,null,null,null,null,null,null,null,null,null,null,null,null,null,null,null,null,"．"]
[null,null,null,null,null,null,null,null,null,null,null,null,null,null,null,null,null,"．"]
[null,null,null,null,null,null,null,null,null,null,null,null,null,null,null,null,null,"．"]
[null,null,null,null,null,null,null,null,null,null,null,null,null,null,null,null,null,"．"]
[null,null,null,null,null,null,null,null,null,null,null,null,null,null,null,null,null,"．"]
[null,null,null,null,null,null,null,null,null,null,null,null,null,null,null,null,null,"．"]
[null,null,null,null,null,null,null,null,null,null,null,null,null,null,null,null,null,"．"]
[null,null,null,null,null,null,null,null,null,null,null,null,null,null,null,null,null,"．"]
[null,null,null,null,null,null,null,null,null,null,null,null,null,null,null,null,null,"．"]
[null,null,null,null,null,null,null,null,null,null,null,null,null,null,null,null,null,"．"]
[null,null,null,null,null,null,null,null,null,null,null,null,null,null,null,null,null,"．"]
[null,null,null,null,null,null,null,null,null,null,null,null,null,null,null,null,null,"．"]
[null,null,null,null,null,null,null,null,null,null,null,null,null,null,null,null,null,"．"]
[null,null,null,null,null,null,null,null,null,null,null,null,null,null,null,null,null,"．"]
[null,null,null,null,null,null,null,null,null,null,null,null,null,null,null,null,null,"．"]
[null,null,null,null,null,null,null,null,null,null,null,null,null,null,null,null,null,"．"]
[null,null,null,null,null,null,null,null,null,null,null,null,null,null,null,null,null,"．"]
[null,null,null,null,null,null,null,null,null,null,null,null,null,null,null,null,null,"．"]
[null,null,null,null,null,null,null,null,null,null,null,null,null,null,null,null,null,"．"]
[null,null,null,null,null,null,null,null,null,null,null,null,null,null,null,null,null,"．"]
[null,null,null,null,null,null,null,null,null,null,null,null,null,null,null,null,null,"．"]
[null,null,null,null,null,null,null,null,null,null,null,null,null,null,null,null,null,"．"]
[null,null,null,null,null,null,null,null,null,null,null,null,null,null,null,null,null,"．"]
[null,null,null,null,null,null,null,null,null,null,null,null,null,null,null,null,null,"．"]
[null,null,null,null,null,null,null,null,null,null,null,null,null,null,null,null,null,"．"]
[null,null,null,null,null,null,null,null,null,null,null,null,null,null,null,null,null,"．"]
[null,null,null,null,null,null,null,null,null,null,null,null,null,null,null,null,null,"．"]
[null,null,null,null,null,null,null,null,null,null,null,null,null,null,null,null,null,"．"]
[null,null,null,null,null,null,null,null,null,null,null,null,null,null,null,null,null,"．"]
[null,null,null,null,null,null,null,null,null,null,null,null,null,null,null,null,null,"．"]
[null,null,null,null,null,null,null,null,null,null,null,null,null,null,null,null,null,"．"]
[null,null,null,null,null,null,null,null,null,null,null,null,null,null,null,null,null,"．"]
[null,null,null,null,null,null,null,null,null,null,null,null,null,null,null,null,null,"．"]
[null,null,null,null,null,null,null,null,null,null,null,null,null,null,null,null,null,"．"]
[null,null,null,null,null,null,null,null,null,null,null,null,null,null,null,null,null,"．"]
[null,null,null,null,null,null,null,null,null,null,null,null,null,null,null,null,null,"．"]
[null,null,null,null,null,null,null,null,null,null,null,null,null,null,null,null,null,"．"]
[null,null,null,null,null,null,null,null,null,null,null,null,null,null,null,null,null,"．"]
[null,null,null,null,null,null,null,null,null,null,null,null,null,null,null,null,null,"．"]
[null,null,null,null,null,null,null,null,null,null,null,null,null,null,null,null,null,"．"]
[null,null,null,null,null,null,null,null,null,null,null,null,null,null,null,null,null,{"$f":"P385&\"．\"&Q385","v":"．"}]
[null,null,null,null,null,null,null,null,null,null,null,null,null,null,null,null,null,"．"]
[null,null,null,null,null,null,null,null,null,null,null,null,null,null,null,null,null,"．"]
[null,null,null,null,null,null,null,null,null,null,null,null,null,null,null,null,null,"．"]
[null,null,null,null,null,null,null,null,null,null,null,null,null,null,null,null,null,"．"]
[null,null,null,null,null,null,null,null,null,null,null,null,null,null,null,null,null,"．"]
[null,null,null,null,null,null,null,null,null,null,null,null,null,null,null,null,null,"．"]
[null,null,null,null,null,null,null,null,null,null,null,null,null,null,null,null,null,"．"]
[null,null,null,null,null,null,null,null,null,null,null,null,null,null,null,null,null,"．"]
[null,null,null,null,null,null,null,null,null,null,null,null,null,null,null,null,null,"．"]
[null,null,null,null,null,null,null,null,null,null,null,null,null,null,null,null,null,"．"]
[null,null,null,null,null,null,null,null,null,null,null,null,null,null,null,null,null,"．"]
[null,null,null,null,null,null,null,null,null,null,null,null,null,null,null,null,null,"．"]
[null,null,null,null,null,null,null,null,null,null,null,null,null,null,null,null,null,"．"]
[null,null,null,null,null,null,null,null,null,null,null,null,null,null,null,null,null,"．"]
[null,null,null,null,null,null,null,null,null,null,null,null,null,null,null,null,null,"．"]
[null,null,null,null,null,null,null,null,null,null,null,null,null,null,null,null,null,"．"]
[null,null,null,null,null,null,null,null,null,null,null,null,null,null,null,null,null,"．"]
[null,null,null,null,null,null,null,null,null,null,null,null,null,null,null,null,null,"．"]
[null,null,null,null,null,null,null,null,null,null,null,null,null,null,null,null,null,"．"]
[null,null,null,null,null,null,null,null,null,null,null,null,null,null,null,null,null,"．"]
[null,null,null,null,null,null,null,null,null,null,null,null,null,null,null,null,null,"．"]
[null,null,null,null,null,null,null,null,null,null,null,null,null,null,null,null,null,"．"]
[null,null,null,null,null,null,null,null,null,null,null,null,null,null,null,null,null,"．"]
[null,null,null,null,null,null,null,null,null,null,null,null,null,null,null,null,null,"．"]
[null,null,null,null,null,null,null,null,null,null,null,null,null,null,null,null,null,"．"]
[null,null,null,null,null,null,null,null,null,null,null,null,null,null,null,null,null,"．"]
[null,null,null,null,null,null,null,null,null,null,null,null,null,null,null,null,null,"．"]
[null,null,null,null,null,null,null,null,null,null,null,null,null,null,null,null,null,"．"]
[null,null,null,null,null,null,null,null,null,null,null,null,null,null,null,null,null,"．"]
[null,null,null,null,null,null,null,null,null,null,null,null,null,null,null,null,null,"．"]
[null,null,null,null,null,null,null,null,null,null,null,null,null,null,null,null,null,"．"]
[null,null,null,null,null,null,null,null,null,null,null,null,null,null,null,null,null,"．"]
[null,null,null,null,null,null,null,null,null,null,null,null,null,null,null,null,null,"．"]
[null,null,null,null,null,null,null,null,null,null,null,null,null,null,null,null,null,"．"]
[null,null,null,null,null,null,null,null,null,null,null,null,null,null,null,null,null,"．"]
[null,null,null,null,null,null,null,null,null,null,null,null,null,null,null,null,null,"．"]
[null,null,null,null,null,null,null,null,null,null,null,null,null,null,null,null,null,"．"]
[null,null,null,null,null,null,null,null,null,null,null,null,null,null,null,null,null,"．"]
[null,null,null,null,null,null,null,null,null,null,null,null,null,null,null,null,null,"．"]
[null,null,null,null,null,null,null,null,null,null,null,null,null,null,null,null,null,"．"]
[null,null,null,null,null,null,null,null,null,null,null,null,null,null,null,null,null,"．"]
[null,null,null,null,null,null,null,null,null,null,null,null,null,null,null,null,null,"．"]
[null,null,null,null,null,null,null,null,null,null,null,null,null,null,null,null,null,"．"]
[null,null,null,null,null,null,null,null,null,null,null,null,null,null,null,null,null,"．"]
[null,null,null,null,null,null,null,null,null,null,null,null,null,null,null,null,null,"．"]
[null,null,null,null,null,null,null,null,null,null,null,null,null,null,null,null,null,"．"]
[null,null,null,null,null,null,null,null,null,null,null,null,null,null,null,null,null,"．"]
[null,null,null,null,null,null,null,null,null,null,null,null,null,null,null,null,null,"．"]
[null,null,null,null,null,null,null,null,null,null,null,null,null,null,null,null,null,"．"]
[null,null,null,null,null,null,null,null,null,null,null,null,null,null,null,null,null,"．"]
[null,null,null,null,null,null,null,null,null,null,null,null,null,null,null,null,null,"．"]
[null,null,null,null,null,null,null,null,null,null,null,null,null,null,null,null,null,"．"]
[null,null,null,null,null,null,null,null,null,null,null,null,null,null,null,null,null,"．"]
[null,null,null,null,null,null,null,null,null,null,null,null,null,null,null,null,null,"．"]
[null,null,null,null,null,null,null,null,null,null,null,null,null,null,null,null,null,"．"]
[null,null,null,null,null,null,null,null,null,null,null,null,null,null,null,null,null,"．"]
[null,null,null,null,null,null,null,null,null,null,null,null,null,null,null,null,null,"．"]
[null,null,null,null,null,null,null,null,null,null,null,null,null,null,null,null,null,"．"]
[null,null,null,null,null,null,null,null,null,null,null,null,null,null,null,null,null,"．"]
[null,null,null,null,null,null,null,null,null,null,null,null,null,null,null,null,null,"．"]
[null,null,null,null,null,null,null,null,null,null,null,null,null,null,null,null,null,"．"]
[null,null,null,null,null,null,null,null,null,null,null,null,null,null,null,null,null,"．"]
[null,null,null,null,null,null,null,null,null,null,null,null,null,null,null,null,null,"．"]
[null,null,null,null,null,null,null,null,null,null,null,null,null,null,null,null,null,{"$f":"P449&\"．\"&Q449","v":"．"}]
[null,null,null,null,null,null,null,null,null,null,null,null,null,null,null,null,null,"．"]
[null,null,null,null,null,null,null,null,null,null,null,null,null,null,null,null,null,"．"]
[null,null,null,null,null,null,null,null,null,null,null,null,null,null,null,null,null,"．"]
[null,null,null,null,null,null,null,null,null,null,null,null,null,null,null,null,null,"．"]
[null,null,null,null,null,null,null,null,null,null,null,null,null,null,null,null,null,"．"]
[null,null,null,null,null,null,null,null,null,null,null,null,null,null,null,null,null,"．"]
[null,null,null,null,null,null,null,null,null,null,null,null,null,null,null,null,null,"．"]
[null,null,null,null,null,null,null,null,null,null,null,null,null,null,null,null,null,"．"]
[null,null,null,null,null,null,null,null,null,null,null,null,null,null,null,null,null,"．"]
[null,null,null,null,null,null,null,null,null,null,null,null,null,null,null,null,null,"．"]
[null,null,null,null,null,null,null,null,null,null,null,null,null,null,null,null,null,"．"]
[null,null,null,null,null,null,null,null,null,null,null,null,null,null,null,null,null,"．"]
[null,null,null,null,null,null,null,null,null,null,null,null,null,null,null,null,null,"．"]
[null,null,null,null,null,null,null,null,null,null,null,null,null,null,null,null,null,"．"]
[null,null,null,null,null,null,null,null,null,null,null,null,null,null,null,null,null,"．"]
[null,null,null,null,null,null,null,null,null,null,null,null,null,null,null,null,null,"．"]
[null,null,null,null,null,null,null,null,null,null,null,null,null,null,null,null,null,"．"]
[null,null,null,null,null,null,null,null,null,null,null,null,null,null,null,null,null,"．"]
[null,null,null,null,null,null,null,null,null,null,null,null,null,null,null,null,null,"．"]
[null,null,null,null,null,null,null,null,null,null,null,null,null,null,null,null,null,"．"]
[null,null,null,null,null,null,null,null,null,null,null,null,null,null,null,null,null,"．"]
[null,null,null,null,null,null,null,null,null,null,null,null,null,null,null,null,null,"．"]
[null,null,null,null,null,null,null,null,null,null,null,null,null,null,null,null,null,"．"]
[null,null,null,null,null,null,null,null,null,null,null,null,null,null,null,null,null,"．"]
[null,null,null,null,null,null,null,null,null,null,null,null,null,null,null,null,null,"．"]
[null,null,null,null,null,null,null,null,null,null,null,null,null,null,null,null,null,"．"]
[null,null,null,null,null,null,null,null,null,null,null,null,null,null,null,null,null,"．"]
[null,null,null,null,null,null,null,null,null,null,null,null,null,null,null,null,null,"．"]
[null,null,null,null,null,null,null,null,null,null,null,null,null,null,null,null,null,"．"]
[null,null,null,null,null,null,null,null,null,null,null,null,null,null,null,null,null,"．"]
[null,null,null,null,null,null,null,null,null,null,null,null,null,null,null,null,null,"．"]
[null,null,null,null,null,null,null,null,null,null,null,null,null,null,null,null,null,"．"]
[null,null,null,null,null,null,null,null,null,null,null,null,null,null,null,null,null,"．"]
[null,null,null,null,null,null,null,null,null,null,null,null,null,null,null,null,null,"．"]
[null,null,null,null,null,null,null,null,null,null,null,null,null,null,null,null,null,"．"]
[null,null,null,null,null,null,null,null,null,null,null,null,null,null,null,null,null,"．"]
[null,null,null,null,null,null,null,null,null,null,null,null,null,null,null,null,null,"．"]
[null,null,null,null,null,null,null,null,null,null,null,null,null,null,null,null,null,"．"]
[null,null,null,null,null,null,null,null,null,null,null,null,null,null,null,null,null,"．"]
[null,null,null,null,null,null,null,null,null,null,null,null,null,null,null,null,null,"．"]
[null,null,null,null,null,null,null,null,null,null,null,null,null,null,null,null,null,"．"]
[null,null,null,null,null,null,null,null,null,null,null,null,null,null,null,null,null,"．"]
[null,null,null,null,null,null,null,null,null,null,null,null,null,null,null,null,null,"．"]
[null,null,null,null,null,null,null,null,null,null,null,null,null,null,null,null,null,"．"]
[null,null,null,null,null,null,null,null,null,null,null,null,null,null,null,null,null,"．"]
[null,null,null,null,null,null,null,null,null,null,null,null,null,null,null,null,null,"．"]
[null,null,null,null,null,null,null,null,null,null,null,null,null,null,null,null,null,"．"]
[null,null,null,null,null,null,null,null,null,null,null,null,null,null,null,null,null,"．"]
[null,null,null,null,null,null,null,null,null,null,null,null,null,null,null,null,null,"．"]
[null,null,null,null,null,null,null,null,null,null,null,null,null,null,null,null,null,"．"]
[null,null,null,null,null,null,null,null,null,null,null,null,null,null,null,null,null,"．"]
[null,null,null,null,null,null,null,null,null,null,null,null,null,null,null,null,null,"．"]
[null,null,null,null,null,null,null,null,null,null,null,null,null,null,null,null,null,"．"]
[null,null,null,null,null,null,null,null,null,null,null,null,null,null,null,null,null,"．"]
[null,null,null,null,null,null,null,null,null,null,null,null,null,null,null,null,null,"．"]
[null,null,null,null,null,null,null,null,null,null,null,null,null,null,null,null,null,"．"]
[null,null,null,null,null,null,null,null,null,null,null,null,null,null,null,null,null,"．"]
[null,null,null,null,null,null,null,null,null,null,null,null,null,null,null,null,null,"．"]
[null,null,null,null,null,null,null,null,null,null,null,null,null,null,null,null,null,"．"]
[null,null,null,null,null,null,null,null,null,null,null,null,null,null,null,null,null,"．"]
[null,null,null,null,null,null,null,null,null,null,null,null,null,null,null,null,null,"．"]
[null,null,null,null,null,null,null,null,null,null,null,null,null,null,null,null,null,"．"]
[null,null,null,null,null,null,null,null,null,null,null,null,null,null,null,null,null,"．"]
[null,null,null,null,null,null,null,null,null,null,null,null,null,null,null,null,null,{"$f":"P513&\"．\"&Q513","v":"．"}]
[null,null,null,null,null,null,null,null,null,null,null,null,null,null,null,null,null,"．"]
[null,null,null,null,null,null,null,null,null,null,null,null,null,null,null,null,null,"．"]
[null,null,null,null,null,null,null,null,null,null,null,null,null,null,null,null,null,"．"]
[null,null,null,null,null,null,null,null,null,null,null,null,null,null,null,null,null,"．"]
[null,null,null,null,null,null,null,null,null,null,null,null,null,null,null,null,null,"．"]
[null,null,null,null,null,null,null,null,null,null,null,null,null,null,null,null,null,"．"]
[null,null,null,null,null,null,null,null,null,null,null,null,null,null,null,null,null,"．"]
[null,null,null,null,null,null,null,null,null,null,null,null,null,null,null,null,null,"．"]
[null,null,null,null,null,null,null,null,null,null,null,null,null,null,null,null,null,"．"]
[null,null,null,null,null,null,null,null,null,null,null,null,null,null,null,null,null,"．"]
[null,null,null,null,null,null,null,null,null,null,null,null,null,null,null,null,null,"．"]
[null,null,null,null,null,null,null,null,null,null,null,null,null,null,null,null,null,"．"]
[null,null,null,null,null,null,null,null,null,null,null,null,null,null,null,null,null,"．"]
[null,null,null,null,null,null,null,null,null,null,null,null,null,null,null,null,null,"．"]
[null,null,null,null,null,null,null,null,null,null,null,null,null,null,null,null,null,"．"]
[null,null,null,null,null,null,null,null,null,null,null,null,null,null,null,null,null,"．"]
[null,null,null,null,null,null,null,null,null,null,null,null,null,null,null,null,null,"．"]
[null,null,null,null,null,null,null,null,null,null,null,null,null,null,null,null,null,"．"]
[null,null,null,null,null,null,null,null,null,null,null,null,null,null,null,null,null,"．"]
[null,null,null,null,null,null,null,null,null,null,null,null,null,null,null,null,null,"．"]
[null,null,null,null,null,null,null,null,null,null,null,null,null,null,null,null,null,"．"]
[null,null,null,null,null,null,null,null,null,null,null,null,null,null,null,null,null,"．"]
[null,null,null,null,null,null,null,null,null,null,null,null,null,null,null,null,null,"．"]
[null,null,null,null,null,null,null,null,null,null,null,null,null,null,null,null,null,"．"]
[null,null,null,null,null,null,null,null,null,null,null,null,null,null,null,null,null,"．"]
[null,null,null,null,null,null,null,null,null,null,null,null,null,null,null,null,null,"．"]
[null,null,null,null,null,null,null,null,null,null,null,null,null,null,null,null,null,"．"]
[null,null,null,null,null,null,null,null,null,null,null,null,null,null,null,null,null,"．"]
[null,null,null,null,null,null,null,null,null,null,null,null,null,null,null,null,null,"．"]
[null,null,null,null,null,null,null,null,null,null,null,null,null,null,null,null,null,"．"]
[null,null,null,null,null,null,null,null,null,null,null,null,null,null,null,null,null,"．"]
[null,null,null,null,null,null,null,null,null,null,null,null,null,null,null,null,null,"．"]
[null,null,null,null,null,null,null,null,null,null,null,null,null,null,null,null,null,"．"]
[null,null,null,null,null,null,null,null,null,null,null,null,null,null,null,null,null,"．"]
[null,null,null,null,null,null,null,null,null,null,null,null,null,null,null,null,null,"．"]
[null,null,null,null,null,null,null,null,null,null,null,null,null,null,null,null,null,"．"]
[null,null,null,null,null,null,null,null,null,null,null,null,null,null,null,null,null,"．"]
[null,null,null,null,null,null,null,null,null,null,null,null,null,null,null,null,null,"．"]
[null,null,null,null,null,null,null,null,null,null,null,null,null,null,null,null,null,"．"]
[null,null,null,null,null,null,null,null,null,null,null,null,null,null,null,null,null,"．"]
[null,null,null,null,null,null,null,null,null,null,null,null,null,null,null,null,null,"．"]
[null,null,null,null,null,null,null,null,null,null,null,null,null,null,null,null,null,"．"]
[null,null,null,null,null,null,null,null,null,null,null,null,null,null,null,null,null,"．"]
[null,null,null,null,null,null,null,null,null,null,null,null,null,null,null,null,null,"．"]
[null,null,null,null,null,null,null,null,null,null,null,null,null,null,null,null,null,"．"]
[null,null,null,null,null,null,null,null,null,null,null,null,null,null,null,null,null,"．"]
[null,null,null,null,null,null,null,null,null,null,null,null,null,null,null,null,null,"．"]
[null,null,null,null,null,null,null,null,null,null,null,null,null,null,null,null,null,"．"]
[null,null,null,null,null,null,null,null,null,null,null,null,null,null,null,null,null,"．"]
[null,null,null,null,null,null,null,null,null,null,null,null,null,null,null,null,null,"．"]
[null,null,null,null,null,null,null,null,null,null,null,null,null,null,null,null,null,"．"]
[null,null,null,null,null,null,null,null,null,null,null,null,null,null,null,null,null,"．"]
[null,null,null,null,null,null,null,null,null,null,null,null,null,null,null,null,null,"．"]
[null,null,null,null,null,null,null,null,null,null,null,null,null,null,null,null,null,"．"]
[null,null,null,null,null,null,null,null,null,null,null,null,null,null,null,null,null,"．"]
[null,null,null,null,null,null,null,null,null,null,null,null,null,null,null,null,null,"．"]
[null,null,null,null,null,null,null,null,null,null,null,null,null,null,null,null,null,"．"]
[null,null,null,null,null,null,null,null,null,null,null,null,null,null,null,null,null,"．"]
[null,null,null,null,null,null,null,null,null,null,null,null,null,null,null,null,null,"．"]
[null,null,null,null,null,null,null,null,null,null,null,null,null,null,null,null,null,"．"]
[null,null,null,null,null,null,null,null,null,null,null,null,null,null,null,null,null,"．"]
[null,null,null,null,null,null,null,null,null,null,null,null,null,null,null,null,null,"．"]
[null,null,null,null,null,null,null,null,null,null,null,null,null,null,null,null,null,"．"]
[null,null,null,null,null,null,null,null,null,null,null,null,null,null,null,null,null,{"$f":"P577&\"．\"&Q577","v":"．"}]
[null,null,null,null,null,null,null,null,null,null,null,null,null,null,null,null,null,"．"]
[null,null,null,null,null,null,null,null,null,null,null,null,null,null,null,null,null,"．"]
[null,null,null,null,null,null,null,null,null,null,null,null,null,null,null,null,null,"．"]
[null,null,null,null,null,null,null,null,null,null,null,null,null,null,null,null,null,"．"]
[null,null,null,null,null,null,null,null,null,null,null,null,null,null,null,null,null,"．"]
[null,null,null,null,null,null,null,null,null,null,null,null,null,null,null,null,null,"．"]
[null,null,null,null,null,null,null,null,null,null,null,null,null,null,null,null,null,"．"]
[null,null,null,null,null,null,null,null,null,null,null,null,null,null,null,null,null,"．"]
[null,null,null,null,null,null,null,null,null,null,null,null,null,null,null,null,null,"．"]
[null,null,null,null,null,null,null,null,null,null,null,null,null,null,null,null,null,"．"]
[null,null,null,null,null,null,null,null,null,null,null,null,null,null,null,null,null,"．"]
[null,null,null,null,null,null,null,null,null,null,null,null,null,null,null,null,null,"．"]
[null,null,null,null,null,null,null,null,null,null,null,null,null,null,null,null,null,"．"]
[null,null,null,null,null,null,null,null,null,null,null,null,null,null,null,null,null,"．"]
[null,null,null,null,null,null,null,null,null,null,null,null,null,null,null,null,null,"．"]
[null,null,null,null,null,null,null,null,null,null,null,null,null,null,null,null,null,"．"]
[null,null,null,null,null,null,null,null,null,null,null,null,null,null,null,null,null,"．"]
[null,null,null,null,null,null,null,null,null,null,null,null,null,null,null,null,null,"．"]
[null,null,null,null,null,null,null,null,null,null,null,null,null,null,null,null,null,"．"]
[null,null,null,null,null,null,null,null,null,null,null,null,null,null,null,null,null,"．"]
[null,null,null,null,null,null,null,null,null,null,null,null,null,null,null,null,null,"．"]
[null,null,null,null,null,null,null,null,null,null,null,null,null,null,null,null,null,"．"]
[null,null,null,null,null,null,null,null,null,null,null,null,null,null,null,null,null,"．"]
[null,null,null,null,null,null,null,null,null,null,null,null,null,null,null,null,null,"．"]
[null,null,null,null,null,null,null,null,null,null,null,null,null,null,null,null,null,"．"]
[null,null,null,null,null,null,null,null,null,null,null,null,null,null,null,null,null,"．"]
[null,null,null,null,null,null,null,null,null,null,null,null,null,null,null,null,null,"．"]
[null,null,null,null,null,null,null,null,null,null,null,null,null,null,null,null,null,"．"]
[null,null,null,null,null,null,null,null,null,null,null,null,null,null,null,null,null,"．"]
[null,null,null,null,null,null,null,null,null,null,null,null,null,null,null,null,null,"．"]
[null,null,null,null,null,null,null,null,null,null,null,null,null,null,null,null,null,"．"]
[null,null,null,null,null,null,null,null,null,null,null,null,null,null,null,null,null,"．"]
[null,null,null,null,null,null,null,null,null,null,null,null,null,null,null,null,null,"．"]
[null,null,null,null,null,null,null,null,null,null,null,null,null,null,null,null,null,"．"]
[null,null,null,null,null,null,null,null,null,null,null,null,null,null,null,null,null,"．"]
[null,null,null,null,null,null,null,null,null,null,null,null,null,null,null,null,null,"．"]
[null,null,null,null,null,null,null,null,null,null,null,null,null,null,null,null,null,"．"]
[null,null,null,null,null,null,null,null,null,null,null,null,null,null,null,null,null,"．"]
[null,null,null,null,null,null,null,null,null,null,null,null,null,null,null,null,null,"．"]
[null,null,null,null,null,null,null,null,null,null,null,null,null,null,null,null,null,"．"]
[null,null,null,null,null,null,null,null,null,null,null,null,null,null,null,null,null,"．"]
[null,null,null,null,null,null,null,null,null,null,null,null,null,null,null,null,null,"．"]
[null,null,null,null,null,null,null,null,null,null,null,null,null,null,null,null,null,"．"]
[null,null,null,null,null,null,null,null,null,null,null,null,null,null,null,null,null,"．"]
[null,null,null,null,null,null,null,null,null,null,null,null,null,null,null,null,null,"．"]
[null,null,null,null,null,null,null,null,null,null,null,null,null,null,null,null,null,"．"]
[null,null,null,null,null,null,null,null,null,null,null,null,null,null,null,null,null,"．"]
[null,null,null,null,null,null,null,null,null,null,null,null,null,null,null,null,null,"．"]
[null,null,null,null,null,null,null,null,null,null,null,null,null,null,null,null,null,"．"]
[null,null,null,null,null,null,null,null,null,null,null,null,null,null,null,null,null,"．"]
[null,null,null,null,null,null,null,null,null,null,null,null,null,null,null,null,null,"．"]
[null,null,null,null,null,null,null,null,null,null,null,null,null,null,null,null,null,"．"]
[null,null,null,null,null,null,null,null,null,null,null,null,null,null,null,null,null,"．"]
[null,null,null,null,null,null,null,null,null,null,null,null,null,null,null,null,null,"．"]
[null,null,null,null,null,null,null,null,null,null,null,null,null,null,null,null,null,"．"]
[null,null,null,null,null,null,null,null,null,null,null,null,null,null,null,null,null,"．"]
[null,null,null,null,null,null,null,null,null,null,null,null,null,null,null,null,null,"．"]
[null,null,null,null,null,null,null,null,null,null,null,null,null,null,null,null,null,"．"]
[null,null,null,null,null,null,null,null,null,null,null,null,null,null,null,null,null,"．"]
[null,null,null,null,null,null,null,null,null,null,null,null,null,null,null,null,null,"．"]
[null,null,null,null,null,null,null,null,null,null,null,null,null,null,null,null,null,"．"]
[null,null,null,null,null,null,null,null,null,null,null,null,null,null,null,null,null,"．"]
[null,null,null,null,null,null,null,null,null,null,null,null,null,null,null,null,null,"．"]
[null,null,null,null,null,null,null,null,null,null,null,null,null,null,null,null,null,{"$f":"P641&\"．\"&Q641","v":"．"}]
[null,null,null,null,null,null,null,null,null,null,null,null,null,null,null,null,null,"．"]
[null,null,null,null,null,null,null,null,null,null,null,null,null,null,null,null,null,"．"]
[null,null,null,null,null,null,null,null,null,null,null,null,null,null,null,null,null,"．"]
[null,null,null,null,null,null,null,null,null,null,null,null,null,null,null,null,null,"．"]
[null,null,null,null,null,null,null,null,null,null,null,null,null,null,null,null,null,"．"]
[null,null,null,null,null,null,null,null,null,null,null,null,null,null,null,null,null,"．"]
[null,null,null,null,null,null,null,null,null,null,null,null,null,null,null,null,null,"．"]
[null,null,null,null,null,null,null,null,null,null,null,null,null,null,null,null,null,"．"]
[null,null,null,null,null,null,null,null,null,null,null,null,null,null,null,null,null,"．"]
[null,null,null,null,null,null,null,null,null,null,null,null,null,null,null,null,null,"．"]
[null,null,null,null,null,null,null,null,null,null,null,null,null,null,null,null,null,"．"]
[null,null,null,null,null,null,null,null,null,null,null,null,null,null,null,null,null,"．"]
[null,null,null,null,null,null,null,null,null,null,null,null,null,null,null,null,null,"．"]
[null,null,null,null,null,null,null,null,null,null,null,null,null,null,null,null,null,"．"]
[null,null,null,null,null,null,null,null,null,null,null,null,null,null,null,null,null,"．"]
[null,null,null,null,null,null,null,null,null,null,null,null,null,null,null,null,null,"．"]
[null,null,null,null,null,null,null,null,null,null,null,null,null,null,null,null,null,"．"]
[null,null,null,null,null,null,null,null,null,null,null,null,null,null,null,null,null,"．"]
[null,null,null,null,null,null,null,null,null,null,null,null,null,null,null,null,null,"．"]
[null,null,null,null,null,null,null,null,null,null,null,null,null,null,null,null,null,"．"]
[null,null,null,null,null,null,null,null,null,null,null,null,null,null,null,null,null,"．"]
[null,null,null,null,null,null,null,null,null,null,null,null,null,null,null,null,null,"．"]
[null,null,null,null,null,null,null,null,null,null,null,null,null,null,null,null,null,"．"]
[null,null,null,null,null,null,null,null,null,null,null,null,null,null,null,null,null,"．"]
[null,null,null,null,null,null,null,null,null,null,null,null,null,null,null,null,null,"．"]
[null,null,null,null,null,null,null,null,null,null,null,null,null,null,null,null,null,"．"]
[null,null,null,null,null,null,null,null,null,null,null,null,null,null,null,null,null,"．"]
[null,null,null,null,null,null,null,null,null,null,null,null,null,null,null,null,null,"．"]
[null,null,null,null,null,null,null,null,null,null,null,null,null,null,null,null,null,"．"]
[null,null,null,null,null,null,null,null,null,null,null,null,null,null,null,null,null,"．"]
[null,null,null,null,null,null,null,null,null,null,null,null,null,null,null,null,null,"．"]
[null,null,null,null,null,null,null,null,null,null,null,null,null,null,null,null,null,"．"]
[null,null,null,null,null,null,null,null,null,null,null,null,null,null,null,null,null,"．"]
[null,null,null,null,null,null,null,null,null,null,null,null,null,null,null,null,null,"．"]
[null,null,null,null,null,null,null,null,null,null,null,null,null,null,null,null,null,"．"]
[null,null,null,null,null,null,null,null,null,null,null,null,null,null,null,null,null,"．"]
[null,null,null,null,null,null,null,null,null,null,null,null,null,null,null,null,null,"．"]
[null,null,null,null,null,null,null,null,null,null,null,null,null,null,null,null,null,"．"]
[null,null,null,null,null,null,null,null,null,null,null,null,null,null,null,null,null,"．"]
[null,null,null,null,null,null,null,null,null,null,null,null,null,null,null,null,null,"．"]
[null,null,null,null,null,null,null,null,null,null,null,null,null,null,null,null,null,"．"]
[null,null,null,null,null,null,null,null,null,null,null,null,null,null,null,null,null,"．"]
[null,null,null,null,null,null,null,null,null,null,null,null,null,null,null,null,null,"．"]
[null,null,null,null,null,null,null,null,null,null,null,null,null,null,null,null,null,"．"]
[null,null,null,null,null,null,null,null,null,null,null,null,null,null,null,null,null,"．"]
[null,null,null,null,null,null,null,null,null,null,null,null,null,null,null,null,null,"．"]
[null,null,null,null,null,null,null,null,null,null,null,null,null,null,null,null,null,"．"]
[null,null,null,null,null,null,null,null,null,null,null,null,null,null,null,null,null,"．"]
[null,null,null,null,null,null,null,null,null,null,null,null,null,null,null,null,null,"．"]
[null,null,null,null,null,null,null,null,null,null,null,null,null,null,null,null,null,"．"]
[null,null,null,null,null,null,null,null,null,null,null,null,null,null,null,null,null,"．"]
[null,null,null,null,null,null,null,null,null,null,null,null,null,null,null,null,null,"．"]
[null,null,null,null,null,null,null,null,null,null,null,null,null,null,null,null,null,"．"]
[null,null,null,null,null,null,null,null,null,null,null,null,null,null,null,null,null,"．"]
[null,null,null,null,null,null,null,null,null,null,null,null,null,null,null,null,null,"．"]
[null,null,null,null,null,null,null,null,null,null,null,null,null,null,null,null,null,"．"]
[null,null,null,null,null,null,null,null,null,null,null,null,null,null,null,null,null,"．"]
[null,null,null,null,null,null,null,null,null,null,null,null,null,null,null,null,null,"．"]
[null,null,null,null,null,null,null,null,null,null,null,null,null,null,null,null,null,"．"]
[null,null,null,null,null,null,null,null,null,null,null,null,null,null,null,null,null,"．"]
[null,null,null,null,null,null,null,null,null,null,null,null,null,null,null,null,null,"．"]
[null,null,null,null,null,null,null,null,null,null,null,null,null,null,null,null,null,"．"]
[null,null,null,null,null,null,null,null,null,null,null,null,null,null,null,null,null,"．"]
[null,null,null,null,null,null,null,null,null,null,null,null,null,null,null,null,null,{"$f":"P705&\"．\"&Q705","v":"．"}]
[null,null,null,null,null,null,null,null,null,null,null,null,null,null,null,null,null,"．"]
[null,null,null,null,null,null,null,null,null,null,null,null,null,null,null,null,null,"．"]
[null,null,null,null,null,null,null,null,null,null,null,null,null,null,null,null,null,"．"]
[null,null,null,null,null,null,null,null,null,null,null,null,null,null,null,null,null,"．"]
[null,null,null,null,null,null,null,null,null,null,null,null,null,null,null,null,null,"．"]
[null,null,null,null,null,null,null,null,null,null,null,null,null,null,null,null,null,"．"]
[null,null,null,null,null,null,null,null,null,null,null,null,null,null,null,null,null,"．"]
[null,null,null,null,null,null,null,null,null,null,null,null,null,null,null,null,null,"．"]
[null,null,null,null,null,null,null,null,null,null,null,null,null,null,null,null,null,"．"]
[null,null,null,null,null,null,null,null,null,null,null,null,null,null,null,null,null,"．"]
[null,null,null,null,null,null,null,null,null,null,null,null,null,null,null,null,null,"．"]
[null,null,null,null,null,null,null,null,null,null,null,null,null,null,null,null,null,"．"]
[null,null,null,null,null,null,null,null,null,null,null,null,null,null,null,null,null,"．"]
[null,null,null,null,null,null,null,null,null,null,null,null,null,null,null,null,null,"．"]
[null,null,null,null,null,null,null,null,null,null,null,null,null,null,null,null,null,"．"]
[null,null,null,null,null,null,null,null,null,null,null,null,null,null,null,null,null,"．"]
[null,null,null,null,null,null,null,null,null,null,null,null,null,null,null,null,null,"．"]
[null,null,null,null,null,null,null,null,null,null,null,null,null,null,null,null,null,"．"]
[null,null,null,null,null,null,null,null,null,null,null,null,null,null,null,null,null,"．"]
[null,null,null,null,null,null,null,null,null,null,null,null,null,null,null,null,null,"．"]
[null,null,null,null,null,null,null,null,null,null,null,null,null,null,null,null,null,"．"]
[null,null,null,null,null,null,null,null,null,null,null,null,null,null,null,null,null,"．"]
[null,null,null,null,null,null,null,null,null,null,null,null,null,null,null,null,null,"．"]
[null,null,null,null,null,null,null,null,null,null,null,null,null,null,null,null,null,"．"]
[null,null,null,null,null,null,null,null,null,null,null,null,null,null,null,null,null,"．"]
[null,null,null,null,null,null,null,null,null,null,null,null,null,null,null,null,null,"．"]
[null,null,null,null,null,null,null,null,null,null,null,null,null,null,null,null,null,"．"]
[null,null,null,null,null,null,null,null,null,null,null,null,null,null,null,null,null,"．"]
[null,null,null,null,null,null,null,null,null,null,null,null,null,null,null,null,null,"．"]
[null,null,null,null,null,null,null,null,null,null,null,null,null,null,null,null,null,"．"]
[null,null,null,null,null,null,null,null,null,null,null,null,null,null,null,null,null,"．"]
[null,null,null,null,null,null,null,null,null,null,null,null,null,null,null,null,null,"．"]
[null,null,null,null,null,null,null,null,null,null,null,null,null,null,null,null,null,"．"]
[null,null,null,null,null,null,null,null,null,null,null,null,null,null,null,null,null,"．"]
[null,null,null,null,null,null,null,null,null,null,null,null,null,null,null,null,null,"．"]
[null,null,null,null,null,null,null,null,null,null,null,null,null,null,null,null,null,"．"]
[null,null,null,null,null,null,null,null,null,null,null,null,null,null,null,null,null,"．"]
[null,null,null,null,null,null,null,null,null,null,null,null,null,null,null,null,null,"．"]
[null,null,null,null,null,null,null,null,null,null,null,null,null,null,null,null,null,"．"]
[null,null,null,null,null,null,null,null,null,null,null,null,null,null,null,null,null,"．"]
[null,null,null,null,null,null,null,null,null,null,null,null,null,null,null,null,null,"．"]
[null,null,null,null,null,null,null,null,null,null,null,null,null,null,null,null,null,"．"]
[null,null,null,null,null,null,null,null,null,null,null,null,null,null,null,null,null,"．"]
[null,null,null,null,null,null,null,null,null,null,null,null,null,null,null,null,null,"．"]
[null,null,null,null,null,null,null,null,null,null,null,null,null,null,null,null,null,"．"]
[null,null,null,null,null,null,null,null,null,null,null,null,null,null,null,null,null,"．"]
[null,null,null,null,null,null,null,null,null,null,null,null,null,null,null,null,null,"．"]
[null,null,null,null,null,null,null,null,null,null,null,null,null,null,null,null,null,"．"]
[null,null,null,null,null,null,null,null,null,null,null,null,null,null,null,null,null,"．"]
[null,null,null,null,null,null,null,null,null,null,null,null,null,null,null,null,null,"．"]
[null,null,null,null,null,null,null,null,null,null,null,null,null,null,null,null,null,"．"]
[null,null,null,null,null,null,null,null,null,null,null,null,null,null,null,null,null,"．"]
[null,null,null,null,null,null,null,null,null,null,null,null,null,null,null,null,null,"．"]
[null,null,null,null,null,null,null,null,null,null,null,null,null,null,null,null,null,"．"]
[null,null,null,null,null,null,null,null,null,null,null,null,null,null,null,null,null,"．"]
[null,null,null,null,null,null,null,null,null,null,null,null,null,null,null,null,null,"．"]
[null,null,null,null,null,null,null,null,null,null,null,null,null,null,null,null,null,"．"]
[null,null,null,null,null,null,null,null,null,null,null,null,null,null,null,null,null,"．"]
[null,null,null,null,null,null,null,null,null,null,null,null,null,null,null,null,null,"．"]
[null,null,null,null,null,null,null,null,null,null,null,null,null,null,null,null,null,"．"]
[null,null,null,null,null,null,null,null,null,null,null,null,null,null,null,null,null,"．"]
[null,null,null,null,null,null,null,null,null,null,null,null,null,null,null,null,null,"．"]
[null,null,null,null,null,null,null,null,null,null,null,null,null,null,null,null,null,"．"]
[null,null,null,null,null,null,null,null,null,null,null,null,null,null,null,null,null,{"$f":"P769&\"．\"&Q769","v":"．"}]
[null,null,null,null,null,null,null,null,null,null,null,null,null,null,null,null,null,"．"]
[null,null,null,null,null,null,null,null,null,null,null,null,null,null,null,null,null,"．"]
[null,null,null,null,null,null,null,null,null,null,null,null,null,null,null,null,null,"．"]
[null,null,null,null,null,null,null,null,null,null,null,null,null,null,null,null,null,"．"]
[null,null,null,null,null,null,null,null,null,null,null,null,null,null,null,null,null,"．"]
[null,null,null,null,null,null,null,null,null,null,null,null,null,null,null,null,null,"．"]
[null,null,null,null,null,null,null,null,null,null,null,null,null,null,null,null,null,"．"]
[null,null,null,null,null,null,null,null,null,null,null,null,null,null,null,null,null,"．"]
[null,null,null,null,null,null,null,null,null,null,null,null,null,null,null,null,null,"．"]
[null,null,null,null,null,null,null,null,null,null,null,null,null,null,null,null,null,"．"]
[null,null,null,null,null,null,null,null,null,null,null,null,null,null,null,null,null,"．"]
[null,null,null,null,null,null,null,null,null,null,null,null,null,null,null,null,null,"．"]
[null,null,null,null,null,null,null,null,null,null,null,null,null,null,null,null,null,"．"]
[null,null,null,null,null,null,null,null,null,null,null,null,null,null,null,null,null,"．"]
[null,null,null,null,null,null,null,null,null,null,null,null,null,null,null,null,null,"．"]
[null,null,null,null,null,null,null,null,null,null,null,null,null,null,null,null,null,"．"]
[null,null,null,null,null,null,null,null,null,null,null,null,null,null,null,null,null,"．"]
[null,null,null,null,null,null,null,null,null,null,null,null,null,null,null,null,null,"．"]
[null,null,null,null,null,null,null,null,null,null,null,null,null,null,null,null,null,"．"]
[null,null,null,null,null,null,null,null,null,null,null,null,null,null,null,null,null,"．"]
[null,null,null,null,null,null,null,null,null,null,null,null,null,null,null,null,null,"．"]
[null,null,null,null,null,null,null,null,null,null,null,null,null,null,null,null,null,"．"]
[null,null,null,null,null,null,null,null,null,null,null,null,null,null,null,null,null,"．"]
[null,null,null,null,null,null,null,null,null,null,null,null,null,null,null,null,null,"．"]
[null,null,null,null,null,null,null,null,null,null,null,null,null,null,null,null,null,"．"]
[null,null,null,null,null,null,null,null,null,null,null,null,null,null,null,null,null,"．"]
[null,null,null,null,null,null,null,null,null,null,null,null,null,null,null,null,null,"．"]
[null,null,null,null,null,null,null,null,null,null,null,null,null,null,null,null,null,"．"]
[null,null,null,null,null,null,null,null,null,null,null,null,null,null,null,null,null,"．"]
[null,null,null,null,null,null,null,null,null,null,null,null,null,null,null,null,null,"．"]
[null,null,null,null,null,null,null,null,null,null,null,null,null,null,null,null,null,"．"]
[null,null,null,null,null,null,null,null,null,null,null,null,null,null,null,null,null,"．"]
[null,null,null,null,null,null,null,null,null,null,null,null,null,null,null,null,null,"．"]
[null,null,null,null,null,null,null,null,null,null,null,null,null,null,null,null,null,"．"]
[null,null,null,null,null,null,null,null,null,null,null,null,null,null,null,null,null,"．"]
[null,null,null,null,null,null,null,null,null,null,null,null,null,null,null,null,null,"．"]
[null,null,null,null,null,null,null,null,null,null,null,null,null,null,null,null,null,"．"]
[null,null,null,null,null,null,null,null,null,null,null,null,null,null,null,null,null,"．"]
[null,null,null,null,null,null,null,null,null,null,null,null,null,null,null,null,null,"．"]
[null,null,null,null,null,null,null,null,null,null,null,null,null,null,null,null,null,"．"]
[null,null,null,null,null,null,null,null,null,null,null,null,null,null,null,null,null,"．"]
[null,null,null,null,null,null,null,null,null,null,null,null,null,null,null,null,null,"．"]
[null,null,null,null,null,null,null,null,null,null,null,null,null,null,null,null,null,"．"]
[null,null,null,null,null,null,null,null,null,null,null,null,null,null,null,null,null,"．"]
[null,null,null,null,null,null,null,null,null,null,null,null,null,null,null,null,null,"．"]
[null,null,null,null,null,null,null,null,null,null,null,null,null,null,null,null,null,"．"]
[null,null,null,null,null,null,null,null,null,null,null,null,null,null,null,null,null,"．"]
[null,null,null,null,null,null,null,null,null,null,null,null,null,null,null,null,null,"．"]
[null,null,null,null,null,null,null,null,null,null,null,null,null,null,null,null,null,"．"]
[null,null,null,null,null,null,null,null,null,null,null,null,null,null,null,null,null,"．"]
[null,null,null,null,null,null,null,null,null,null,null,null,null,null,null,null,null,"．"]
[null,null,null,null,null,null,null,null,null,null,null,null,null,null,null,null,null,"．"]
[null,null,null,null,null,null,null,null,null,null,null,null,null,null,null,null,null,"．"]
[null,null,null,null,null,null,null,null,null,null,null,null,null,null,null,null,null,"．"]
[null,null,null,null,null,null,null,null,null,null,null,null,null,null,null,null,null,"．"]
[null,null,null,null,null,null,null,null,null,null,null,null,null,null,null,null,null,"．"]
[null,null,null,null,null,null,null,null,null,null,null,null,null,null,null,null,null,"．"]
[null,null,null,null,null,null,null,null,null,null,null,null,null,null,null,null,null,"．"]
[null,null,null,null,null,null,null,null,null,null,null,null,null,null,null,null,null,"．"]
[null,null,null,null,null,null,null,null,null,null,null,null,null,null,null,null,null,"．"]
[null,null,null,null,null,null,null,null,null,null,null,null,null,null,null,null,null,"．"]
[null,null,null,null,null,null,null,null,null,null,null,null,null,null,null,null,null,"．"]
[null,null,null,null,null,null,null,null,null,null,null,null,null,null,null,null,null,"．"]
[null,null,null,null,null,null,null,null,null,null,null,null,null,null,null,null,null,{"$f":"P833&\"．\"&Q833","v":"．"}]
[null,null,null,null,null,null,null,null,null,null,null,null,null,null,null,null,null,"．"]
[null,null,null,null,null,null,null,null,null,null,null,null,null,null,null,null,null,"．"]
[null,null,null,null,null,null,null,null,null,null,null,null,null,null,null,null,null,"．"]
[null,null,null,null,null,null,null,null,null,null,null,null,null,null,null,null,null,"．"]
[null,null,null,null,null,null,null,null,null,null,null,null,null,null,null,null,null,"．"]
[null,null,null,null,null,null,null,null,null,null,null,null,null,null,null,null,null,"．"]
[null,null,null,null,null,null,null,null,null,null,null,null,null,null,null,null,null,"．"]
[null,null,null,null,null,null,null,null,null,null,null,null,null,null,null,null,null,"．"]
[null,null,null,null,null,null,null,null,null,null,null,null,null,null,null,null,null,"．"]
[null,null,null,null,null,null,null,null,null,null,null,null,null,null,null,null,null,"．"]
[null,null,null,null,null,null,null,null,null,null,null,null,null,null,null,null,null,"．"]
[null,null,null,null,null,null,null,null,null,null,null,null,null,null,null,null,null,"．"]
[null,null,null,null,null,null,null,null,null,null,null,null,null,null,null,null,null,"．"]
[null,null,null,null,null,null,null,null,null,null,null,null,null,null,null,null,null,"．"]
[null,null,null,null,null,null,null,null,null,null,null,null,null,null,null,null,null,"．"]
[null,null,null,null,null,null,null,null,null,null,null,null,null,null,null,null,null,"．"]
[null,null,null,null,null,null,null,null,null,null,null,null,null,null,null,null,null,"．"]
[null,null,null,null,null,null,null,null,null,null,null,null,null,null,null,null,null,"．"]
[null,null,null,null,null,null,null,null,null,null,null,null,null,null,null,null,null,"．"]
[null,null,null,null,null,null,null,null,null,null,null,null,null,null,null,null,null,"．"]
[null,null,null,null,null,null,null,null,null,null,null,null,null,null,null,null,null,"．"]
[null,null,null,null,null,null,null,null,null,null,null,null,null,null,null,null,null,"．"]
[null,null,null,null,null,null,null,null,null,null,null,null,null,null,null,null,null,"．"]
[null,null,null,null,null,null,null,null,null,null,null,null,null,null,null,null,null,"．"]
[null,null,null,null,null,null,null,null,null,null,null,null,null,null,null,null,null,"．"]
[null,null,null,null,null,null,null,null,null,null,null,null,null,null,null,null,null,"．"]
[null,null,null,null,null,null,null,null,null,null,null,null,null,null,null,null,null,"．"]
[null,null,null,null,null,null,null,null,null,null,null,null,null,null,null,null,null,"．"]
[null,null,null,null,null,null,null,null,null,null,null,null,null,null,null,null,null,"．"]
[null,null,null,null,null,null,null,null,null,null,null,null,null,null,null,null,null,"．"]
[null,null,null,null,null,null,null,null,null,null,null,null,null,null,null,null,null,"．"]
[null,null,null,null,null,null,null,null,null,null,null,null,null,null,null,null,null,"．"]
[null,null,null,null,null,null,null,null,null,null,null,null,null,null,null,null,null,"．"]
[null,null,null,null,null,null,null,null,null,null,null,null,null,null,null,null,null,"．"]
[null,null,null,null,null,null,null,null,null,null,null,null,null,null,null,null,null,"．"]
[null,null,null,null,null,null,null,null,null,null,null,null,null,null,null,null,null,"．"]
[null,null,null,null,null,null,null,null,null,null,null,null,null,null,null,null,null,"．"]
[null,null,null,null,null,null,null,null,null,null,null,null,null,null,null,null,null,"．"]
[null,null,null,null,null,null,null,null,null,null,null,null,null,null,null,null,null,"．"]
[null,null,null,null,null,null,null,null,null,null,null,null,null,null,null,null,null,"．"]
[null,null,null,null,null,null,null,null,null,null,null,null,null,null,null,null,null,"．"]
[null,null,null,null,null,null,null,null,null,null,null,null,null,null,null,null,null,"．"]
[null,null,null,null,null,null,null,null,null,null,null,null,null,null,null,null,null,"．"]
[null,null,null,null,null,null,null,null,null,null,null,null,null,null,null,null,null,"．"]
[null,null,null,null,null,null,null,null,null,null,null,null,null,null,null,null,null,"．"]
[null,null,null,null,null,null,null,null,null,null,null,null,null,null,null,null,null,"．"]
[null,null,null,null,null,null,null,null,null,null,null,null,null,null,null,null,null,"．"]
[null,null,null,null,null,null,null,null,null,null,null,null,null,null,null,null,null,"．"]
[null,null,null,null,null,null,null,null,null,null,null,null,null,null,null,null,null,"．"]
[null,null,null,null,null,null,null,null,null,null,null,null,null,null,null,null,null,"．"]
[null,null,null,null,null,null,null,null,null,null,null,null,null,null,null,null,null,"．"]
[null,null,null,null,null,null,null,null,null,null,null,null,null,null,null,null,null,"．"]
[null,null,null,null,null,null,null,null,null,null,null,null,null,null,null,null,null,"．"]
[null,null,null,null,null,null,null,null,null,null,null,null,null,null,null,null,null,"．"]
[null,null,null,null,null,null,null,null,null,null,null,null,null,null,null,null,null,"．"]
[null,null,null,null,null,null,null,null,null,null,null,null,null,null,null,null,null,"．"]
[null,null,null,null,null,null,null,null,null,null,null,null,null,null,null,null,null,"．"]
[null,null,null,null,null,null,null,null,null,null,null,null,null,null,null,null,null,"．"]
[null,null,null,null,null,null,null,null,null,null,null,null,null,null,null,null,null,"．"]
[null,null,null,null,null,null,null,null,null,null,null,null,null,null,null,null,null,"．"]
[null,null,null,null,null,null,null,null,null,null,null,null,null,null,null,null,null,"．"]
[null,null,null,null,null,null,null,null,null,null,null,null,null,null,null,null,null,"．"]
[null,null,null,null,null,null,null,null,null,null,null,null,null,null,null,null,null,"．"]
[null,null,null,null,null,null,null,null,null,null,null,null,null,null,null,null,null,{"$f":"P897&\"．\"&Q897","v":"．"}]
[null,null,null,null,null,null,null,null,null,null,null,null,null,null,null,null,null,"．"]
[null,null,null,null,null,null,null,null,null,null,null,null,null,null,null,null,null,"．"]
[null,null,null,null,null,null,null,null,null,null,null,null,null,null,null,null,null,"．"]
[null,null,null,null,null,null,null,null,null,null,null,null,null,null,null,null,null,"．"]
[null,null,null,null,null,null,null,null,null,null,null,null,null,null,null,null,null,"．"]
[null,null,null,null,null,null,null,null,null,null,null,null,null,null,null,null,null,"．"]
[null,null,null,null,null,null,null,null,null,null,null,null,null,null,null,null,null,"．"]
[null,null,null,null,null,null,null,null,null,null,null,null,null,null,null,null,null,"．"]
[null,null,null,null,null,null,null,null,null,null,null,null,null,null,null,null,null,"．"]
[null,null,null,null,null,null,null,null,null,null,null,null,null,null,null,null,null,""]

{"sheet":"課室","index":5,"n_rows":1148,"n_cols":6,"rows_kept":1148,"cut":false,"hidden":false,"merged":[]}
[{"$f":"IF(ISNA(入力シート!$AA$30)=\"\",\"\",入力シート!$AA$30)","v":0},"拠点コード","組織コード","課室名",6,"東海駐在"]
[null,1,1000000,"（本　　　部）   ",3,"東海管理センター"]
[null,1,1024000,"もんじゅ安全・改革本部 ",4,"原子力科学研究所"]
[null,1,1024001,"もんじゅ安全・改革本部 もんじゅ安全・改革室",5,"核燃料サイクル工学研究所"]
[null,1,1022001,"原子力機構改革室 ",7,"大洗研究開発センター"]
[null,1,1045000,"戦略企画室 ",8,"敦賀本部"]
[null,1,1045001,"戦略企画室 秘書課",9,"那珂核融合研究所"]
[null,1,1045002,"戦略企画室 廃炉国際共同研究センター準備Gr",10,"高崎量子応用研究所"]
[null,1,1009000,"安全・核セキュリティ統括部 ",11,"関西光科学研究所"]
[null,1,1009007,"安全・核セキュリティ統括部 安全・核セキュリティ推進室",12,"幌延深地層研究センター"]
[null,1,1009001,"安全・核セキュリティ統括部 安全・環境課",13,"東濃地科学センター"]
[null,1,1009003,"安全・核セキュリティ統括部 品質保証課",14,"人形峠環境技術センター"]
[null,1,1009006,"安全・核セキュリティ統括部 核セキュリティ・保障措置課",15,"青森研究開発センター"]
[null,1,1009002,"安全・核セキュリティ統括部 危機管理課",1,"本部"]
[null,1,1004000,"法務監査部 ",2,"東京駐在"]
[null,1,1004001,"法務監査部 法務リスク管理課"]
[null,1,1004002,"法務監査部 監査課"]
[null,1,1004003,"法務監査部 原子力安全監査課"]
[null,1,1001000,"事業計画統括部 "]
[null,1,1001002,"事業計画統括部 評価室"]
[null,1,1002000,"総務部 "]
[null,1,1002001,"総務部 総務課"]
[null,1,1002002,"総務部 文書課"]
[null,1,1005000,"人事部 "]
[null,1,1005001,"人事部 人事課"]
[null,1,1005002,"人事部 給与課"]
[null,1,1005004,"人事部 職員課"]
[null,1,1007000,"財務部 "]
[null,1,1007001,"財務部 財務課"]
[null,1,1007002,"財務部 経理課"]
[null,1,1007003,"財務部 資金課"]
[null,1,1007004,"財務部 管財課"]
[null,1,1008000,"契約部 "]
[null,1,1008001,"契約部 契約調整課"]
[null,1,1008002,"契約部 契約第１課"]
[null,1,1008003,"契約部 契約第２課"]
[null,1,1008004,"契約部 契約第３課"]
[null,1,1008006,"契約部 契約第４課"]
[null,1,1008005,"契約部 審査課"]
[null,1,1010000,"広報部 "]
[null,1,1010001,"広報部 広報課"]
[null,1,1010002,"広報部 報道課"]
[null,1,1010003,"広報部 情報公開課"]
[null,1,1074000,"移管統合準備室 "]
[null,1,1011000,"研究連携成果展開部 "]
[null,1,1011006,"研究連携成果展開部 連携展開推進室"]
[null,1,1011002,"研究連携成果展開部 連携協力課"]
[null,1,1011004,"研究連携成果展開部 知的財産管理・利用促進課"]
[null,1,1011007,"研究連携成果展開部 研究成果管理課"]
[null,1,1011008,"研究連携成果展開部 科学技術情報課"]
[null,1,1012000,"国際室 "]
[null,1,1012003,"国際室 ワシントン事務所"]
[null,1,1012004,"国際室 パリ事務所"]
[null,1,1012005,"国際室 ウィーン事務所"]
[null,1,1013000,"建設部 "]
[null,1,1013001,"建設部 業務課"]
[null,1,1013002,"建設部 施設技術課"]
[null,1,1013003,"建設部 建設課"]
[null,1,1013004,"建設部 設備課"]
[null,1,1013007,"建設部 耐震対応整備室"]
[null,1,1013005,"建設部 大洗大型施設建設室"]
[null,1,1015000,"システム計算科学センター "]
[null,1,1015007,"システム計算科学センター 情報システム企画室"]
[null,1,1015002,"システム計算科学センター 情報システム利用推進室"]
[null,1,1015003,"システム計算科学センター 情報システム管理室"]
[null,1,1015004,"システム計算科学センター OAシステム室"]
[null,1,1015005,"システム計算科学センター 高度計算機技術開発室"]
[null,1,1015006,"システム計算科学センター シミュレーション技術開発室"]
[null,1,1017000,"原子力人材育成センター "]
[null,1,1017001,"原子力人材育成センター 原子力人材育成推進課"]
[null,1,1017002,"原子力人材育成センター 原子力研修課"]
[null,1,1017003,"原子力人材育成センター 国際原子力人材育成課"]
[null,1,1043000,"核不拡散・核セキュリティ総合支援センター "]
[null,1,1043001,"核不拡散・核セキュリティ総合支援センター 計画管理室"]
[null,1,1043002,"核不拡散・核セキュリティ総合支援センター 能力構築国際支援室"]
[null,1,1043003,"核不拡散・核セキュリティ総合支援センター 政策調査室"]
[null,1,1043004,"核不拡散・核セキュリティ総合支援センター 技術開発推進室"]
[null,1,1043005,"核不拡散・核セキュリティ総合支援センター 輸送・研究炉燃料支援室"]
[null,1,1044000,"福島研究開発部門  "]
[null,1,1044001,"福島研究開発部門  企画調整室"]
[null,1,1050000,"福島事業管理部 "]
[null,1,1050001,"福島事業管理部 　総務課"]
[null,1,1050002,"福島事業管理部 　経理管理課"]
[null,1,1052000,"福島廃炉技術安全研究所  "]
[null,1,1052001,"福島廃炉技術安全研究所 研究計画部 "]
[null,1,1052002,"福島廃炉技術安全研究所 研究計画部 研究計画課"]
[null,1,1052003,"福島廃炉技術安全研究所 研究計画部 アクティブ試験施設課"]
[null,1,1052004,"福島廃炉技術安全研究所 研究計画部 モックアップ試験施設課"]
[null,1,1052007,"福島廃炉技術安全研究所 研究計画部 工務課"]
[null,1,1052005,"福島廃炉技術安全研究所 福島現地調査事務所 "]
[null,1,1052006,"福島廃炉技術安全研究所 保安管理課 "]
[null,1,1053000,"福島廃止措置技術開発センター  "]
[null,1,1053001,"福島廃止措置技術開発センター  研究推進室"]
[null,1,1053002,"福島廃止措置技術開発センター  燃料デブリ取扱技術開発Gr"]
[null,1,1053003,"福島廃止措置技術開発センター  廃棄物処理・処分技術開発Gr"]
[null,1,1053004,"福島廃止措置技術開発センター  基盤技術開発Gr"]
[null,1,1053005,"福島廃止措置技術開発センター  燃料溶融複雑系試験準備室"]
[null,1,1051000,"福島環境安全センター  "]
[null,1,1051001,"福島環境安全センター  計画管理室"]
[null,1,1051002,"福島環境安全センター  放射線計測技術Gr"]
[null,1,1051003,"福島環境安全センター  環境回復推進Gr"]
[null,1,1051004,"福島環境安全センター  環境動態研究Gr"]
[null,1,1030000,"安全研究センター  "]
[null,1,1030001,"安全研究センター  研究計画調整室"]
[null,1,1030014,"安全研究センター  規制情報分析室"]
[null,1,1030002,"安全研究センター 原子炉安全研究U "]
[null,1,1030003,"安全研究センター 原子炉安全研究U 熱水力安全研究Gr"]
[null,1,1030004,"安全研究センター 原子炉安全研究U 燃料安全研究Gr"]
[null,1,1030010,"安全研究センター 材料・構造安全研究U "]
[null,1,1030005,"安全研究センター 材料・構造安全研究U 構造健全性評価研究Gr"]
[null,1,1030011,"安全研究センター 材料・構造安全研究U 材料・水化学研究Gr"]
[null,1,1030015,"安全研究センター リスク評価研究U "]
[null,1,1030016,"安全研究センター リスク評価研究U シビアアクシデント評価研究Gr"]
[null,1,1030018,"安全研究センター リスク評価研究U 放射線安全・防災研究Gr"]
[null,1,1030006,"安全研究センター 燃料サイクル安全研究U "]
[null,1,1030008,"安全研究センター 燃料サイクル安全研究U サイクル安全研究Gr"]
[null,1,1030019,"安全研究センター 燃料サイクル安全研究U 臨界安全研究Gr"]
[null,1,1030020,"安全研究センター 環境安全研究U "]
[null,1,1030009,"安全研究センター 環境安全研究U 廃棄物安全研究Gr"]
[null,1,1030017,"安全研究センター 環境安全研究U 環境影響評価研究Gr"]
[null,1,1018000,"原子力緊急時支援・研修センター "]
[null,1,1018001,"原子力緊急時支援・研修センター 企画管理課"]
[null,1,1018002,"原子力緊急時支援・研修センター 調査研究課"]
[null,1,1018003,"原子力緊急時支援・研修センター 原子力防災研修課"]
[null,1,1031000,"先端基礎研究センター "]
[null,1,1031001,"先端基礎研究センター 研究推進室"]
[null,1,1031004,"先端基礎研究センター 量子物性理論研究Gr"]
[null,1,1031006,"先端基礎研究センター 分子スピントロニクス研究Gr"]
[null,1,1031011,"先端基礎研究センター 力学的物質・スピン制御研究Gr"]
[null,1,1031002,"先端基礎研究センター 重原子核反応フロンティア研究Gr"]
[null,1,1031003,"先端基礎研究センター 超重元素研究Gr"]
[null,1,1031012,"先端基礎研究センター アクチノイド物質開発研究Gr"]
[null,1,1031013,"先端基礎研究センター 重元素系固体物理研究Gr"]
[null,1,1031014,"先端基礎研究センター ハドロン物理研究Gr"]
[null,1,1031009,"先端基礎研究センター バイオアクチノイド化学研究Gr"]
[null,1,1031010,"先端基礎研究センター 放射場生体分子科学研究Gr"]
[null,1,1031007,"先端基礎研究センター スピン偏極陽電子ビーム研究Gr"]
[null,1,1032000,"原子力基礎工学研究センター  "]
[null,1,1032001,"原子力基礎工学研究センター  研究推進室"]
[null,1,1032002,"原子力基礎工学研究センター 核工学・炉工学U "]
[null,1,1032007,"原子力基礎工学研究センター 核工学・炉工学U 核データ研究Gr"]
[null,1,1032033,"原子力基礎工学研究センター 核工学・炉工学U 炉物理標準コード研究Gr"]
[null,1,1032004,"原子力基礎工学研究センター 核工学・炉工学U 熱流動研究Gr"]
[null,1,1032031,"原子力基礎工学研究センター 核工学・炉工学U 原子力センシング研究Gr"]
[null,1,1032014,"原子力基礎工学研究センター 燃料・材料工学U "]
[null,1,1032019,"原子力基礎工学研究センター 燃料・材料工学U 防食材料技術開発Gr"]
[null,1,1032020,"原子力基礎工学研究センター 燃料・材料工学U 照射材料工学研究Gr"]
[null,1,1032034,"原子力基礎工学研究センター 燃料・材料工学U 燃料高温科学研究Gr"]
[null,1,1032040,"原子力基礎工学研究センター 原子力化学U "]
[null,1,1032028,"原子力基礎工学研究センター 原子力化学U 環境化学研究Gr"]
[null,1,1032024,"原子力基礎工学研究センター 原子力化学U 放射化学研究Gr"]
[null,1,1032041,"原子力基礎工学研究センター 原子力化学U 分析化学研究Gr"]
[null,1,1032022,"原子力基礎工学研究センター 環境・放射線科学U "]
[null,1,1032023,"原子力基礎工学研究センター 環境・放射線科学U 環境動態研究Gr"]
[null,1,1032026,"原子力基礎工学研究センター 環境・放射線科学U 放射線影響解析研究Gr"]
[null,1,1032027,"原子力基礎工学研究センター 環境・放射線科学U 放射線防護研究Gr"]
[null,1,1032042,"原子力基礎工学研究センター 福島基盤技術U "]
[null,1,1032043,"原子力基礎工学研究センター 福島基盤技術U 燃料デブリ解析研究Gr"]
[null,1,1032047,"原子力基礎工学研究センター 分離変換技術開発U "]
[null,1,1032016,"原子力基礎工学研究センター 分離変換技術開発U 分離変換サイクル開発Gr"]
[null,1,1032005,"原子力基礎工学研究センター 分離変換技術開発U 核変換システム開発Gr"]
[null,1,1020000,"原子力エネルギー基盤連携センター  "]
[null,1,1020001,"原子力エネルギー基盤連携センター  次世代再処理材料開発特別Gr"]
[null,1,1020002,"原子力エネルギー基盤連携センター  軽水炉熱流動技術開発特別Gr"]
[null,1,1020004,"原子力エネルギー基盤連携センター  黒鉛・炭素材料挙動評価特別Gr"]
[null,1,1020005,"原子力エネルギー基盤連携センター  ガラス固化技術特別Gr"]
[null,1,1020006,"原子力エネルギー基盤連携センター  高温ガス炉要素技術開発特別Gr"]
[null,1,1020008,"原子力エネルギー基盤連携センター  加速器中性子利用ＲＩ生成技術開発特別Gr"]
[null,1,1020009,"原子力エネルギー基盤連携センター  材料溶融挙動評価特別Gr"]
[null,1,1020010,"原子力エネルギー基盤連携センター  水素安全技術高度化特別Gr"]
[null,1,1033000,"量子ビーム応用研究センター  "]
[null,1,1033001,"量子ビーム応用研究センター  研究推進室"]
[null,1,1033002,"量子ビーム応用研究センター 量子ビーム機能性分子解析技術研究U "]
[null,1,1033003,"量子ビーム応用研究センター 量子ビーム機能性分子解析技術研究U 分子構造・機能研究Gr"]
[null,1,1033004,"量子ビーム応用研究センター 量子ビーム機能性分子解析技術研究U 分子シミュレーション研究Gr"]
[null,1,1033005,"量子ビーム応用研究センター 量子ビーム機能性分子解析技術研究U 分子ダイナミクス研究Gr"]
[null,1,1033006,"量子ビーム応用研究センター 量子ビーム材料評価・構造制御技術研究U "]
[null,1,1033007,"量子ビーム応用研究センター 量子ビーム材料評価・構造制御技術研究U 多重自由度相関研究Gr"]
[null,1,1033008,"量子ビーム応用研究センター 量子ビーム材料評価・構造制御技術研究U ナノ構造制御研究Gr"]
[null,1,1033062,"量子ビーム応用研究センター 量子ビーム材料評価・構造制御技術研究U 強相関超分子研究Gr"]
[null,1,1033011,"量子ビーム応用研究センター 量子ビーム材料評価・構造制御技術研究U 中性子イメージング・分析研究Gr"]
[null,1,1033012,"量子ビーム応用研究センター 量子ビーム材料評価・構造制御技術研究U 弾塑性材料評価研究Gr"]
[null,1,1033023,"量子ビーム応用研究センター 医療・バイオ応用量子ビーム技術研究U "]
[null,1,1033024,"量子ビーム応用研究センター 医療・バイオ応用量子ビーム技術研究U イオンビーム変異誘発研究Gr"]
[null,1,1033025,"量子ビーム応用研究センター 医療・バイオ応用量子ビーム技術研究U マイクロビーム細胞照射研究Gr"]
[null,1,1033026,"量子ビーム応用研究センター 医療・バイオ応用量子ビーム技術研究U ＲＩ医療応用研究Gr"]
[null,1,1033063,"量子ビーム応用研究センター 医療・バイオ応用量子ビーム技術研究U ＲＩイメージング研究Gr"]
[null,1,1033064,"量子ビーム応用研究センター 医療・バイオ応用量子ビーム技術研究U 照射細胞解析研究Gr"]
[null,1,1033027,"量子ビーム応用研究センター 環境・産業応用量子ビーム技術研究U "]
[null,1,1033028,"量子ビーム応用研究センター 環境・産業応用量子ビーム技術研究U 高性能高分子材料研究Gr"]
[null,1,1033029,"量子ビーム応用研究センター 環境・産業応用量子ビーム技術研究U 機能性セラミック材料研究Gr"]
[null,1,1033030,"量子ビーム応用研究センター 環境・産業応用量子ビーム技術研究U 半導体耐放射線性研究Gr"]
[null,1,1033031,"量子ビーム応用研究センター 環境・産業応用量子ビーム技術研究U 環境機能高分子材料研究Gr"]
[null,1,1033032,"量子ビーム応用研究センター 環境・産業応用量子ビーム技術研究U 環境材料プロセシング研究Gr"]
[null,1,1033033,"量子ビーム応用研究センター 先進ビーム技術研究U "]
[null,1,1033036,"量子ビーム応用研究センター 先進ビーム技術研究U レーザー駆動粒子線研究Gr"]
[null,1,1033037,"量子ビーム応用研究センター 先進ビーム技術研究U レーザー電子加速研究Gr"]
[null,1,1033034,"量子ビーム応用研究センター 先進ビーム技術研究U Ｘ線レーザー応用研究Gr"]
[null,1,1033070,"量子ビーム応用研究センター 先進ビーム技術研究U 高出力レーザー研究Gr"]
[null,1,1033065,"量子ビーム応用研究センター レーザー応用技術研究U "]
[null,1,1033035,"量子ビーム応用研究センター レーザー応用技術研究U 高強度場物質制御研究Gr"]
[null,1,1033066,"量子ビーム応用研究センター レーザー応用技術研究U レーザー量子制御研究Gr"]
[null,1,1033060,"量子ビーム応用研究センター レーザー応用技術研究U 光量子融合研究Gr"]
[null,1,1033043,"量子ビーム応用研究センター レーザー応用技術研究U ガンマ線核種分析研究Gr"]
[null,1,1033059,"量子ビーム応用研究センター レーザー応用技術研究U 次世代レーザー開発研究Gr"]
[null,1,1033044,"量子ビーム応用研究センター 量子ビーム物性制御・解析技術研究U "]
[null,1,1033048,"量子ビーム応用研究センター 量子ビーム物性制御・解析技術研究U 高密度物質研究Gr"]
[null,1,1033046,"量子ビーム応用研究センター 量子ビーム物性制御・解析技術研究U 量子構造研究Gr"]
[null,1,1033051,"量子ビーム応用研究センター 量子ビーム物性制御・解析技術研究U 電子構造研究Gr"]
[null,1,1033052,"量子ビーム応用研究センター 量子ビーム物性制御・解析技術研究U 量子シミュレーション研究Gr"]
[null,1,1033067,"量子ビーム応用研究センター 量子ビーム物性制御・解析技術研究U コヒーレントＸ線利用研究Gr"]
[null,1,1033068,"量子ビーム応用研究センター 量子ビーム反応制御・解析技術研究U "]
[null,1,1033049,"量子ビーム応用研究センター 量子ビーム反応制御・解析技術研究U アクチノイド錯体化学研究Gr"]
[null,1,1033047,"量子ビーム応用研究センター 量子ビーム反応制御・解析技術研究U 量子ダイナミクス研究Gr"]
[null,1,1033050,"量子ビーム応用研究センター 量子ビーム反応制御・解析技術研究U 表面反応ダイナミクス研究Gr"]
[null,1,1042000,"原子力水素・熱利用研究センター  "]
[null,1,1042001,"原子力水素・熱利用研究センター  研究推進室"]
[null,1,1042002,"小型高温ガス炉研究開発U "]
[null,1,1042003,"小型高温ガス炉研究開発U 原子炉設計Gr"]
[null,1,1042004,"小型高温ガス炉研究開発U 国際共同試験Gr"]
[null,1,1042008,"小型高温ガス炉研究開発U 安全設計Gr"]
[null,1,1042005,"水素利用研究開発U "]
[null,1,1042006,"水素利用研究開発U ＩＳプロセス信頼性確証試験Gr"]
[null,1,1042007,"水素利用研究開発U 熱利用システム設計Gr"]
[null,1,1035000,"次世代高速炉サイクル研究開発センター  "]
[null,1,1035001,"次世代高速炉サイクル研究開発センター  プロジェクト推進室"]
[null,1,1035040,"次世代高速炉サイクル研究開発センター  設計・規格基準室"]
[null,1,1035043,"高速炉計算工学技術開発部 "]
[null,1,1035014,"高速炉計算工学技術開発部 システム統合Gr"]
[null,1,1035052,"高速炉計算工学技術開発部 システム安全解析Gr"]
[null,1,1035053,"高速炉計算工学技術開発部 炉心挙動解析Gr"]
[null,1,1035054,"高速炉計算工学技術開発部 流動・系統解析Gr"]
[null,1,1035011,"高速炉安全技術開発部 "]
[null,1,1035018,"高速炉安全技術開発部 構造・材料信頼性評価技術開発Gr"]
[null,1,1035051,"高速炉安全技術開発部 炉心安全評価技術開発Gr"]
[null,1,1035033,"燃料サイクル技術開発部 "]
[null,1,1035049,"燃料サイクル技術開発部 燃料材料開発Gr"]
[null,1,1035022,"燃料サイクル技術開発部 燃料技術開発Gr"]
[null,1,1035023,"燃料サイクル技術開発部 再処理技術開発Gr"]
[null,1,1038000,"バックエンド研究開発部門  "]
[null,1,1038001,"バックエンド研究開発部門  企画調整室"]
[null,1,1040000,"廃棄物対策・埋設事業統括部 "]
[null,1,1040001,"廃棄物対策・埋設事業統括部 事業・立地推進課"]
[null,1,1040004,"廃棄物対策・埋設事業統括部 廃止措置計画課"]
[null,1,1040005,"廃棄物対策・埋設事業統括部 廃棄物処理計画課"]
[null,1,1040006,"廃棄物対策・埋設事業統括部 廃棄物処分計画課"]
[null,1,1040003,"廃棄物対策・埋設事業統括部 設計技術課"]
[null,1,1037000,"地層処分研究開発推進部 "]
[null,1,1037001,"地層処分研究開発推進部 処分システム研究計画推進課"]
[null,1,1037017,"地層処分研究開発推進部 地質環境研究統合課"]
[null,1,1037010,"深地層研究部 "]
[null,1,1037018,"深地層研究部 研究計画調整Gr"]
[null,1,1037011,"深地層研究部 堆積岩処分技術開発Gr"]
[null,1,1037012,"深地層研究部 堆積岩地質環境研究Gr"]
[null,1,1037013,"地層科学研究部 "]
[null,1,1037014,"地層科学研究部 結晶質岩工学技術開発Gr"]
[null,1,1037015,"地層科学研究部 結晶質岩地質環境研究Gr"]
[null,1,1037016,"地層科学研究部 ネオテクトニクス研究Gr"]
[null,1,1034000,"核融合研究開発部門  "]
[null,1,1034001,"核融合研究開発部門  企画調整室"]
[null,1,1034002,"ITERプロジェクト部 "]
[null,1,1034027,"ITERプロジェクト部 ITER計画管理Gr"]
[null,1,1034028,"ITERプロジェクト部 ITER統合支援Gr"]
[null,1,1034029,"ITERプロジェクト部 ITERトカマク本体開発Gr"]
[null,1,1034045,"ITERプロジェクト部 超伝導コイル開発Gr"]
[null,1,1034046,"ITERプロジェクト部 超伝導導体開発Gr"]
[null,1,1034047,"ITERプロジェクト部 超伝導コイル試験Gr"]
[null,1,1034035,"ITERプロジェクト部 計測開発Gr"]
[null,1,1034013,"ITERプロジェクト部 RF加熱開発Gr"]
[null,1,1034014,"ITERプロジェクト部 NB加熱開発Gr"]
[null,1,1034010,"トカマクシステム技術開発部 "]
[null,1,1034043,"トカマクシステム技術開発部 JT-60システム統合Gr"]
[null,1,1034036,"トカマクシステム技術開発部 JT-60マグネットシステム開発Gr"]
[null,1,1034012,"トカマクシステム技術開発部 JT-60本体開発Gr"]
[null,1,1034011,"トカマクシステム技術開発部 JT-60電源・制御開発Gr"]
[null,1,1034038,"トカマクシステム技術開発部 JT-60安全評価Gr"]
[null,1,1034003,"先進プラズマ研究部 "]
[null,1,1034032,"先進プラズマ研究部 先進プラズマ計画調整Gr"]
[null,1,1034005,"先進プラズマ研究部 先進プラズマモデリングGr"]
[null,1,1034006,"先進プラズマ研究部 先進プラズマ実験Gr"]
[null,1,1034039,"核融合炉システム研究開発部 "]
[null,1,1034041,"核融合炉システム研究開発部 BA計画調整Gr"]
[null,1,1034008,"核融合炉システム研究開発部 プラズマ理論シミュレーションGr"]
[null,1,1034009,"核融合炉システム研究開発部 核融合炉システム研究Gr"]
[null,1,1034048,"核融合炉材料研究開発部 "]
[null,1,1034042,"核融合炉材料研究開発部 IFMIF加速器施設開発Gr"]
[null,1,1034044,"核融合炉材料研究開発部 IFMIF照射・試験施設開発Gr"]
[null,1,1034033,"核融合炉材料研究開発部 核融合炉構造材料開発Gr"]
[null,1,1034020,"核融合炉材料研究開発部 核融合中性子工学研究Gr"]
[null,1,1034015,"ブランケット研究開発部 "]
[null,1,1034016,"ブランケット研究開発部 ブランケット工学研究Gr"]
[null,1,1034019,"ブランケット研究開発部 トリチウム工学研究Gr"]
[null,1,1034022,"ブランケット研究開発部 増殖機能材料開発Gr"]
[null,1,1100000,"役員室  "]
[null,2,1093001,"大洗研究開発センター 計画管理室 "]
[null,2,1078000,"大洗研究開発センター 安全管理部 "]
[null,2,1068000,"大洗研究開発センター 安全管理部 危機管理課"]
[null,2,1079000,"大洗研究開発センター 管理部 "]
[null,2,1083000,"大洗) 福島燃料材料試験部 "]
[null,2,1083001,"大洗) 福島燃料材料試験部 集合体試験課 "]
[null,2,1065000,"原子力科学研究所 保安管理部 "]
[null,2,1084000,"原子力科学研究所 放射線管理部 "]
[null,2,1084003,"原子力科学研究所 放射線管理部 放射線管理第１課"]
[null,2,1084004,"原子力科学研究所 放射線管理部 放射線管理第２課"]
[null,2,1087000,"Ｊ－ＰＡＲＣセンター "]
[null,2,1087009,"Ｊ－ＰＡＲＣセンター 中性子源セクション"]
[null,2,1087010,"Ｊ－ＰＡＲＣセンター 中性子利用セクション"]
[null,2,1087014,"Ｊ－ＰＡＲＣセンター 核変換セクション"]
[null,2,1091004,"大洗) 高温工学試験研究炉部 HTTR運転管理課 "]
[null,2,1085000,"原子力科学研究所 バックエンド技術部 "]
[null,2,1085005,"原子力科学研究所 バックエンド技術部 高減容処理技術課"]
[null,2,1046000,"核サ研 環境技術開発センター  "]
[null,2,1047000,"基盤技術研究開発部 "]
[null,2,1047001,"基盤技術研究開発部 システム性能研究Gr"]
[null,2,1047002,"基盤技術研究開発部 ニアフィールド研究Gr"]
[null,2,1047003,"基盤技術研究開発部 核種移行研究Gr"]
[null,2,1047004,"基盤技術研究開発部 廃棄物処理技術Gr"]
[null,2,1089000,"大洗研究開発センター 環境保全部 "]
[null,2,1089001,"大洗研究開発センター 環境保全部 環境計画課 "]
[null,3,2000000,"（東海拠点）   "]
[null,3,2001000,"東海管理センター "]
[null,3,2001001,"東海管理センター 総務第１課"]
[null,3,2001008,"東海管理センター 総務第２課"]
[null,3,2001003,"東海管理センター 経理課"]
[null,3,2001004,"東海管理センター 管財課"]
[null,3,2001007,"東海管理センター 労務課"]
[null,4,2002000,"原科研地区   "]
[null,4,2007000,"福島技術開発試験部 "]
[null,4,2007001,"福島技術開発試験部 業務課"]
[null,4,2007006,"福島技術開発試験部 ホット使用施設管理課"]
[null,4,2007003,"福島技術開発試験部 実用燃料試験課"]
[null,4,2007004,"福島技術開発試験部 ホット材料試験課"]
[null,4,2007005,"福島技術開発試験部 未照射燃料管理課"]
[null,4,2007007,"福島技術開発試験部 臨界技術第１課"]
[null,4,2007008,"福島技術開発試験部 臨界技術第２課"]
[null,4,2007009,"福島技術開発試験部 BECKY技術課"]
[null,4,2007010,"福島技術開発試験部 分析技術課"]
[null,4,2007011,"福島技術開発試験部 流動試験技術課"]
[null,4,2044000,"安全研究・防災支援部門  "]
[null,4,2044001,"安全研究・防災支援部門 企画調整室 "]
[null,4,2044002,"安全研究・防災支援部門 核不拡散・核セキュリティ規制支援室 "]
[null,4,2045000,"原子力科学研究部門  "]
[null,4,2045001,"企画調整室 "]
[null,4,2004000,"保安管理部 "]
[null,4,2004001,"保安管理部 業務課"]
[null,4,2004002,"保安管理部 安全対策課"]
[null,4,2004003,"保安管理部 施設安全課"]
[null,4,2004004,"保安管理部 危機管理課"]
[null,4,2004005,"保安管理部 核物質管理課"]
[null,4,2002001,"計画管理室 "]
[null,4,2005000,"放射線管理部 "]
[null,4,2005001,"放射線管理部 業務課"]
[null,4,2005002,"放射線管理部 線量管理課"]
[null,4,2005003,"放射線管理部 環境放射線管理課"]
[null,4,2005004,"放射線管理部 放射線管理第1課"]
[null,4,2005005,"放射線管理部 放射線管理第2課"]
[null,4,2005006,"放射線管理部 放射線計測技術課"]
[null,4,2003000,"工務技術部 "]
[null,4,2003001,"工務技術部 業務課"]
[null,4,2003002,"工務技術部 工務第1課"]
[null,4,2003003,"工務技術部 工務第2課"]
[null,4,2003005,"工務技術部 施設保全課"]
[null,4,2003006,"工務技術部 工作技術課"]
[null,4,2006000,"研究炉加速器管理部 "]
[null,4,2006001,"研究炉加速器管理部 業務課"]
[null,4,2006002,"研究炉加速器管理部 JRR-3管理課"]
[null,4,2006003,"研究炉加速器管理部 JRR-4管理課"]
[null,4,2006004,"研究炉加速器管理部 NSRR管理課"]
[null,4,2006005,"研究炉加速器管理部 加速器管理課"]
[null,4,2006006,"研究炉加速器管理部 研究炉利用課"]
[null,4,2006007,"研究炉加速器管理部 研究炉技術課"]
[null,4,2085000,"J-PARCセンター  "]
[null,4,2085014,"J-PARCセンター  核変換セクション"]
[null,4,2085015,"J-PARCセンター  低温セクション"]
[null,4,2085019,"J-PARCセンター  運営推進支援セクション"]
[null,4,2085023,"J-PARCセンター  情報システムセクション"]
[null,4,2085024,"J-PARCセンター  広報セクション"]
[null,4,2085016,"安全ディビジョン "]
[null,4,2085017,"安全ディビジョン 放射線安全セクション"]
[null,4,2085018,"安全ディビジョン 一般安全セクション"]
[null,4,2085001,"加速器ディビジョン "]
[null,4,2085002,"加速器ディビジョン 加速器第一セクション"]
[null,4,2085003,"加速器ディビジョン 加速器第二セクション"]
[null,4,2085004,"加速器ディビジョン 加速器第三セクション"]
[null,4,2085005,"加速器ディビジョン 加速器第四セクション"]
[null,4,2085006,"加速器ディビジョン 加速器第五セクション"]
[null,4,2085007,"加速器ディビジョン 加速器第六セクション"]
[null,4,2085025,"加速器ディビジョン 加速器第七セクション"]
[null,4,2085008,"物質・生命科学ディビジョン "]
[null,4,2085009,"物質・生命科学ディビジョン 中性子源セクション"]
[null,4,2085010,"物質・生命科学ディビジョン 中性子利用セクション"]
[null,4,2085011,"物質・生命科学ディビジョン 中性子基盤セクション"]
[null,4,2085012,"物質・生命科学ディビジョン ミュオンセクション"]
[null,4,2085026,"物質・生命科学ディビジョン 共通技術開発セクション"]
[null,4,2085013,"素粒子原子核ディビジョン "]
[null,4,2085027,"素粒子原子核ディビジョン ニュートリノセクション"]
[null,4,2085028,"素粒子原子核ディビジョン ハドロンセクション"]
[null,4,2085020,"業務ディビジョン "]
[null,4,2085021,"業務ディビジョン 総務セクション"]
[null,4,2085022,"業務ディビジョン 利用業務セクション"]
[null,4,2093000,"燃料特別チーム "]
[null,4,2093001,"燃料特別チーム 計画調整Gr"]
[null,4,2093002,"燃料特別チーム 容器・輸送Gr"]
[null,4,2093003,"燃料特別チーム 施設対応Gr"]
[null,4,2093004,"燃料特別チーム 代替実験・燃料Gr"]
[null,4,2009000,"バックエンド技術部 "]
[null,4,2009001,"バックエンド技術部 業務課"]
[null,4,2009002,"バックエンド技術部 放射性廃棄物管理技術課"]
[null,4,2009003,"バックエンド技術部 放射性廃棄物管理第1課"]
[null,4,2009004,"バックエンド技術部 放射性廃棄物管理第2課"]
[null,4,2009005,"バックエンド技術部 高減容処理技術課"]
[null,4,2009007,"バックエンド技術部 廃止措置課"]
[null,5,2039000,"サイクル研地区   "]
[null,5,2046000,"環境技術開発センター  "]
[null,5,2013000,"福島技術開発試験部 "]
[null,5,2013002,"福島技術開発試験部 研究計画課"]
[null,5,2013004,"福島技術開発試験部 研究開発第1課"]
[null,5,2013005,"福島技術開発試験部 研究開発第2課"]
[null,5,2021000,"プルトニウム燃料技術開発センター  "]
[null,5,2021004,"プルトニウム燃料技術開発センター  プルトニウム燃料施設整備室"]
[null,5,2021001,"プルトニウム燃料技術開発センター  計画管理課"]
[null,5,2021002,"プルトニウム燃料技術開発センター  品質保証課"]
[null,5,2022000,"プルトニウム燃料技術開発センター 技術部 "]
[null,5,2022001,"プルトニウム燃料技術開発センター 技術部 技術課"]
[null,5,2022002,"プルトニウム燃料技術開発センター 技術部 核物質管理課"]
[null,5,2022003,"プルトニウム燃料技術開発センター 技術部 品質管理課"]
[null,5,2023000,"プルトニウム燃料技術開発センター 燃料技術部 "]
[null,5,2023001,"プルトニウム燃料技術開発センター 燃料技術部 試験第1課"]
[null,5,2023005,"プルトニウム燃料技術開発センター 燃料技術部 試験第2課"]
[null,5,2023002,"プルトニウム燃料技術開発センター 燃料技術部 プロセス設備開発課"]
[null,5,2023003,"プルトニウム燃料技術開発センター 燃料技術部 燃料技術開発課"]
[null,5,2023004,"プルトニウム燃料技術開発センター 燃料技術部 設計解析課"]
[null,5,2010000,"保安管理部 "]
[null,5,2010001,"保安管理部 安全対策課"]
[null,5,2010002,"保安管理部 危機管理課"]
[null,5,2010003,"保安管理部 施設安全課"]
[null,5,2010004,"保安管理部 核物質防護管理課"]
[null,5,2011001,"計画管理室 "]
[null,5,2012000,"放射線管理部 "]
[null,5,2012001,"放射線管理部 線量計測課"]
[null,5,2012002,"放射線管理部 環境監視課"]
[null,5,2012003,"放射線管理部 放射線管理第1課"]
[null,5,2012004,"放射線管理部 放射線管理第2課"]
[null,5,2029000,"工務技術部 "]
[null,5,2029001,"工務技術部 管理課"]
[null,5,2029002,"工務技術部 運転課"]
[null,5,2029003,"工務技術部 施設営繕課"]
[null,5,2029004,"工務技術部 施設建設課"]
[null,5,2046000,"環境技術開発センター  "]
[null,5,2046001,"環境技術開発センター  計画管理課"]
[null,5,2046002,"環境技術開発センター  施設管理課"]
[null,5,2014000,"環境技術開発センター 廃止措置技術部 "]
[null,5,2014003,"環境技術開発センター 廃止措置技術部 環境施設計画課"]
[null,5,2014002,"環境技術開発センター 廃止措置技術部 環境保全課"]
[null,5,2014005,"環境技術開発センター 廃止措置技術部 廃止措置技術課"]
[null,5,2047000,"環境技術開発センター 基盤技術研究開発部 "]
[null,5,2047001,"環境技術開発センター 基盤技術研究開発部 システム性能研究Gr"]
[null,5,2047002,"環境技術開発センター 基盤技術研究開発部 ニアフィールド研究Gr"]
[null,5,2047003,"環境技術開発センター 基盤技術研究開発部 核種移行研究Gr"]
[null,5,2047004,"環境技術開発センター 基盤技術研究開発部 廃棄物処理技術Gr"]
[null,5,2015000,"再処理技術開発センター  "]
[null,5,2016000,"再処理技術開発センター 技術部 "]
[null,5,2016005,"再処理技術開発センター 技術部 計画管理課"]
[null,5,2016001,"再処理技術開発センター 技術部 技術開発課"]
[null,5,2016006,"再処理技術開発センター 技術部 品質保証課"]
[null,5,2016007,"再処理技術開発センター 技術部 核物質管理課"]
[null,5,2026000,"再処理技術開発センター ガラス固化技術開発部 "]
[null,5,2026001,"再処理技術開発センター ガラス固化技術開発部 ガラス固化管理課"]
[null,5,2026002,"再処理技術開発センター ガラス固化技術開発部 ガラス固化技術課"]
[null,5,2026003,"再処理技術開発センター ガラス固化技術開発部 ガラス固化処理課"]
[null,5,2017000,"再処理技術開発センター 処理部 "]
[null,5,2017001,"再処理技術開発センター 処理部 前処理課"]
[null,5,2017002,"再処理技術開発センター 処理部 化学処理第1課"]
[null,5,2017003,"再処理技術開発センター 処理部 化学処理第2課"]
[null,5,2017004,"再処理技術開発センター 処理部 化学処理第3課"]
[null,5,2017005,"再処理技術開発センター 処理部 転換技術課"]
[null,5,2018000,"再処理技術開発センター 施設管理部 "]
[null,5,2018001,"再処理技術開発センター 施設管理部 施設管理課"]
[null,5,2018002,"再処理技術開発センター 施設管理部 施設保全第1課"]
[null,5,2018003,"再処理技術開発センター 施設管理部 施設保全第2課"]
[null,5,2018004,"再処理技術開発センター 施設管理部 分析第1課"]
[null,5,2018005,"再処理技術開発センター 施設管理部 分析第2課"]
[null,5,2019000,"再処理技術開発センター 環境保全部 "]
[null,5,2019001,"再処理技術開発センター 環境保全部 環境管理課"]
[null,5,2019002,"再処理技術開発センター 環境保全部 処理第1課"]
[null,5,2019003,"再処理技術開発センター 環境保全部 処理第2課"]
[null,5,2021000,"プルトニウム燃料技術開発センター  "]
[null,5,2024000,"プルトニウム燃料技術開発センター 環境プラント技術部 "]
[null,5,2024001,"プルトニウム燃料技術開発センター 環境プラント技術部 環境管理課"]
[null,5,2024002,"プルトニウム燃料技術開発センター 環境プラント技術部 環境技術課"]
[null,5,2024003,"プルトニウム燃料技術開発センター 環境プラント技術部 廃止措置技術開発課"]
[null,5,2024004,"プルトニウム燃料技術開発センター 環境プラント技術部 プラント保全課"]
[null,6,2092000,"安全・核セキュリティ総括部 "]
[null,6,2092006,"安全・核セキュリティ総括部 核セキュリティ・保障措置課"]
[null,6,2056000,"事業計画統括部 "]
[null,6,2056002,"事業計画統括部 評価室"]
[null,6,2057000,"総務部 "]
[null,6,2058000,"人事部 "]
[null,6,2058001,"人事部 人事課"]
[null,6,2058002,"人事部 給与課"]
[null,6,2058004,"人事部 職員課"]
[null,6,2001005,"契約部　契約第4課 "]
[null,6,2050000,"研究連携成果展開部 "]
[null,6,2050006,"研究連携成果展開部 連携展開推進室"]
[null,6,2050002,"研究連携成果展開部 連携協力課"]
[null,6,2050004,"研究連携成果展開部 知的財産管理・利用促進課"]
[null,6,2050007,"研究連携成果展開部 研究成果管理課"]
[null,6,2050008,"研究連携成果展開部 科学技術情報課"]
[null,6,2050009,"研究連携成果展開部 連携協力課(東大)"]
[null,6,2074000,"国際室 "]
[null,6,2051000,"建設部 "]
[null,6,2051001,"建設部 業務課"]
[null,6,2051002,"建設部 施設技術課"]
[null,6,2051003,"建設部 建設課"]
[null,6,2051004,"建設部 設備課"]
[null,6,2051007,"建設部 耐震対応整備室"]
[null,6,2051005,"建設部 大洗大型施設建設室"]
[null,6,2053000,"システム計算科学センター "]
[null,6,2053007,"システム計算科学センター 情報システム企画室"]
[null,6,2053002,"システム計算科学センター 情報システム利用推進室"]
[null,6,2053003,"システム計算科学センター 情報システム管理室"]
[null,6,2053004,"システム計算科学センター OAシステム室"]
[null,6,2053005,"システム計算科学センター 高度計算機技術開発室"]
[null,6,2053006,"システム計算科学センター シミュレーション技術開発室"]
[null,6,2055000,"原子力人材育成センター "]
[null,6,2055001,"原子力人材育成センター 原子力人材育成推進課"]
[null,6,2055002,"原子力人材育成センター 原子力研修課"]
[null,6,2055003,"原子力人材育成センター 国際原子力人材育成課"]
[null,6,2043000,"核不拡散・核セキュリティ総合支援センター "]
[null,6,2043001,"核不拡散・核セキュリティ総合支援センター 計画管理室"]
[null,6,2043002,"核不拡散・核セキュリティ総合支援センター 能力構築国際支援室"]
[null,6,2043003,"核不拡散・核セキュリティ総合支援センター 政策調査室"]
[null,6,2043004,"核不拡散・核セキュリティ総合支援センター 技術開発推進室"]
[null,6,2043005,"核不拡散・核セキュリティ総合支援センター 輸送・研究炉燃料支援室"]
[null,6,2027000,"福島廃止措置技術開発センター "]
[null,6,2027001,"福島廃止措置技術開発センター 研究推進室"]
[null,6,2027002,"福島廃止措置技術開発センター 燃料デブリ取扱技術開発Gr"]
[null,6,2027003,"福島廃止措置技術開発センター 廃棄物処理・処分技術開発Gr"]
[null,6,2027004,"福島廃止措置技術開発センター 基盤技術開発Gr"]
[null,6,2030000,"安全研究センター  "]
[null,6,2030001,"安全研究センター  研究計画調整室"]
[null,6,2030014,"安全研究センター  規制情報分析室"]
[null,6,2030002,"安全研究センター 原子炉安全研究U "]
[null,6,2030003,"安全研究センター 原子炉安全研究U 熱水力安全研究Gr"]
[null,6,2030004,"安全研究センター 原子炉安全研究U 燃料安全研究Gr"]
[null,6,2030010,"安全研究センター 材料・構造安全研究U "]
[null,6,2030005,"安全研究センター 材料・構造安全研究U 構造健全性評価研究Gr"]
[null,6,2030011,"安全研究センター 材料・構造安全研究U 材料・水化学研究Gr"]
[null,6,2030015,"安全研究センター リスク評価研究U "]
[null,6,2030016,"安全研究センター リスク評価研究U シビアアクシデント評価研究Gr"]
[null,6,2030018,"安全研究センター リスク評価研究U 放射線安全・防災研究Gr"]
[null,6,2030006,"安全研究センター 燃料サイクル安全研究U "]
[null,6,2030008,"安全研究センター 燃料サイクル安全研究U サイクル安全研究Gr"]
[null,6,2030019,"安全研究センター 燃料サイクル安全研究U 臨界安全研究Gr"]
[null,6,2030020,"安全研究センター 環境安全研究U "]
[null,6,2030009,"安全研究センター 環境安全研究U 廃棄物安全研究Gr"]
[null,6,2030017,"安全研究センター 環境安全研究U 環境影響評価研究Gr"]
[null,6,2031000,"先端基礎研究センター "]
[null,6,2031001,"先端基礎研究センター 研究推進室"]
[null,6,2031004,"先端基礎研究センター 量子物性理論研究Gr"]
[null,6,2031006,"先端基礎研究センター 分子スピントロニクス研究Gr"]
[null,6,2031011,"先端基礎研究センター 力学的物質・スピン制御研究Gr"]
[null,6,2031002,"先端基礎研究センター 重原子核反応フロンティア研究Gr"]
[null,6,2031003,"先端基礎研究センター 超重元素研究Gr"]
[null,6,2031012,"先端基礎研究センター アクチノイド物質開発研究Gr"]
[null,6,2031013,"先端基礎研究センター 重元素系固体物理研究Gr"]
[null,6,2031014,"先端基礎研究センター ハドロン物理研究Gr"]
[null,6,2031009,"先端基礎研究センター バイオアクチノイド化学研究Gr"]
[null,6,2031010,"先端基礎研究センター 放射場生体分子科学研究Gr"]
[null,6,2031007,"先端基礎研究センター スピン偏極陽電子ビーム研究Gr"]
[null,6,2032000,"原子力基礎工学研究センター  "]
[null,6,2032001,"原子力基礎工学研究センター  研究推進室"]
[null,6,2032002,"原子力基礎工学研究センター 核工学・炉工学U "]
[null,6,2032007,"原子力基礎工学研究センター 核工学・炉工学U 核データ研究Gr"]
[null,6,2032033,"原子力基礎工学研究センター 核工学・炉工学U 炉物理標準コード研究Gr"]
[null,6,2032004,"原子力基礎工学研究センター 核工学・炉工学U 熱流動研究Gr"]
[null,6,2032031,"原子力基礎工学研究センター 核工学・炉工学U 原子力センシング研究Gr"]
[null,6,2032014,"原子力基礎工学研究センター 燃料・材料工学U "]
[null,6,2032019,"原子力基礎工学研究センター 燃料・材料工学U 防食材料技術開発Gr"]
[null,6,2032020,"原子力基礎工学研究センター 燃料・材料工学U 照射材料工学研究Gr"]
[null,6,2032034,"原子力基礎工学研究センター 燃料・材料工学U 燃料高温科学研究Gr"]
[null,6,2032040,"原子力基礎工学研究センター 原子力化学U "]
[null,6,2032028,"原子力基礎工学研究センター 原子力化学U 環境化学研究Gr"]
[null,6,2032024,"原子力基礎工学研究センター 原子力化学U 放射化学研究Gr"]
[null,6,2032041,"原子力基礎工学研究センター 原子力化学U 分析化学研究Gr"]
[null,6,2032022,"原子力基礎工学研究センター 環境・放射線科学U "]
[null,6,2032023,"原子力基礎工学研究センター 環境・放射線科学U 環境動態研究Gr"]
[null,6,2032026,"原子力基礎工学研究センター 環境・放射線科学U 放射線影響解析研究Gr"]
[null,6,2032027,"原子力基礎工学研究センター 環境・放射線科学U 放射線防護研究Gr"]
[null,6,2032042,"原子力基礎工学研究センター 福島基盤技術U "]
[null,6,2032043,"原子力基礎工学研究センター 福島基盤技術U 燃料デブリ解析研究Gr"]
[null,6,2032044,"原子力基礎工学研究センター 福島基盤技術U 炉内状況解析研究Gr"]
[null,6,2032045,"原子力基礎工学研究センター 福島基盤技術U 機器健全性評価研究Gr"]
[null,6,2032046,"原子力基礎工学研究センター 福島基盤技術U 水処理材料評価研究Gr"]
[null,6,2032047,"原子力基礎工学研究センター 分離変換技術開発U "]
[null,6,2032016,"原子力基礎工学研究センター 分離変換技術開発U 分離変換サイクル開発Gr"]
[null,6,2032005,"原子力基礎工学研究センター 分離変換技術開発U 核変換システム開発Gr"]
[null,6,2025000,"原子力エネルギー基盤連携センター  "]
[null,6,2025001,"原子力エネルギー基盤連携センター  次世代再処理材料開発特別Gr"]
[null,6,2025002,"原子力エネルギー基盤連携センター  軽水炉熱流動技術開発特別Gr"]
[null,6,2025004,"原子力エネルギー基盤連携センター  黒鉛・炭素材料挙動評価特別Gr"]
[null,6,2025005,"原子力エネルギー基盤連携センター  ガラス固化技術特別Gr"]
[null,6,2025006,"原子力エネルギー基盤連携センター  高温ガス炉要素技術開発特別Gr"]
[null,6,2025008,"原子力エネルギー基盤連携センター  加速器中性子利用ＲＩ生成技術開発特別Gr"]
[null,6,2025009,"原子力エネルギー基盤連携センター  材料溶融挙動評価特別Gr"]
[null,6,2025010,"原子力エネルギー基盤連携センター  水素安全技術高度化特別Gr"]
[null,6,2033000,"量子ビーム応用研究センター  "]
[null,6,2033001,"量子ビーム応用研究センター  研究推進室"]
[null,6,2033002,"量子ビーム応用研究センター 量子ビーム機能性分子解析技術研究U "]
[null,6,2033003,"量子ビーム応用研究センター 量子ビーム機能性分子解析技術研究U 分子構造・機能研究Gr"]
[null,6,2033004,"量子ビーム応用研究センター 量子ビーム機能性分子解析技術研究U 分子シミュレーション研究Gr"]
[null,6,2033005,"量子ビーム応用研究センター 量子ビーム機能性分子解析技術研究U 分子ダイナミクス研究Gr"]
[null,6,2033006,"量子ビーム応用研究センター 量子ビーム材料評価・構造制御技術研究U "]
[null,6,2033007,"量子ビーム応用研究センター 量子ビーム材料評価・構造制御技術研究U 多重自由度相関研究Gr"]
[null,6,2033008,"量子ビーム応用研究センター 量子ビーム材料評価・構造制御技術研究U ナノ構造制御研究Gr"]
[null,6,2033062,"量子ビーム応用研究センター 量子ビーム材料評価・構造制御技術研究U 強相関超分子研究Gr"]
[null,6,2033011,"量子ビーム応用研究センター 量子ビーム材料評価・構造制御技術研究U 中性子イメージング・分析研究Gr"]
[null,6,2033012,"量子ビーム応用研究センター 量子ビーム材料評価・構造制御技術研究U 弾塑性材料評価研究Gr"]
[null,6,2033023,"量子ビーム応用研究センター 医療・バイオ応用量子ビーム技術研究U "]
[null,6,2033026,"量子ビーム応用研究センター 医療・バイオ応用量子ビーム技術研究U ＲＩ医療応用研究Gr"]
[null,6,2033033,"量子ビーム応用研究センター レーザー応用技術研究U "]
[null,6,2033066,"量子ビーム応用研究センター レーザー応用技術研究U レーザー量子制御研究Gr"]
[null,6,2033060,"量子ビーム応用研究センター レーザー応用技術研究U 光量子融合研究Gr"]
[null,6,2033043,"量子ビーム応用研究センター レーザー応用技術研究U ガンマ線核種分析研究Gr"]
[null,6,2033044,"量子ビーム応用研究センター 量子ビーム物性制御・解析技術研究U "]
[null,6,2033048,"量子ビーム応用研究センター 量子ビーム物性制御・解析技術研究U 高密度物質研究Gr"]
[null,6,2033068,"量子ビーム応用研究センター 量子ビーム反応制御・解析技術研究U "]
[null,6,2033049,"量子ビーム応用研究センター 量子ビーム反応制御・解析技術研究U アクチノイド錯体化学研究Gr"]
[null,6,2033050,"量子ビーム応用研究センター 量子ビーム反応制御・解析技術研究U 表面反応ダイナミクス研究Gr"]
[null,6,2035000,"次世代高速炉サイクル研究開発センター  "]
[null,6,2035001,"次世代高速炉サイクル研究開発センター  プロジェクト推進室"]
[null,6,2035040,"次世代高速炉サイクル研究開発センター  設計・規格基準室"]
[null,6,2035033,"次世代高速炉サイクル研究開発センター 燃料サイクル技術開発部 "]
[null,6,2035022,"次世代高速炉サイクル研究開発センター 燃料サイクル技術開発部 燃料技術開発Gr"]
[null,6,2035023,"次世代高速炉サイクル研究開発センター 燃料サイクル技術開発部 再処理技術開発Gr"]
[null,6,2038000,"バックエンド研究開発部門  "]
[null,6,2038001,"バックエンド研究開発部門  企画調整室"]
[null,6,2040000,"廃棄物対策・埋設事業統括部 "]
[null,6,2040001,"廃棄物対策・埋設事業統括部 事業・立地推進課"]
[null,6,2040004,"廃棄物対策・埋設事業統括部 廃止措置計画課"]
[null,6,2040005,"廃棄物対策・埋設事業統括部 廃棄物処理計画課"]
[null,6,2040006,"廃棄物対策・埋設事業統括部 廃棄物処分計画課"]
[null,6,2040003,"廃棄物対策・埋設事業統括部 設計技術課"]
[null,6,2037000,"地層処分研究開発推進部 "]
[null,6,2037001,"地層処分研究開発推進部 処分システム研究計画推進課"]
[null,6,2037017,"地層処分研究開発推進部 地質環境研究統合課"]
[null,6,2037010,"深地層研究部 "]
[null,6,2037012,"深地層研究部 堆積岩地質環境研究Gr"]
[null,6,2089001,"人形峠環境技術センター 計画管理室 "]
[null,6,2034000,"核融合研究開発部門  "]
[null,6,2034001,"核融合研究開発部門  企画調整室"]
[null,6,2034010,"トカマクシステム技術開発部 "]
[null,6,2034012,"トカマクシステム技術開発部 JT-60本体開発Gr"]
[null,6,2034039,"核融合炉システム研究開発部 "]
[null,6,2034048,"核融合炉材料研究開発部 "]
[null,6,2034042,"核融合炉材料研究開発部 IFMIF加速器施設開発Gr"]
[null,6,2034043,"核融合炉材料研究開発部 IFMIF照射・試験施設開発Gr"]
[null,6,2034033,"核融合炉材料研究開発部 核融合炉構造材料開発Gr"]
[null,6,2034020,"核融合炉材料研究開発部 核融合中性子工学研究Gr"]
[null,6,2034015,"ブランケット研究開発部 "]
[null,6,2034019,"ブランケット研究開発部 トリチウム工学研究Gr"]
[null,6,2064000,"役員室 "]
[null,7,3000000,"（大洗拠点）   "]
[null,7,3009001,"計画管理室 "]
[null,7,3001000,"安全管理部 "]
[null,7,3001001,"安全管理部 安全対策課"]
[null,7,3001006,"安全管理部 施設安全課"]
[null,7,3001002,"安全管理部 危機管理課"]
[null,7,3001007,"安全管理部 核物質管理課"]
[null,7,3001003,"安全管理部 環境監視線量計測課"]
[null,7,3001004,"安全管理部 放射線管理第１課"]
[null,7,3001005,"安全管理部 放射線管理第２課"]
[null,7,3002000,"管理部 "]
[null,7,3002001,"管理部 総務・共生課"]
[null,7,3002003,"管理部 経理課"]
[null,7,3002004,"管理部 調達課"]
[null,7,3002005,"管理部 労務課"]
[null,7,3002006,"管理部 工務課"]
[null,7,3005000,"福島燃料材料試験部 "]
[null,7,3005005,"福島燃料材料試験部 燃料技術管理課"]
[null,7,3005001,"福島燃料材料試験部 集合体試験課"]
[null,7,3005002,"福島燃料材料試験部 燃料試験課"]
[null,7,3005003,"福島燃料材料試験部 材料試験課"]
[null,7,3010000,"照射試験炉センター  "]
[null,7,3010002,"照射試験炉センター  計画推進課"]
[null,7,3010003,"照射試験炉センター  照射試験開発課"]
[null,7,3006000,"材料試験炉部 "]
[null,7,3006001,"材料試験炉部 業務課"]
[null,7,3006002,"材料試験炉部 技術課"]
[null,7,3006003,"材料試験炉部 原子炉第1課"]
[null,7,3006006,"材料試験炉部 原子炉第2課"]
[null,7,3006004,"材料試験炉部 照射課"]
[null,7,3006005,"材料試験炉部 ホットラボ課"]
[null,7,3007000,"高温工学試験研究炉部 "]
[null,7,3007001,"高温工学試験研究炉部 業務課"]
[null,7,3007002,"高温工学試験研究炉部 HTTR計画課"]
[null,7,3007003,"高温工学試験研究炉部 HTTR技術課"]
[null,7,3007004,"高温工学試験研究炉部 HTTR運転管理課"]
[null,7,3003000,"高速炉技術開発部 "]
[null,7,3003004,"高速炉技術開発部 熱流体技術開発課"]
[null,7,3003007,"高速炉技術開発部 機械強度試験技術課"]
[null,7,3003008,"高速炉技術開発部 ナトリウム応用・計測技術開発課"]
[null,7,3003006,"高速炉技術開発部 機器開発試験技術課"]
[null,7,3004000,"高速実験炉部 "]
[null,7,3004001,"高速実験炉部 高速炉技術課"]
[null,7,3004002,"高速実験炉部 高速炉第1課"]
[null,7,3004003,"高速実験炉部 高速炉第2課"]
[null,7,3004004,"高速実験炉部 保全・照射技術開発課"]
[null,7,3008000,"環境保全部 "]
[null,7,3008001,"環境保全部 環境計画課"]
[null,7,3008002,"環境保全部 環境技術課"]
[null,7,3008003,"環境保全部 廃棄物管理課"]
[null,7,3008004,"環境保全部 減容処理施設整備室"]
[null,7,3069000,"事業計画統括部 "]
[null,7,3058000,"人事部 "]
[null,7,3058001,"人事部 人事課"]
[null,7,3058004,"人事部 職員課"]
[null,7,3050000,"研究連携成果展開部 "]
[null,7,3050002,"研究連携成果展開部 連携協力課"]
[null,7,3050004,"研究連携成果展開部 知的財産管理・利用促進課"]
[null,7,3050008,"研究連携成果展開部 科学技術情報課"]
[null,7,3061000,"建設部 "]
[null,7,3061001,"建設部 業務課"]
[null,7,3061002,"建設部 施設技術課"]
[null,7,3061003,"建設部 建設課"]
[null,7,3061004,"建設部 設備課"]
[null,7,3061005,"建設部 大洗大型施設建設室"]
[null,7,3053000,"システム計算科学センター "]
[null,7,3053003,"システム計算科学センター 情報システム管理室"]
[null,7,3053004,"システム計算科学センター OAシステム室"]
[null,7,3055000,"原子力人材育成センター "]
[null,7,3055001,"原子力人材育成センター 原子力人材育成推進課"]
[null,7,3043000,"核不拡散・核セキュリティ総合支援センター "]
[null,7,3043005,"核不拡散・核セキュリティ総合支援センター 輸送・研究炉燃料支援室"]
[null,7,3027000,"福島廃止措置技術開発センター "]
[null,7,3027003,"福島廃止措置技術開発センター 廃棄物処理・処分技術開発Gr"]
[null,7,3027004,"福島廃止措置技術開発センター 基盤技術開発Gr"]
[null,7,3027005,"福島廃止措置技術開発センター 燃料溶融複雑系試験準備室"]
[null,7,3031000,"先端基礎研究センター "]
[null,7,3031001,"先端基礎研究センター 研究推進室"]
[null,7,3032000,"原子力基礎工学研究センター  "]
[null,7,3032001,"原子力基礎工学研究センター  研究推進室"]
[null,7,3032002,"原子力基礎工学研究センター 核工学・炉工学U "]
[null,7,3032014,"原子力基礎工学研究センター 燃料・材料工学U "]
[null,7,3032020,"原子力基礎工学研究センター 燃料・材料工学U 照射材料工学研究Gr"]
[null,7,3032034,"原子力基礎工学研究センター 燃料・材料工学U 燃料高温科学研究Gr"]
[null,7,3032040,"原子力基礎工学研究センター 原子力化学U "]
[null,7,3032042,"原子力基礎工学研究センター 福島基盤技術U "]
[null,7,3032048,"原子力基礎工学研究センター 福島基盤技術U 炉心溶融影響解析研究Gr"]
[null,7,3032047,"原子力基礎工学研究センター 分離変換技術開発U "]
[null,7,3032016,"原子力基礎工学研究センター 分離変換技術開発U 分離変換サイクル開発Gr"]
[null,7,3025000,"原子力エネルギー基盤連携センター  "]
[null,7,3025004,"原子力エネルギー基盤連携センター  黒鉛・炭素材料挙動評価特別Gr"]
[null,7,3025006,"原子力エネルギー基盤連携センター  高温ガス炉要素技術開発特別Gr"]
[null,7,3025010,"原子力エネルギー基盤連携センター  水素安全技術高度化特別Gr"]
[null,7,3042000,"原子力水素・熱利用研究センター  "]
[null,7,3042001,"原子力水素・熱利用研究センター  研究推進室"]
[null,7,3042002,"原子力水素・熱利用研究センター 小型高温ガス炉研究開発U "]
[null,7,3042003,"原子力水素・熱利用研究センター 小型高温ガス炉研究開発U 原子炉設計Gr"]
[null,7,3042004,"原子力水素・熱利用研究センター 小型高温ガス炉研究開発U 国際共同試験Gr"]
[null,7,3042008,"原子力水素・熱利用研究センター 小型高温ガス炉研究開発U 安全設計Gr"]
[null,7,3042005,"原子力水素・熱利用研究センター 水素利用研究開発U "]
[null,7,3042006,"原子力水素・熱利用研究センター 水素利用研究開発U ＩＳプロセス信頼性確証試験Gr"]
[null,7,3042007,"原子力水素・熱利用研究センター 水素利用研究開発U 熱利用システム設計Gr"]
[null,7,3035000,"次世代高速炉サイクル研究開発センター  "]
[null,7,3035001,"次世代高速炉サイクル研究開発センター  プロジェクト推進室"]
[null,7,3035040,"次世代高速炉サイクル研究開発センター  設計・規格基準室"]
[null,7,3035043,"次世代高速炉サイクル研究開発センター 高速炉計算工学技術開発部 "]
[null,7,3035014,"次世代高速炉サイクル研究開発センター 高速炉計算工学技術開発部 システム統合Gr"]
[null,7,3035052,"次世代高速炉サイクル研究開発センター 高速炉計算工学技術開発部 システム安全解析Gr"]
[null,7,3035053,"次世代高速炉サイクル研究開発センター 高速炉計算工学技術開発部 炉心挙動解析Gr"]
[null,7,3035054,"次世代高速炉サイクル研究開発センター 高速炉計算工学技術開発部 流動・系統解析Gr"]
[null,7,3035011,"次世代高速炉サイクル研究開発センター 高速炉安全技術開発部 "]
[null,7,3035018,"次世代高速炉サイクル研究開発センター 高速炉安全技術開発部 構造・材料信頼性評価技術開発Gr"]
[null,7,3035051,"次世代高速炉サイクル研究開発センター 高速炉安全技術開発部 炉心安全評価技術開発Gr"]
[null,7,3035033,"次世代高速炉サイクル研究開発センター 燃料サイクル技術開発部 "]
[null,7,3035022,"次世代高速炉サイクル研究開発センター 燃料サイクル技術開発部 燃料材料開発Gr"]
[null,7,3034000,"核融合研究開発部門  "]
[null,7,3034039,"核融合炉システム研究開発部 "]
[null,7,3034048,"核融合炉材料研究開発部 "]
[null,7,3034042,"核融合炉材料研究開発部 IFMIF加速器施設開発Gr"]
[null,7,3034043,"核融合炉材料研究開発部 IFMIF照射・試験施設開発Gr"]
[null,7,3034015,"ブランケット研究開発部 "]
[null,7,3034022,"ブランケット研究開発部 増殖機能材料開発Gr"]
[null,7,3011000,"敦賀本部 原子力廃止措置研究開発センター  "]
[null,7,3011001,"敦賀本部 原子力廃止措置研究開発センター 技術開発部 "]
[null,7,3011002,"敦賀本部 原子力廃止措置研究開発センター 技術開発部 技術開発課"]
[null,7,3012000,"敦賀本部 レーザー共同研究所  "]
[null,7,3012002,"敦賀本部 レーザー共同研究所  レーザー応用技術開発室"]
[null,7,3023000,"敦賀本部 FBR安全技術センター  "]
[null,7,3023004,"敦賀本部 FBR安全技術センター  シビアアクシデント評価Gr"]
[null,7,3064000,"役員室 "]
[null,8,4000000,"（敦賀拠点）   "]
[null,8,4024000,"もんじゅ安全・改革本部 "]
[null,8,4024001,"もんじゅ安全・改革本部 もんじゅ安全・改革室"]
[null,8,4062000,"高速炉研究開発部門  "]
[null,8,4062001,"高速炉研究開発部門  企画調整室"]
[null,8,4000000,"敦賀事業本部  "]
[null,8,4002000,"安全品質推進室 "]
[null,8,4003000,"業務管理部 "]
[null,8,4003001,"業務管理部 総務・共生課"]
[null,8,4003009,"業務管理部 福井共生室"]
[null,8,4003002,"業務管理部 広報課"]
[null,8,4003004,"業務管理部 労務課"]
[null,8,4003005,"業務管理部 経理課"]
[null,8,4003006,"業務管理部 調達課"]
[null,8,4004000,"高速増殖炉研究開発センター  "]
[null,8,4004004,"高速増殖炉研究開発センター  危機管理室"]
[null,8,4004003,"高速増殖炉研究開発センター  管理課"]
[null,8,4021000,"技術部 "]
[null,8,4021001,"技術部 技術課"]
[null,8,4022000,"プラント管理部 "]
[null,8,4022001,"プラント管理部 安全管理課"]
[null,8,4022002,"プラント管理部 発電課"]
[null,8,4005000,"プラント保全部 "]
[null,8,4005010,"プラント保全部 電気保修課"]
[null,8,4005011,"プラント保全部 施設保全課"]
[null,8,4005007,"プラント保全部 燃料環境課"]
[null,8,4007000,"国際産学連携センター  "]
[null,8,4007001,"国際産学連携センター  国際協力室"]
[null,8,4007005,"国際産学連携センター  産学連携推進室"]
[null,8,4033000,"量子ビーム応用研究センター  "]
[null,8,4033071,"量子ビーム応用研究センター レーザー共同研究所 "]
[null,8,4033072,"量子ビーム応用研究センター レーザー共同研究所 レーザー技術利用推進室"]
[null,8,4033073,"量子ビーム応用研究センター レーザー共同研究所 レーザー応用技術開発室"]
[null,8,4042000,"高速増殖原型炉もんじゅ  "]
[null,8,4042001,"高速増殖原型炉もんじゅ  品質保証室"]
[null,8,4043000,"高速増殖原型炉もんじゅ 運営管理部 "]
[null,8,4043001,"高速増殖原型炉もんじゅ 運営管理部 技術総括課"]
[null,8,4043002,"高速増殖原型炉もんじゅ 運営管理部 管理課"]
[null,8,4043003,"高速増殖原型炉もんじゅ 運営管理部 危機管理課"]
[null,8,4044000,"高速増殖原型炉もんじゅ プラント管理部 "]
[null,8,4044001,"高速増殖原型炉もんじゅ プラント管理部 安全管理課"]
[null,8,4044002,"高速増殖原型炉もんじゅ プラント管理部 炉心・燃料課"]
[null,8,4044003,"高速増殖原型炉もんじゅ プラント管理部 発電課"]
[null,8,4045000,"高速増殖原型炉もんじゅ プラント保全部 "]
[null,8,4045001,"高速増殖原型炉もんじゅ プラント保全部 保全管理課"]
[null,8,4045002,"高速増殖原型炉もんじゅ プラント保全部 保全計画課"]
[null,8,4045003,"高速増殖原型炉もんじゅ プラント保全部 機械保修課"]
[null,8,4045004,"高速増殖原型炉もんじゅ プラント保全部 電気保修課"]
[null,8,4045005,"高速増殖原型炉もんじゅ プラント保全部 施設保全課"]
[null,8,4045006,"高速増殖原型炉もんじゅ プラント保全部 燃料環境課"]
[null,8,4026000,"もんじゅ運営計画・研究開発センター  "]
[null,8,4027000,"もんじゅ運営計画・研究開発センター 計画管理部 "]
[null,8,4027001,"もんじゅ運営計画・研究開発センター 計画管理部 計画管理課"]
[null,8,4027002,"もんじゅ運営計画・研究開発センター 計画管理部 技術管理課"]
[null,8,4027003,"もんじゅ運営計画・研究開発センター 計画管理部 品質保証課"]
[null,8,4027004,"もんじゅ運営計画・研究開発センター 計画管理部 安全技術課"]
[null,8,4027005,"もんじゅ運営計画・研究開発センター 計画管理部 環境監視課"]
[null,8,4028000,"もんじゅ運営計画・研究開発センター プラント安全評価部 "]
[null,8,4028001,"もんじゅ運営計画・研究開発センター プラント安全評価部 プラント安全評価Gr"]
[null,8,4028002,"もんじゅ運営計画・研究開発センター プラント安全評価部 ナトリウム安全・格納容器評価Gr"]
[null,8,4028003,"もんじゅ運営計画・研究開発センター プラント安全評価部 炉心・燃料特性評価Gr"]
[null,8,4029000,"もんじゅ運営計画・研究開発センター プラント技術支援部 "]
[null,8,4029001,"もんじゅ運営計画・研究開発センター プラント技術支援部 運転技術支援課"]
[null,8,4029002,"もんじゅ運営計画・研究開発センター プラント技術支援部 保全技術開発Gr"]
[null,8,4029003,"もんじゅ運営計画・研究開発センター プラント技術支援部 耐震・構造評価Gr"]
[null,8,4029004,"もんじゅ運営計画・研究開発センター プラント技術支援部 自然現象評価Gr"]
[null,8,4006000,"原子力廃止措置研究開発センター  "]
[null,8,4006008,"原子力廃止措置研究開発センター  計画管理課"]
[null,8,4006001,"原子力廃止措置研究開発センター  管理課"]
[null,8,4006004,"原子力廃止措置研究開発センター  安全品質管理課"]
[null,8,4006002,"原子力廃止措置研究開発センター  環境管理課"]
[null,8,4008000,"技術開発部 "]
[null,8,4008002,"技術開発部 技術開発課"]
[null,8,4008003,"技術開発部 設備保全課"]
[null,8,4008004,"技術開発部 開発実証課"]
[null,8,4008005,"技術開発部 技術調査課"]
[null,8,4058000,"人事部 "]
[null,8,4009001,"大洗研究開発センター 計画管理室 "]
[null,8,4050000,"研究連携成果展開部 "]
[null,8,4061000,"建設部 "]
[null,8,4061003,"建設部 建設課"]
[null,8,4055000,"原子力人材育成センター "]
[null,8,4055001,"原子力人材育成センター 原子力人材育成推進課"]
[null,8,4087000,"大洗研究開発センター 福島燃料材料試験部  "]
[null,8,4087001,"大洗研究開発センター 福島燃料材料試験部  集合体試験課"]
[null,8,4087002,"大洗研究開発センター 福島燃料材料試験部  燃料試験課"]
[null,8,4087003,"大洗研究開発センター 福島燃料材料試験部  材料試験課"]
[null,8,4030000,"安全研究センター  "]
[null,8,4030001,"安全研究センター  研究計画調整室"]
[null,8,4018000,"原子力緊急時支援・研修センター "]
[null,8,4018001,"原子力緊急時支援・研修センター 福井支所"]
[null,8,4032000,"原子力基礎工学研究センター  "]
[null,8,4032014,"原子力基礎工学研究センター 燃料・材料工学U "]
[null,8,4032020,"原子力基礎工学研究センター 燃料・材料工学U 照射材料工学研究Gr"]
[null,8,4084000,"原子力科学研究所 保安管理部  "]
[null,8,4084003,"原子力科学研究所 保安管理部  施設安全課"]
[null,8,4035000,"次世代高速炉サイクル研究開発センター  "]
[null,8,4035001,"次世代高速炉サイクル研究開発センター  プロジェクト推進室"]
[null,8,4020000,"大洗研究開発センター 高速炉技術開発部  "]
[null,8,4020004,"大洗研究開発センター 高速炉技術開発部  熱流体技術開発課"]
[null,8,4082000,"大洗研究開発センター 高速実験炉部  "]
[null,8,4082001,"大洗研究開発センター 高速実験炉部  高速炉技術課"]
[null,8,4082002,"大洗研究開発センター 高速実験炉部  高速炉第1課"]
[null,8,4082003,"大洗研究開発センター 高速実験炉部  高速炉第2課"]
[null,8,4038000,"バックエンド研究開発部門  "]
[null,8,4038001,"バックエンド研究開発部門  企画調整室"]
[null,8,4040000,"廃棄物対策・埋設事業統括部 "]
[null,8,4040004,"廃棄物対策・埋設事業統括部 廃止措置計画課"]
[null,8,4015000,"核サ研) 再処理技術開発センター  "]
[null,8,4015002,"核サ研) 再処理技術開発センター  品質保証課"]
[null,8,4037013,"地層科学研究部  "]
[null,8,4037016,"地層科学研究部  ネオテクトニクス研究Gr"]
[null,8,4088000,"大洗研究開発センター 環境保全部  "]
[null,8,4088002,"大洗研究開発センター 環境保全部  環境技術課"]
[null,8,4064000,"役員室 "]
[null,9,5000000,"(那珂拠点)   "]
[null,9,5001000,"核融合研究開発部門 管理部 "]
[null,9,5001004,"核融合研究開発部門 管理部 保安管理課"]
[null,9,5001001,"核融合研究開発部門 管理部 総務課"]
[null,9,5001002,"核融合研究開発部門 管理部 経理課"]
[null,9,5001003,"核融合研究開発部門 管理部 工務課"]
[null,9,5058000,"人事部 "]
[null,9,5058004,"人事部 職員課"]
[null,9,5051000,"建設部 "]
[null,9,5051001,"建設部 業務課"]
[null,9,5051002,"建設部 施設技術課"]
[null,9,5051003,"建設部 建設課"]
[null,9,5051004,"建設部 設備課"]
[null,9,5051007,"建設部 耐震対応整備室"]
[null,9,5050000,"研究連携成果展開部 "]
[null,9,5053000,"システム計算科学センター "]
[null,9,5053003,"システム計算科学センター 情報システム管理室"]
[null,9,5055000,"原子力人材育成センター "]
[null,9,5055001,"原子力人材育成センター 原子力人材育成推進課"]
[null,9,5006000,"大洗研究開発センター 材料試験炉部  "]
[null,9,5034000,"核融合研究開発部門  "]
[null,9,5034001,"核融合研究開発部門  企画調整室"]
[null,9,5034002,"ITERプロジェクト部 "]
[null,9,5034027,"ITERプロジェクト部 ITER計画管理Gr"]
[null,9,5034028,"ITERプロジェクト部 ITER統合支援Gr"]
[null,9,5034029,"ITERプロジェクト部 ITERトカマク本体開発Gr"]
[null,9,5034045,"ITERプロジェクト部 超伝導コイル開発Gr"]
[null,9,5034046,"ITERプロジェクト部 超伝導導体開発Gr"]
[null,9,5034047,"ITERプロジェクト部 超伝導コイル試験Gr"]
[null,9,5034035,"ITERプロジェクト部 計測開発Gr"]
[null,9,5034013,"ITERプロジェクト部 RF加熱開発Gr"]
[null,9,5034014,"ITERプロジェクト部 NB加熱開発Gr"]
[null,9,5034010,"トカマクシステム技術開発部 "]
[null,9,5034043,"トカマクシステム技術開発部 JT-60システム統合Gr"]
[null,9,5034036,"トカマクシステム技術開発部 JT-60マグネットシステム開発Gr"]
[null,9,5034012,"トカマクシステム技術開発部 JT-60本体開発Gr"]
[null,9,5034011,"トカマクシステム技術開発部 JT-60電源・制御開発Gr"]
[null,9,5034038,"トカマクシステム技術開発部 JT-60安全評価Gr"]
[null,9,5034003,"先進プラズマ研究部 "]
[null,9,5034032,"先進プラズマ研究部 先進プラズマ計画調整Gr"]
[null,9,5034005,"先進プラズマ研究部 先進プラズマモデリングGr"]
[null,9,5034006,"先進プラズマ研究部 先進プラズマ実験Gr"]
[null,9,5034039,"核融合炉システム研究開発部 "]
[null,9,5034041,"核融合炉システム研究開発部 BA計画調整Gr"]
[null,9,5034008,"核融合炉システム研究開発部 プラズマ理論シミュレーションGr"]
[null,9,5034009,"核融合炉システム研究開発部 核融合炉システム研究Gr"]
[null,9,5034048,"核融合炉材料研究開発部 "]
[null,9,5034042,"核融合炉材料研究開発部 IFMIF加速器施設開発Gr"]
[null,9,5034044,"核融合炉材料研究開発部 IFMIF照射・試験施設開発Gr"]
[null,9,5034021,"核融合炉材料研究開発部 核融合炉構造材料開発Gr"]
[null,9,5034020,"核融合炉材料研究開発部 核融合中性子工学研究Gr"]
[null,9,5034015,"ブランケット研究開発部 "]
[null,9,5034016,"ブランケット研究開発部 ブランケット工学研究Gr"]
[null,9,5034019,"ブランケット研究開発部 トリチウム工学研究Gr"]
[null,9,5034022,"ブランケット研究開発部 増殖機能材料開発Gr"]
[null,10,6000000,"（高崎拠点）   "]
[null,10,6001000,"管理部 "]
[null,10,6001004,"管理部 保安管理課"]
[null,10,6001001,"管理部 総務課"]
[null,10,6001002,"管理部 経理課"]
[null,10,6001003,"管理部 工務課"]
[null,10,6002000,"放射線高度利用施設部 "]
[null,10,6002002,"放射線高度利用施設部 利用計画課"]
[null,10,6002003,"放射線高度利用施設部 イオン加速器管理課"]
[null,10,6002004,"放射線高度利用施設部 照射施設管理課"]
[null,10,6002005,"放射線高度利用施設部 ビーム技術開発課"]
[null,10,6056000,"事業計画統括部 "]
[null,10,6056002,"事業計画統括部 評価室"]
[null,10,6058000,"人事部 "]
[null,10,6058004,"人事部 職員課"]
[null,10,6050000,"研究連携成果展開部 "]
[null,10,6050002,"研究連携成果展開部 連携協力課"]
[null,10,6050004,"研究連携成果展開部 知的財産管理・利用促進課"]
[null,10,6061000,"建設部 "]
[null,10,6061003,"建設部 建設課"]
[null,10,6061004,"建設部 設備課"]
[null,10,6055000,"原子力人材育成センター "]
[null,10,6055001,"原子力人材育成センター 原子力人材育成推進課"]
[null,10,6043000,"核不拡散・核セキュリティ総合支援センター "]
[null,10,6043004,"核不拡散・核セキュリティ総合支援センター 技術開発推進室"]
[null,10,6031000,"先端基礎研究センター "]
[null,10,6031006,"先端基礎研究センター 分子スピントロニクス研究Gr"]
[null,10,6031011,"先端基礎研究センター 力学的物質・スピン制御研究Gr"]
[null,10,6031007,"先端基礎研究センター スピン偏極陽電子ビーム研究Gr"]
[null,10,6032000,"原子力基礎工学研究センター  "]
[null,10,6032040,"原子力基礎工学研究センター 原子力化学U "]
[null,10,6032024,"原子力基礎工学研究センター 原子力化学U 放射化学研究Gr"]
[null,10,6032047,"原子力基礎工学研究センター 分離変換技術開発U "]
[null,10,6032016,"原子力基礎工学研究センター 分離変換技術開発U 分離変換サイクル開発Gr"]
[null,10,6033000,"量子ビーム応用研究センター  "]
[null,10,6033001,"量子ビーム応用研究センター  研究推進室"]
[null,10,6033023,"量子ビーム応用研究センター 医療・バイオ応用量子ビーム技術研究U "]
[null,10,6033024,"量子ビーム応用研究センター 医療・バイオ応用量子ビーム技術研究U イオンビーム変異誘発研究Gr"]
[null,10,6033025,"量子ビーム応用研究センター 医療・バイオ応用量子ビーム技術研究U マイクロビーム細胞照射研究Gr"]
[null,10,6033026,"量子ビーム応用研究センター 医療・バイオ応用量子ビーム技術研究U ＲＩ医療応用研究Gr"]
[null,10,6033063,"量子ビーム応用研究センター 医療・バイオ応用量子ビーム技術研究U ＲＩイメージング研究Gr"]
[null,10,6033064,"量子ビーム応用研究センター 医療・バイオ応用量子ビーム技術研究U 照射細胞解析研究Gr"]
[null,10,6033027,"量子ビーム応用研究センター 環境・産業応用量子ビーム技術研究U "]
[null,10,6033028,"量子ビーム応用研究センター 環境・産業応用量子ビーム技術研究U 高性能高分子材料研究Gr"]
[null,10,6033029,"量子ビーム応用研究センター 環境・産業応用量子ビーム技術研究U 機能性セラミック材料研究Gr"]
[null,10,6033030,"量子ビーム応用研究センター 環境・産業応用量子ビーム技術研究U 半導体耐放射線性研究Gr"]
[null,10,6033031,"量子ビーム応用研究センター 環境・産業応用量子ビーム技術研究U 環境機能高分子材料研究Gr"]
[null,10,6033032,"量子ビーム応用研究センター 環境・産業応用量子ビーム技術研究U 環境材料プロセシング研究Gr"]
[null,11,7000000,"（関西拠点）   "]
[null,11,7001000,"管理部 "]
[null,11,7001004,"管理部 保安工務課"]
[null,11,7001001,"管理部 総務課"]
[null,11,7001002,"管理部 経理課"]
[null,11,7002000,"プロジェクト推進室 "]
[null,11,7058000,"人事部 "]
[null,11,7058004,"人事部 職員課"]
[null,11,7050000,"研究連携成果展開部 "]
[null,11,7050002,"研究連携成果展開部 連携協力課"]
[null,11,7053000,"システム計算科学センター "]
[null,11,7053002,"システム計算科学センター 情報システム利用推進室"]
[null,11,7053003,"システム計算科学センター 情報システム管理室"]
[null,11,7053006,"システム計算科学センター シミュレーション技術開発室"]
[null,11,7055000,"原子力人材育成センター "]
[null,11,7055001,"原子力人材育成センター 原子力人材育成推進課"]
[null,11,7033000,"量子ビーム応用研究センター  "]
[null,11,7033001,"量子ビーム応用研究センター  研究推進室"]
[null,11,7033002,"量子ビーム応用研究センター 量子ビーム機能性分子解析技術研究U "]
[null,11,7033004,"量子ビーム応用研究センター 量子ビーム機能性分子解析技術研究U 分子シミュレーション研究Gr"]
[null,11,7033005,"量子ビーム応用研究センター 量子ビーム機能性分子解析技術研究U 分子ダイナミクス研究Gr"]
[null,11,7033006,"量子ビーム応用研究センター 量子ビーム材料評価・構造制御技術研究U "]
[null,11,7033012,"量子ビーム応用研究センター 量子ビーム材料評価・構造制御技術研究U 　弾塑性材料評価研究Gr"]
[null,11,7033023,"量子ビーム応用研究センター 医療・バイオ応用量子ビーム技術研究U "]
[null,11,7033064,"量子ビーム応用研究センター 医療・バイオ応用量子ビーム技術研究U 照射細胞解析研究Gr"]
[null,11,7033033,"量子ビーム応用研究センター 先進ビーム技術研究U "]
[null,11,7033036,"量子ビーム応用研究センター 先進ビーム技術研究U レーザー駆動粒子線研究Gr"]
[null,11,7033037,"量子ビーム応用研究センター 先進ビーム技術研究U レーザー電子加速研究Gr"]
[null,11,7033034,"量子ビーム応用研究センター 先進ビーム技術研究U Ｘ線レーザー応用研究Gr"]
[null,11,7033070,"量子ビーム応用研究センター 先進ビーム技術研究U 高出力レーザー研究Gr"]
[null,11,7033065,"量子ビーム応用研究センター レーザー応用技術研究U "]
[null,11,7033035,"量子ビーム応用研究センター レーザー応用技術研究U 高強度場物質制御研究Gr"]
[null,11,7033066,"量子ビーム応用研究センター レーザー応用技術研究U レーザー量子制御研究Gr"]
[null,11,7033060,"量子ビーム応用研究センター レーザー応用技術研究U 光量子融合研究Gr"]
[null,11,7033043,"量子ビーム応用研究センター レーザー応用技術研究U ガンマ線核種分析研究Gr"]
[null,11,7033059,"量子ビーム応用研究センター レーザー応用技術研究U 次世代レーザー開発研究Gr"]
[null,11,7033044,"量子ビーム応用研究センター 量子ビーム物性制御・解析技術研究U "]
[null,11,7033048,"量子ビーム応用研究センター 量子ビーム物性制御・解析技術研究U 高密度物質研究Gr"]
[null,11,7033046,"量子ビーム応用研究センター 量子ビーム物性制御・解析技術研究U 量子構造研究Gr"]
[null,11,7033051,"量子ビーム応用研究センター 量子ビーム物性制御・解析技術研究U 電子構造研究Gr"]
[null,11,7033052,"量子ビーム応用研究センター 量子ビーム物性制御・解析技術研究U 量子シミュレーション研究Gr"]
[null,11,7033067,"量子ビーム応用研究センター 量子ビーム物性制御・解析技術研究U コヒーレントＸ線利用研究Gr"]
[null,11,7033068,"量子ビーム応用研究センター 量子ビーム反応制御・解析技術研究U "]
[null,11,7033049,"量子ビーム応用研究センター 量子ビーム反応制御・解析技術研究U アクチノイド錯体化学研究Gr"]
[null,11,7033047,"量子ビーム応用研究センター 量子ビーム反応制御・解析技術研究U 量子ダイナミクス研究Gr"]
[null,11,7033050,"量子ビーム応用研究センター 量子ビーム反応制御・解析技術研究U 表面反応ダイナミクス研究Gr"]
[null,11,7064000,"役員室 "]
[null,12,8000000,"（幌延拠点）   "]
[null,12,8000001," 保安・建設課"]
[null,12,8000002," 総務・共生課"]
[null,12,8000003," 経理課"]
[null,12,8037010,"深地層研究部 "]
[null,12,8037018,"深地層研究部 研究計画調整Gr"]
[null,12,8037011,"深地層研究部 堆積岩処分技術開発Gr"]
[null,12,8037012,"深地層研究部 堆積岩地質環境研究Gr"]
[null,12,8058000,"人事部 "]
[null,12,8061000,"建設部 "]
[null,12,8061003,"建設部 建設課"]
[null,12,8061004,"建設部 設備課"]
[null,12,8055000,"原子力人材育成センター "]
[null,12,8055001,"原子力人材育成センター 原子力人材育成推進課"]
[null,12,8030000,"安全研究センター  "]
[null,12,8030008,"安全研究センター  サイクル安全研究Gr"]
[null,12,8030009,"安全研究センター  廃棄物安全研究Gr"]
[null,12,8046000,"核サ研 環境技術開発センター  "]
[null,12,8047000,"基盤技術研究開発部 "]
[null,12,8047002,"基盤技術研究開発部 ニアフィールド研究Gr"]
[null,13,9000000,"（東濃拠点）   "]
[null,13,9000001," 保安管理課"]
[null,13,9000002," 総務・共生課"]
[null,13,9000004," 経理課"]
[null,13,9000005," 鉱山措置課"]
[null,13,9000006," 施設建設課"]
[null,13,9038000,"地層科学研究部 "]
[null,13,9038001,"地層科学研究部 結晶質岩工学技術開発Gr"]
[null,13,9038002,"地層科学研究部 結晶質岩地質環境研究Gr"]
[null,13,9038003,"地層科学研究部 ネオテクトニクス研究Gr"]
[null,13,9058000,"人事部 "]
[null,13,9061000,"建設部 "]
[null,13,9061003,"建設部 建設課"]
[null,13,9052000,"研究技術情報部 "]
[null,13,9055000,"原子力人材育成センター "]
[null,13,9055001,"原子力人材育成センター 原子力人材育成推進課"]
[null,13,9037000,"地層処分研究開発推進部 "]
[null,13,9037001,"地層処分研究開発推進部 処分システム研究計画推進課"]
[null,14,10000000,"（人形峠拠点）   "]
[null,14,10000001," 安全管理課"]
[null,14,10000002," 計画管理室"]
[null,14,10000003," 総務課"]
[null,14,10000004," 経理課"]
[null,14,10001000,"環境保全技術開発部 "]
[null,14,10001008,"環境保全技術開発部 施設管理課"]
[null,14,10001009,"環境保全技術開発部 設備処理課"]
[null,14,10001010,"環境保全技術開発部 研究開発推進課"]
[null,14,10001011,"環境保全技術開発部 処理技術開発課"]
[null,14,10001012,"環境保全技術開発部 環境技術開発課"]
[null,14,10058000,"人事部 "]
[null,14,10061000,"建設部 "]
[null,14,10061003,"建設部 建設課"]
[null,14,10061004,"建設部 設備課"]
[null,14,10052000,"研究技術情報部 "]
[null,14,10050000,"研究連携成果展開部 "]
[null,14,10055000,"原子力人材育成センター "]
[null,14,10055001,"原子力人材育成センター 原子力人材育成推進課"]
[null,14,10064000,"役員室 "]
[null,15,11000000,"（青森拠点）   "]
[null,15,11001000,"管理部 "]
[null,15,11001001,"管理部 総務課"]
[null,15,11001004,"管理部 経理課"]
[null,15,11001002,"管理部 工務課"]
[null,15,11002000,"むつ事務所 "]
[null,15,11002004,"むつ事務所 保安管理課"]
[null,15,11002001,"むつ事務所 施設管理課"]
[null,15,11002003,"むつ事務所 AMS管理課"]
[null,15,11021001,"サイクル協力室 "]
[null,15,11058000,"人事部 "]
[null,15,11055000,"原子力人材育成センター "]
[null,15,11055001,"原子力人材育成センター 原子力人材育成推進課"]
[null,15,11032000,"原子力基礎工学研究センター  "]
[null,15,11032022,"原子力基礎工学研究センター 環境・放射線科学U "]
[null,15,11032023,"原子力基礎工学研究センター 環境・放射線科学U 環境動態研究Gr"]
[null,15,11016000,"核サ研) 再処理技術開発センター 技術部  "]
[null,15,11034000,"核融合研究開発部門  "]
[null,15,11034001,"核融合研究開発部門  企画調整室"]
[null,15,11034003,"核融合研究開発部門 先進プラズマ研究部 "]
[null,15,11034050,"六ヶ所核融合研究所  "]
[null,15,11034039,"核融合炉システム研究開発部 "]
[null,15,11034041,"核融合炉システム研究開発部 BA計画調整Gr"]
[null,15,11034008,"核融合炉システム研究開発部 プラズマ理論シミュレーションGr"]
[null,15,11034009,"核融合炉システム研究開発部 核融合炉システム研究Gr"]
[null,15,11034048,"核融合炉材料研究開発部 "]
[null,15,11034042,"核融合炉材料研究開発部 IFMIF加速器施設開発Gr"]
[null,15,11034043,"核融合炉材料研究開発部 IFMIF照射・試験施設開発Gr"]
[null,15,11034033,"核融合炉材料研究開発部 核融合炉構造材料開発Gr"]
[null,15,11034015,"ブランケット研究開発部 "]
[null,15,11034019,"ブランケット研究開発部 トリチウム工学研究Gr"]
[null,15,11034022,"ブランケット研究開発部 増殖機能材料開発Gr"]
[null,15,11064000,"役員室 "]